Workbook

Sheet GE
A1: ='1CA'!$A$1 -> VILLE DE CRETEIL ELECTIONS EUROPEENNES 26 MAI 2019
B7: =NOW() -> 2019-05-26T23:05:47.390 | E7: SAISIR LES INSCRITS PAR BUREAU
A10: n° | B10: bureaux | C10: canton - circonscription | D10: Total inscrits | E10: inscrits | F10: ressortissants européens
A11: N° | B11: BUR | C11: CAN | D11: VAR
A12: 1 | B12: Hôtel de ville, salle 1 | C12: 7-2 | D12: =E12 -> 921 | E12: 921
A14: 2 | B14: Hôtel de ville, salle 2 | C14: 7-2 | D14: =E14 -> 899 | E14: 899
A16: 3 | B16: Mendès-France, maternelle | C16: 7-2 | D16: =E16 -> 884 | E16: 884
A18: 4 | B18: Defferre, maternelle | C18: 7-2 | D18: =E18 -> 958 | E18: 958
A20: 5 | B20: Port, Maison de quartier | C20: 7-2 | D20: =E20 -> 1070 | E20: 1070
A22: 6 | B22: La Source, élémentaire | C22: 7-2 | D22: =E22 -> 965 | E22: 965
A24: 7 | B24: Césaire, élementaire | C24: 7-2 | D24: =E24 -> 1310 | E24: 1310
A26: 8 | B26: Gerbault | C26: 7-2 | D26: =E26 -> 1101 | E26: 1101
A28: 9 | B28: Chateaubriand, maternelle | C28: 7-2 | D28: =E28 -> 1106 | E28: 1106
A30: 10 | B30: Allezard, maternelle | C30: 7-1 | D30: =E30 -> 1090 | E30: 1090
A32: 11 | B32: Allezard, élémentaire | C32: 7-1 | D32: =E32 -> 808 | E32: 808
A34: 12 | B34: Hérédia, élementaire | C34: 7-2 | D34: =E34 -> 920 | E34: 920
A36: 13 | B36: Péguy, élémentaire | C36: 7-2 | D36: =E36 -> 962 | E36: 962
A38: 14 | B38: Pascal, élémentaire | C38: 7-2 | D38: =E38 -> 977 | E38: 977
A40: 15 | B40: Monge, élémentaire | C40: 7-2 | D40: =E40 -> 851 | E40: 851
H41: CRETEIL critères par canton
A42: 16 | B42: Monge, maternelle | C42: 7-2 | D42: =E42 -> 1002 | E42: 1002 | H42: CR | J42: CR_7 | K42: CR_8
H43: CAN | J43: CAN | K43: CAN
A44: 17 | B44: Lagrange, élémentaire | C44: 7-2 | D44: =E44 -> 992 | E44: 992 | H44: 7* | J44: 7* | K44: 8*
H45: 8*
A46: 18 | B46: Conservatoire de musique M.Dadi | C46: 7-1 | D46: =E46 -> 1035 | E46: 1035
A48: 19 | B48: Eboué, élémentaire | C48: 7-2 | D48: =E48 -> 842 | E48: 842 | H48: CRETEIL critères par circonscription
H49: CR-VM1 | J49: CR_VM2
A50: 20 | B50: Eboué, maternelle | C50: 7-2 | D50: =E50 -> 735 | E50: 735 | H50: CAN | J50: CAN
H51: 7-1 | J51: 7-2
A52: 21 | B52: Le Cléac'h, maternelle | C52: 7-2 | D52: =E52 -> 972 | E52: 972 | H52: 8-1 | J52: 8-2
A54: 22 | B54: Beuvin, maternelle | C54: 7-2 | D54: =E54 -> 852 | E54: 852
H55: VAL DE MARNE critères par circonscription
A56: 23 | B56: Halage, RPA | C56: 8-1 | D56: =E56 -> 1009 | E56: 1009 | H56: VM1 | J56: VM2
H57: CAN | J57: CAN
A58: 24 | B58: Beuvin, élémentaire | C58: 8-2 | D58: =E58 -> 685 | E58: 685 | H58: 7-1 | J58: 7-2
H59: 8-1 | J59: 8-2
A60: 25 | B60: LCR, rue de Bonne | C60: 8-1 | D60: =E60 -> 1021 | E60: 1021 | H60: cp | J60: ch
H61: sm-c | J61: or
A62: 26 | B62: Les Buttes, gymnase | C62: 8-1 | D62: =E62 -> 1090 | E62: 1090 | H62: sm-o
H63: sm-v
A64: 27 | B64: Plaisance, collège | C64: 8-1 | D64: =E64 -> 969 | E64: 969
A66: 28 | B66: Hugo, maternelle | C66: 8-1 | D66: =E66 -> 879 | E66: 879
A68: 29 | B68: Maison du combattant | C68: 8-1 | D68: =E68 -> 989 | E68: 989
A70: 30 | B70: Hugo, gymnase | C70: 8-1 | D70: =E70 -> 989 | E70: 989
A72: 31 | B72: Salle polyvalente René Renaud | C72: 8-1 | D72: =E72 -> 1153 | E72: 1153
A74: 32 | B74: Hugo, élémentaire | C74: 8-1 | D74: =E74 -> 978 | E74: 978
A76: 33 | B76: Camus, maternelle | C76: 8-1 | D76: =E76 -> 1162 | E76: 1162
A78: 34 | B78: Guiblets | C78: 8-2 | D78: =E78 -> 1019 | E78: 1019
A80: 35 | B80: Casalis, élémentaire | C80: 8-2 | D80: =E80 -> 637 | E80: 637
A82: 36 | B82: Guiblets | C82: 8-2 | D82: =E82 -> 748 | E82: 748
A84: 37 | B84: Casalis, maternelle | C84: 8-2 | D84: =E84 -> 1023 | E84: 1023
A86: 38 | B86: Jeu de paume | C86: 8-2 | D86: =E86 -> 807 | E86: 807
A88: 39 | B88: Jeu de paume | C88: 8-2 | D88: =E88 -> 1178 | E88: 1178
A90: 40 | B90: Savignat, maternelle | C90: 8-2 | D90: =E90 -> 929 | E90: 929
A92: 41 | B92: Savignat, élémentaire | C92: 8-2 | D92: =E92 -> 865 | E92: 865
A94: 42 | B94: La Habette, élémentaire | C94: 8-2 | D94: =E94 -> 984 | E94: 984
A96: 43 | B96: La Habette, élémentaire | C96: 8-2 | D96: =E96 -> 1103 | E96: 1103
A98: 44 | B98: Centre socio-culturel M.Rebérioux | C98: 8-2 | D98: =E98 -> 926 | E98: 926
A100: 45 | B100: Les Sarrazins, élémentaire | C100: 8-2 | D100: =E100 -> 1369 | E100: 1369
A102: 46 | D102: =E102 -> 0
A104: 47 | D104: =E104 -> 0
A106: 48 | D106: =E106 -> 0
A108: 49 | D108: =E108 -> 0
A110: 50 | D110: =E110 -> 0
B135: Canton de Bonneuil | C135: bo
B137: Canton de Champigny ouest | C137: ch-o
B139: Canton de Saint-Maur centre | C139: sm-c
B141: Canton de Saint-Maur ouest | C141: sm-o
B143: Canton de Saint-Maur-La Varenne | C143: sm-v
B145: y
B147: z
B149: Canton de Choisy-le-roi | C149: clr
B151: Canton d'Orly | C151: or
B153: a
B155: b
B157: c
B159: d
B161: e
B166: COMMUNE DE CRETEIL | D166: =DSUM(BASE_G,4,CR) -> 43764 | E166: =DSUM($A$11:$F$162,5,CR) -> 43764 | F166: =DSUM($A$11:$F$162,6,CR) -> 0
B170: Canton n° 7 | D170: =DSUM(BASE_G,4,CR_7) -> 21252 | E170: =DSUM($A$11:$F$162,5,CR_7) -> 21252 | F170: =DSUM($A$11:$F$162,6,CR_7) -> 0
B172: Canton n° 8 | D172: =DSUM(BASE_G,4,CR_8) -> 22512 | E172: =DSUM($A$11:$F$162,5,CR_8) -> 22512 | F172: =DSUM($A$11:$F$162,6,CR_8) -> 0
B175: 1ère circonscription de Créteil | D175: =DSUM(BASE_G,4,CR_VM1) -> 13172
B177: 2ème circonscription de Créteil | D177: =DSUM(BASE_G,4,CR_VM2) -> 30592
B180: 1ère circonscription du Val de Marne | D180: =DSUM(BASE_G,4,_VM1) -> 13172
B182: 2ème circonscription du Val de Marne | D182: =DSUM(BASE_G,4,_VM2) -> 30592

Sheet 1CA (hidden)
A1: VILLE DE CRETEIL ELECTIONS EUROPEENNES 26 MAI 2019 | D1: =NOW() -> 2019-05-26T23:05:47.390
A4: code du candidat | B4: CAN01 | C4: CAN02 | D4: CAN03 | E4: CAN04 | F4: CAN05 | G4: CAN06 | H4: CAN07 | I4: CAN08 | J4: CAN09 | K4: CAN10 | L4: CAN11 | M4: CAN12 | N4: CAN13 | O4: CAN14 | P4: CAN15 | Q4: CAN16 | R4: CAN17 | S4: CAN18 | T4: CAN19 | U4: CAN20 | V4: CAN21 | W4: CAN22 | X4: CAN23 | Y4: CAN24 | Z4: CAN25 | AA4: CAN26 | AB4: CAN27 | AC4: CAN28 | AD4: CAN29 | AE4: CAN30 | AF4: CAN31 | AG4: CAN32 | AH4: CAN33 | AI4: CAN34
A5: Numéro du candidat | B5: 1 | C5: 2 | D5: 3 | E5: 4 | F5: 5 | G5: 6 | H5: 7 | I5: 8 | J5: 9 | K5: 10 | L5: 11 | M5: 12 | N5: 13 | O5: 14 | P5: 15 | Q5: 16 | R5: 17 | S5: 18 | T5: 19 | U5: 20 | V5: 21 | W5: 22 | X5: 23 | Y5: 24 | Z5: 25 | AA5: 26 | AB5: 27 | AC5: 28 | AD5: 29 | AE5: 30 | AF5: 31 | AG5: 32 | AH5: 33 | AI5: 34
A6: Nom du candidat ou de la liste | B6: FRANCE INSOUMISE conduite par M. AUBRY | C6: FRANCE ROYALE conduite par R. de PREVOISIN | D6: LIGNE CLAIRE conduite par R. CAMUS | E6: PARTI PIRATE conduite par F. MARIE | F6: RÉPUBLIQUE EN MARCHE conduite par N. LOISEAU | G6: DÉMOCRATIE RÉPRESENTATIVE conduite par H. TRAORE | H6: PATRIOTES ET GILETS JAUNES conduite par F. PHILIPPOT | I6: PACE conduite par A. ALEXANDRE | J6: URGENCE ÉCOLOGIE conduite par D. BOURG | K6: LISTE DE LA RECONQUÊTE conduite par V. VAUCLIN | L6: LES EUROPÉENS conduite par J-C. LAGARDE | M6: ENVIE D’EUROPE conduite par R. GLUCKSMANN | N6: PARTI FÉDÉRALISTE EUROPÉEN conduite par Y. GERNIGON | O6: MOUVEMENT POUR L’INITIATIVE CITOYENNE conduite par G. HELGEN | P6: LE COURAGE DE DÉFENDRE LES FRANÇAIS conduite par N. DUPONT-AIGNAN | Q6: ALLONS ENFANTS conduite par S. CAILLAUD | R6: DÉCROISSANCE 2019 conduite par T. DELFEL | S6: LUTTE OUVRIERE conduite par N. ARTHAUD | T6: POUR L’EUROPE DES GENS conduite par I. BROSSAT | U6: ENSEMBLE POUR LE FREXIT conduite par F. ASSELINEAU | V6: LISTE CITOYENNE DU PRINTEMPS EUROPEEN conduite par B. HAMON | W6: À VOIX ÉGALES conduite par N. TOMASINI | X6: PRENEZ LE POUVOIR conduite par J. BARDELLA | Y6: NEUTRE ET ACTIF conduite par C. CORBET | Z6: PARTI RÉVOLUTIONNAIRE COMMUNISTES conduite par A. SANCHEZ | AA6: ESPÉRANTO conduite par P. DIEUMEGARD | AB6: ÉVOLUTION CITOYENNE conduite par C. CHALANCON | AC6: ALLIANCE JAUNE conduite par F. LALANNE | AD6: UNION DE LA DROITE ET DU CENTRE conduite par F. X. BELLAMY | AE6: EUROPE ÉCOLOGIE conduite par Y. JADOT | AF6: PARTI ANIMALISTE conduite par H. THOUY | AG6: LES OUBLIÉS DE L’EUROPE conduite par O. BIDOU | AH6: UNION DÉMOCRATIQUE conduite par C. Luc PERSON | AI6: UNE EUROPE AU SERVICE DES PEUPLES conduite par N. AZERGUI
A7: Nom abrégé du parti ou de l'alliance (PS, PCF. . .)
A8: code de la famille politique (G, XG, . . .)

Sheet Saisie 1V
A1: ='1CA'!A1 -> VILLE DE CRETEIL ELECTIONS EUROPEENNES 26 MAI 2019
A2: ='1CA'!A2 -> 0
A3: Tableau de saisie
B4: =NOW() -> 2019-05-26T23:05:47.390
A5: =GE!A10:C10 -> n° | B5: bureaux | C5: canton - circonscription | D5: inscrits | E5: émarge- ments | F5: bulletins | G5: blancs | H5: nuls | I5: ='1CA'!B6:AF6 -> FRANCE INSOUMISE conduite par M. AUBRY | J5: FRANCE ROYALE conduite par R. de PREVOISIN | K5: LIGNE CLAIRE conduite par R. CAMUS | L5: PARTI PIRATE conduite par F. MARIE | M5: RÉPUBLIQUE EN MARCHE conduite par N. LOISEAU | N5: DÉMOCRATIE RÉPRESENTATIVE conduite par H. TRAORE | O5: PATRIOTES ET GILETS JAUNES conduite par F. PHILIPPOT | P5: PACE conduite par A. ALEXANDRE | Q5: URGENCE ÉCOLOGIE conduite par D. BOURG | R5: LISTE DE LA RECONQUÊTE conduite par V. VAUCLIN | S5: LES EUROPÉENS conduite par J-C. LAGARDE | T5: ENVIE D’EUROPE conduite par R. GLUCKSMANN | U5: PARTI FÉDÉRALISTE EUROPÉEN conduite par Y. GERNIGON | V5: MOUVEMENT POUR L’INITIATIVE CITOYENNE conduite par G. HELGEN | W5: LE COURAGE DE DÉFENDRE LES FRANÇAIS conduite par N. DUPONT-AIGNAN | X5: ALLONS ENFANTS conduite par S. CAILLAUD | Y5: DÉCROISSANCE 2019 conduite par T. DELFEL | Z5: LUTTE OUVRIERE conduite par N. ARTHAUD | AA5: POUR L’EUROPE DES GENS conduite par I. BROSSAT | AB5: ENSEMBLE POUR LE FREXIT conduite par F. ASSELINEAU | AC5: LISTE CITOYENNE DU PRINTEMPS EUROPEEN conduite par B. HAMON | AD5: À VOIX ÉGALES conduite par N. TOMASINI | AE5: PRENEZ LE POUVOIR conduite par J. BARDELLA | AF5: NEUTRE ET ACTIF conduite par C. CORBET | AG5: PARTI RÉVOLUTIONNAIRE COMMUNISTES conduite par A. SANCHEZ | AH5: ESPÉRANTO conduite par P. DIEUMEGARD | AI5: ÉVOLUTION CITOYENNE conduite par C. CHALANCON | AJ5: ALLIANCE JAUNE conduite par F. LALANNE | AK5: UNION DE LA DROITE ET DU CENTRE conduite par F. X. BELLAMY | AL5: EUROPE ÉCOLOGIE conduite par Y. JADOT | AM5: PARTI ANIMALISTE conduite par H. THOUY | AN5: ='1CA'!AG6:BK6 -> LES OUBLIÉS DE L’EUROPE conduite par O. BIDOU | AO5: ='1CA'!AH6:BL6 -> UNION DÉMOCRATIQUE conduite par C. Luc PERSON | AP5: ='1CA'!AI6:BM6 -> UNE EUROPE AU SERVICE DES PEUPLES conduite par N. AZERGUI | AQ5: Liste arrivée en tête | AR5: CONTROLE
A6: N° | B6: BUR | C6: CAN | D6: INS | E6: EMA | F6: BUL | H6: BLA | I6: can1 | J6: can2 | K6: can3 | L6: can4 | M6: can5 | N6: can6 | O6: can7 | P6: can8 | Q6: can9 | R6: can10 | S6: can11 | T6: can12 | U6: can13 | V6: can14 | W6: can15 | X6: can16 | Y6: can17 | Z6: can18 | AA6: can19 | AB6: can20 | AC6: can21 | AD6: can22 | AE6: can23 | AF6: can24 | AG6: can25 | AH6: can26 | AI6: can27 | AJ6: can28 | AK6: can29 | AL6: can30
A7: =GE!$A$12:$D$12 -> 1 | B7: Hôtel de ville, salle 1 | C7: 7-2 | D7: 921 | F7: 405 | G7: 4 | H7: 4 | I7: 23 | J7: 0 | K7: 0 | L7: 1 | M7: 119 | N7: 0 | O7: 0 | P7: 0 | Q7: 7 | R7: 0 | S7: 11 | T7: 45 | U7: 0 | V7: 0 | W7: 4 | X7: 0 | Y7: 0 | Z7: 5 | AA7: 11 | AB7: 19 | AC7: 19 | AD7: 2 | AE7: 36 | AF7: 0 | AG7: 0 | AH7: 0 | AI7: 0 | AJ7: 0 | AK7: 46 | AL7: 43 | AM7: 1 | AN7: 1 | AO7: 0 | AP7: 4 | AQ7: =IF(SUM(I7:U7)=0,"résultats en attente",IF(COUNTIF(I7:U7,MAX(I7:U7))>1,"ex aequo",INDEX($I$5:$U$5,MATCH(MAX(I7:U7),I7:U7,0)))) -> RÉPUBLIQUE EN MARCHE conduite par N. LOISEAU | AR7: =SUM($I7:$AP7) -> 397 | AS7: =IF($AR7=($F7-($G7+$H7)),"","erreur") -> 
A8: =GE!$A$14:$D$14 -> 2 | B8: Hôtel de ville, salle 2 | C8: 7-2 | D8: 899 | F8: 432 | G8: 1 | H8: 1 | I8: 21 | J8: 1 | K8: 0 | L8: 4 | M8: 149 | N8: 0 | O8: 0 | P8: 0 | Q8: 10 | R8: 0 | S8: 12 | T8: 25 | U8: 1 | V8: 0 | W8: 7 | X8: 0 | Y8: 0 | Z8: 4 | AA8: 9 | AB8: 4 | AC8: 12 | AD8: 0 | AE8: 45 | AF8: 0 | AG8: 0 | AH8: 0 | AI8: 0 | AJ8: 1 | AK8: 51 | AL8: 56 | AM8: 12 | AN8: 1 | AO8: 0 | AP8: 5 | AQ8: =IF(SUM(I8:U8)=0,"résultats en attente",IF(COUNTIF(I8:U8,MAX(I8:U8))>1,"ex aequo",INDEX($I$5:$U$5,MATCH(MAX(I8:U8),I8:U8,0)))) -> RÉPUBLIQUE EN MARCHE conduite par N. LOISEAU | AR8: =SUM($I8:$AP8) -> 430 | AS8: =IF($AR8=($F8-($G8+$H8)),"","erreur") -> 
A9: =GE!$A$16:$D$16 -> 3 | B9: Mendès-France, maternelle | C9: 7-2 | D9: 884 | F9: 396 | G9: 10 | H9: 14 | I9: 48 | J9: 0 | K9: 0 | L9: 5 | M9: 67 | N9: 0 | O9: 1 | P9: 0 | Q9: 15 | R9: 0 | S9: 5 | T9: 41 | U9: 0 | V9: 0 | W9: 5 | X9: 1 | Y9: 3 | Z9: 5 | AA9: 8 | AB9: 7 | AC9: 17 | AD9: 0 | AE9: 39 | AF9: 0 | AG9: 0 | AH9: 1 | AI9: 0 | AJ9: 3 | AK9: 37 | AL9: 39 | AM9: 12 | AN9: 2 | AO9: 2 | AP9: 9 | AQ9: RÉPUBLIQUE EN MARCHE conduite par N. LOISEAU | AR9: 372
A10: =GE!$A$18:$D$18 -> 4 | B10: Defferre, maternelle | C10: 7-2 | D10: 958 | F10: 394 | G10: 6 | H10: 10 | I10: 59 | J10: 0 | K10: 0 | L10: 23 | M10: 59 | N10: 0 | O10: 1 | P10: 0 | Q10: 5 | R10: 0 | S10: 6 | T10: 33 | U10: 0 | V10: 0 | W10: 18 | X10: 0 | Y10: 0 | Z10: 5 | AA10: 9 | AB10: 2 | AC10: 23 | AD10: 0 | AE10: 45 | AF10: 0 | AG10: 0 | AH10: 0 | AI10: 0 | AJ10: 3 | AK10: 26 | AL10: 41 | AM10: 6 | AN10: 0 | AO10: 0 | AP10: 14 | AQ10: ex aequo | AR10: 378
A11: =GE!$A$20:$D$20 -> 5 | B11: Port, Maison de quartier | C11: 7-2 | D11: 1070 | F11: 429 | G11: 11 | H11: 5 | I11: 37 | J11: 0 | K11: 0 | L11: 2 | M11: 94 | N11: 0 | O11: 1 | P11: 0 | Q11: 10 | R11: 0 | S11: 5 | T11: 35 | U11: 1 | V11: 0 | W11: 12 | X11: 0 | Y11: 0 | Z11: 3 | AA11: 11 | AB11: 13 | AC11: 18 | AD11: 1 | AE11: 48 | AF11: 0 | AG11: 0 | AH11: 0 | AI11: 0 | AJ11: 0 | AK11: 36 | AL11: 55 | AM11: 11 | AN11: 2 | AO11: 3 | AP11: 15 | AQ11: RÉPUBLIQUE EN MARCHE conduite par N. LOISEAU | AR11: 413
A12: =GE!$A$22:$D$22 -> 6 | B12: La Source, élémentaire | C12: 7-2 | D12: 965 | F12: 404 | G12: 12 | H12: 6 | I12: 49 | J12: 0 | K12: 3 | L12: 0 | M12: 79 | N12: 0 | O12: 1 | P12: 0 | Q12: 10 | R12: 0 | S12: 12 | T12: 35 | U12: 0 | V12: 0 | W12: 13 | X12: 0 | Y12: 0 | Z12: 2 | AA12: 11 | AB12: 11 | AC12: 13 | AD12: 0 | AE12: 55 | AF12: 0 | AG12: 0 | AH12: 0 | AI12: 0 | AJ12: 2 | AK12: 22 | AL12: 45 | AM12: 11 | AN12: 2 | AO12: 0 | AP12: 10 | AQ12: RÉPUBLIQUE EN MARCHE conduite par N. LOISEAU | AR12: 386
A13: =GE!$A$24:$D$24 -> 7 | B13: Césaire, élementaire | C13: 7-2 | D13: 1310 | F13: 604 | G13: 16 | H13: 5 | I13: 64 | J13: 0 | K13: 0 | L13: 1 | M13: 161 | N13: 0 | O13: 1 | P13: 1 | Q13: 7 | R13: 0 | S13: 10 | T13: 41 | U13: 1 | V13: 0 | W13: 24 | X13: 0 | Y13: 0 | Z13: 4 | AA13: 21 | AB13: 12 | AC13: 42 | AD13: 0 | AE13: 56 | AF13: 0 | AG13: 0 | AH13: 1 | AI13: 0 | AJ13: 0 | AK13: 38 | AL13: 69 | AM13: 5 | AN13: 3 | AO13: 0 | AP13: 21 | AQ13: RÉPUBLIQUE EN MARCHE conduite par N. LOISEAU | AR13: 583
A14: =GE!$A$26:$D$26 -> 8 | B14: Gerbault | C14: 7-2 | D14: 1101 | F14: 512 | G14: 10 | H14: 5 | I14: 28 | J14: 0 | K14: 0 | L14: 3 | M14: 145 | N14: 0 | O14: 0 | P14: 0 | Q14: 10 | R14: 0 | S14: 17 | T14: 38 | U14: 0 | V14: 0 | W14: 15 | X14: 0 | Y14: 0 | Z14: 4 | AA14: 24 | AB14: 14 | AC14: 24 | AD14: 0 | AE14: 58 | AF14: 0 | AG14: 0 | AH14: 0 | AI14: 0 | AJ14: 1 | AK14: 51 | AL14: 51 | AM14: 8 | AN14: 0 | AO14: 1 | AP14: 5 | AQ14: RÉPUBLIQUE EN MARCHE conduite par N. LOISEAU | AR14: 497
A15: =GE!$A$28:$D$28 -> 9 | B15: Chateaubriand, maternelle | C15: 7-2 | D15: 1106 | F15: 510 | G15: 15 | H15: 14 | I15: 49 | J15: 0 | K15: 0 | L15: 2 | M15: 97 | N15: 0 | O15: 4 | P15: 0 | Q15: 11 | R15: 0 | S15: 10 | T15: 39 | U15: 1 | V15: 0 | W15: 20 | X15: 0 | Y15: 0 | Z15: 3 | AA15: 15 | AB15: 11 | AC15: 37 | AD15: 0 | AE15: 75 | AF15: 0 | AG15: 0 | AH15: 2 | AI15: 0 | AJ15: 5 | AK15: 20 | AL15: 60 | AM15: 8 | AN15: 1 | AO15: 0 | AP15: 11 | AQ15: RÉPUBLIQUE EN MARCHE conduite par N. LOISEAU | AR15: 481
A16: =GE!$A$30:$D$30 -> 10 | B16: Allezard, maternelle | C16: 7-1 | D16: 1090 | F16: 481 | G16: 9 | H16: 7 | I16: 51 | J16: 0 | K16: 0 | L16: 1 | M16: 108 | N16: 0 | O16: 0 | P16: 0 | Q16: 13 | R16: 0 | S16: 15 | T16: 28 | U16: 0 | V16: 0 | W16: 14 | X16: 0 | Y16: 1 | Z16: 3 | AA16: 7 | AB16: 12 | AC16: 26 | AD16: 0 | AE16: 86 | AF16: 0 | AG16: 0 | AH16: 0 | AI16: 0 | AJ16: 8 | AK16: 23 | AL16: 61 | AM16: 8 | AN16: 0 | AO16: 0 | AP16: 0 | AQ16: RÉPUBLIQUE EN MARCHE conduite par N. LOISEAU | AR16: 465
A17: =GE!$A$32:$D$32 -> 11 | B17: Allezard, élémentaire | C17: 7-1 | D17: 808 | F17: 386 | G17: 9 | H17: 7 | I17: 16 | J17: 0 | K17: 0 | L17: 2 | M17: 88 | N17: 0 | O17: 1 | P17: 0 | Q17: 7 | R17: 0 | S17: 14 | T17: 32 | U17: 1 | V17: 0 | W17: 14 | X17: 0 | Y17: 0 | Z17: 1 | AA17: 20 | AB17: 7 | AC17: 10 | AD17: 0 | AE17: 63 | AF17: 0 | AG17: 0 | AH17: 0 | AI17: 0 | AJ17: 1 | AK17: 24 | AL17: 58 | AM17: 6 | AN17: 0 | AO17: 0 | AP17: 5 | AQ17: RÉPUBLIQUE EN MARCHE conduite par N. LOISEAU | AR17: 370
A18: =GE!$A$34:$D$34 -> 12 | B18: Hérédia, élementaire | C18: 7-2 | D18: 920 | F18: 430 | G18: 9 | H18: 8 | I18: 40 | J18: 0 | K18: 0 | L18: 4 | M18: 89 | N18: 0 | O18: 3 | P18: 0 | Q18: 6 | R18: 1 | S18: 13 | T18: 50 | U18: 1 | V18: 0 | W18: 11 | X18: 0 | Y18: 0 | Z18: 2 | AA18: 15 | AB18: 7 | AC18: 18 | AD18: 0 | AE18: 52 | AF18: 0 | AG18: 0 | AH18: 0 | AI18: 0 | AJ18: 0 | AK18: 33 | AL18: 58 | AM18: 4 | AN18: 0 | AO18: 0 | AP18: 6 | AQ18: RÉPUBLIQUE EN MARCHE conduite par N. LOISEAU | AR18: 413
A19: =GE!$A$36:$D$36 -> 13 | B19: Péguy, élémentaire | C19: 7-2 | D19: 962 | F19: 390 | G19: 3 | H19: 3 | I19: 41 | J19: 0 | K19: 0 | L19: 1 | M19: 100 | N19: 0 | O19: 2 | P19: 0 | Q19: 6 | R19: 0 | S19: 15 | T19: 27 | U19: 0 | V19: 0 | W19: 15 | X19: 0 | Y19: 0 | Z19: 3 | AA19: 11 | AB19: 5 | AC19: 20 | AD19: 0 | AE19: 49 | AF19: 0 | AG19: 0 | AH19: 0 | AI19: 0 | AJ19: 2 | AK19: 21 | AL19: 44 | AM19: 6 | AN19: 1 | AO19: 0 | AP19: 15 | AQ19: RÉPUBLIQUE EN MARCHE conduite par N. LOISEAU | AR19: 384
A20: =GE!$A$38:$D$38 -> 14 | B20: Pascal, élémentaire | C20: 7-2 | D20: 977 | F20: 370 | G20: 12 | H20: 12 | I20: 28 | J20: 0 | K20: 0 | L20: 0 | M20: 75 | N20: 0 | O20: 1 | P20: 0 | Q20: 3 | R20: 0 | S20: 5 | T20: 22 | U20: 0 | V20: 0 | W20: 20 | X20: 0 | Y20: 0 | Z20: 5 | AA20: 11 | AB20: 9 | AC20: 12 | AD20: 0 | AE20: 68 | AF20: 0 | AG20: 0 | AH20: 0 | AI20: 0 | AJ20: 2 | AK20: 20 | AL20: 37 | AM20: 8 | AN20: 0 | AO20: 5 | AP20: 15 | AQ20: RÉPUBLIQUE EN MARCHE conduite par N. LOISEAU | AR20: 346
A21: =GE!$A$40:$D$40 -> 15 | B21: Monge, élémentaire | C21: 7-2 | D21: 851 | F21: 418 | G21: 12 | H21: 5 | I21: 36 | J21: 0 | K21: 0 | L21: 1 | M21: 85 | N21: 0 | O21: 0 | P21: 0 | Q21: 8 | R21: 0 | S21: 6 | T21: 34 | U21: 0 | V21: 0 | W21: 10 | X21: 0 | Y21: 0 | Z21: 5 | AA21: 20 | AB21: 7 | AC21: 17 | AD21: 0 | AE21: 56 | AF21: 0 | AG21: 0 | AH21: 0 | AI21: 0 | AJ21: 7 | AK21: 15 | AL21: 60 | AM21: 22 | AN21: 0 | AO21: 2 | AP21: 10 | AQ21: RÉPUBLIQUE EN MARCHE conduite par N. LOISEAU | AR21: 401
A22: =GE!$A$42:$D$42 -> 16 | B22: Monge, maternelle | C22: 7-2 | D22: 1002 | F22: 447 | G22: 8 | H22: 7 | I22: 42 | J22: 0 | K22: 0 | L22: 1 | M22: 98 | N22: 0 | O22: 0 | P22: 0 | Q22: 6 | R22: 0 | S22: 13 | T22: 26 | U22: 1 | V22: 0 | W22: 17 | X22: 0 | Y22: 0 | Z22: 2 | AA22: 23 | AB22: 11 | AC22: 28 | AD22: 0 | AE22: 65 | AF22: 0 | AG22: 0 | AH22: 1 | AI22: 0 | AJ22: 2 | AK22: 34 | AL22: 45 | AM22: 5 | AN22: 0 | AO22: 0 | AP22: 12 | AQ22: RÉPUBLIQUE EN MARCHE conduite par N. LOISEAU | AR22: 432
A23: =GE!$A$44:$D$44 -> 17 | B23: Lagrange, élémentaire | C23: 7-2 | D23: 992 | F23: 476 | G23: 9 | H23: 5 | I23: 45 | J23: 0 | K23: 0 | L23: 0 | M23: 115 | N23: 0 | O23: 2 | P23: 1 | Q23: 18 | R23: 0 | S23: 15 | T23: 46 | U23: 0 | V23: 0 | W23: 9 | X23: 0 | Y23: 0 | Z23: 1 | AA23: 14 | AB23: 14 | AC23: 25 | AD23: 0 | AE23: 60 | AF23: 0 | AG23: 0 | AH23: 0 | AI23: 0 | AJ23: 1 | AK23: 24 | AL23: 60 | AM23: 7 | AN23: 0 | AO23: 0 | AP23: 5 | AQ23: RÉPUBLIQUE EN MARCHE conduite par N. LOISEAU | AR23: 462
A24: =GE!$A$46:$D$46 -> 18 | B24: Conservatoire de musique M.Dadi | C24: 7-1 | D24: 1035 | F24: 493 | G24: 12 | H24: 5 | I24: 48 | J24: 0 | K24: 0 | L24: 1 | M24: 132 | N24: 0 | O24: 1 | P24: 0 | Q24: 13 | R24: 0 | S24: 11 | T24: 30 | U24: 1 | V24: 0 | W24: 8 | X24: 0 | Y24: 0 | Z24: 2 | AA24: 23 | AB24: 4 | AC24: 10 | AD24: 4 | AE24: 57 | AF24: 0 | AG24: 0 | AH24: 0 | AI24: 0 | AJ24: 0 | AK24: 28 | AL24: 89 | AM24: 10 | AN24: 1 | AO24: 1 | AP24: 2 | AQ24: RÉPUBLIQUE EN MARCHE conduite par N. LOISEAU | AR24: 476
A25: =GE!$A$48:$D$48 -> 19 | B25: Eboué, élémentaire | C25: 7-2 | D25: 842 | F25: 371 | G25: 6 | H25: 8 | I25: 35 | J25: 0 | K25: 0 | L25: 2 | M25: 82 | N25: 0 | O25: 2 | P25: 0 | Q25: 7 | R25: 0 | S25: 6 | T25: 25 | U25: 1 | V25: 0 | W25: 7 | X25: 0 | Y25: 0 | Z25: 6 | AA25: 8 | AB25: 3 | AC25: 12 | AD25: 0 | AE25: 47 | AF25: 0 | AG25: 0 | AH25: 0 | AI25: 0 | AJ25: 2 | AK25: 32 | AL25: 70 | AM25: 4 | AN25: 0 | AO25: 1 | AP25: 5 | AQ25: RÉPUBLIQUE EN MARCHE conduite par N. LOISEAU | AR25: 357
A26: =GE!A50:D50 -> 20 | B26: Eboué, maternelle | C26: 7-2 | D26: 735 | F26: 312 | G26: 6 | H26: 7 | I26: 56 | J26: 0 | K26: 0 | L26: 0 | M26: 91 | N26: 0 | O26: 1 | P26: 0 | Q26: 7 | R26: 0 | S26: 5 | T26: 14 | U26: 0 | V26: 0 | W26: 8 | X26: 0 | Y26: 0 | Z26: 3 | AA26: 6 | AB26: 7 | AC26: 20 | AD26: 0 | AE26: 27 | AF26: 0 | AG26: 0 | AH26: 0 | AI26: 0 | AJ26: 3 | AK26: 18 | AL26: 23 | AM26: 4 | AN26: 0 | AO26: 1 | AP26: 5 | AQ26: RÉPUBLIQUE EN MARCHE conduite par N. LOISEAU | AR26: 299
A27: =GE!A52:D52 -> 21 | B27: Le Cléac'h, maternelle | C27: 7-2 | D27: 972 | F27: 424 | G27: 8 | H27: 6 | I27: 38 | J27: 0 | K27: 0 | L27: 2 | M27: 90 | N27: 0 | O27: 0 | P27: 0 | Q27: 8 | R27: 1 | S27: 6 | T27: 35 | U27: 1 | V27: 0 | W27: 8 | X27: 0 | Y27: 0 | Z27: 1 | AA27: 11 | AB27: 10 | AC27: 24 | AD27: 0 | AE27: 51 | AF27: 0 | AG27: 0 | AH27: 0 | AI27: 0 | AJ27: 1 | AK27: 18 | AL27: 79 | AM27: 7 | AN27: 1 | AO27: 0 | AP27: 18 | AQ27: RÉPUBLIQUE EN MARCHE conduite par N. LOISEAU | AR27: 410
A28: =GE!A54:D54 -> 22 | B28: Beuvin, maternelle | C28: 7-2 | D28: 852 | F28: 390 | G28: 4 | H28: 6 | I28: 34 | J28: 0 | K28: 0 | L28: 2 | M28: 79 | N28: 0 | O28: 0 | P28: 0 | Q28: 6 | R28: 0 | S28: 11 | T28: 18 | U28: 1 | V28: 0 | W28: 13 | X28: 0 | Y28: 0 | Z28: 1 | AA28: 11 | AB28: 5 | AC28: 16 | AD28: 0 | AE28: 75 | AF28: 0 | AG28: 0 | AH28: 0 | AI28: 0 | AJ28: 2 | AK28: 34 | AL28: 58 | AM28: 11 | AN28: 1 | AO28: 1 | AP28: 1 | AQ28: =IF(SUM(I28:U28)=0,"résultats en attente",IF(COUNTIF(I28:U28,MAX(I28:U28))>1,"ex aequo",INDEX($I$5:$U$5,MATCH(MAX(I28:U28),I28:U28,0)))) -> RÉPUBLIQUE EN MARCHE conduite par N. LOISEAU | AR28: 380 | AS28: =IF($AR28=($F28-($G28+$H28)),"","erreur") -> 
A29: =GE!A56:D56 -> 23 | B29: Halage, RPA | C29: 8-1 | D29: 1009 | F29: 616 | G29: 6 | H29: 9 | I29: 18 | J29: 0 | K29: 0 | L29: 0 | M29: 192 | N29: 0 | O29: 1 | P29: 0 | Q29: 9 | R29: 0 | S29: 16 | T29: 60 | U29: 0 | V29: 0 | W29: 19 | X29: 0 | Y29: 0 | Z29: 1 | AA29: 9 | AB29: 5 | AC29: 26 | AD29: 0 | AE29: 65 | AF29: 0 | AG29: 0 | AH29: 2 | AI29: 0 | AJ29: 2 | AK29: 52 | AL29: 110 | AM29: 13 | AN29: 0 | AO29: 1 | AP29: 0 | AQ29: RÉPUBLIQUE EN MARCHE conduite par N. LOISEAU | AR29: 601
A30: =GE!A58:D58 -> 24 | B30: Beuvin, élémentaire | C30: 8-2 | D30: 685 | F30: 278 | G30: 5 | H30: 4 | I30: 42 | J30: 0 | K30: 0 | L30: 0 | M30: 71 | N30: 0 | O30: 0 | P30: 0 | Q30: 4 | R30: 0 | S30: 7 | T30: 18 | U30: 1 | V30: 0 | W30: 11 | X30: 0 | Y30: 0 | Z30: 3 | AA30: 7 | AB30: 6 | AC30: 5 | AD30: 0 | AE30: 28 | AF30: 0 | AG30: 0 | AH30: 0 | AI30: 0 | AJ30: 5 | AK30: 14 | AL30: 43 | AM30: 1 | AN30: 0 | AO30: 0 | AP30: 3 | AQ30: RÉPUBLIQUE EN MARCHE conduite par N. LOISEAU | AR30: 269
A31: =GE!A60:D60 -> 25 | B31: LCR, rue de Bonne | C31: 8-1 | D31: 1021 | F31: 697 | G31: 11 | H31: 9 | I31: 30 | J31: 0 | K31: 0 | L31: 4 | M31: 233 | N31: 0 | O31: 1 | P31: 0 | Q31: 11 | R31: 0 | S31: 19 | T31: 71 | U31: 0 | V31: 0 | W31: 17 | X31: 0 | Y31: 1 | Z31: 2 | AA31: 24 | AB31: 7 | AC31: 15 | AD31: 0 | AE31: 58 | AF31: 0 | AG31: 0 | AH31: 0 | AI31: 0 | AJ31: 1 | AK31: 42 | AL31: 121 | AM31: 13 | AN31: 2 | AO31: 1 | AP31: 4 | AQ31: RÉPUBLIQUE EN MARCHE conduite par N. LOISEAU | AR31: 677
A32: =GE!A62:D62 -> 26 | B32: Les Buttes, gymnase | C32: 8-1 | D32: 1090 | F32: 614 | G32: 10 | H32: 7 | I32: 29 | J32: 0 | K32: 0 | L32: 5 | M32: 170 | N32: 0 | O32: 1 | P32: 0 | Q32: 13 | R32: 0 | S32: 20 | T32: 61 | U32: 0 | V32: 0 | W32: 24 | X32: 0 | Y32: 0 | Z32: 4 | AA32: 9 | AB32: 7 | AC32: 24 | AD32: 0 | AE32: 57 | AF32: 0 | AG32: 0 | AH32: 1 | AI32: 0 | AJ32: 1 | AK32: 54 | AL32: 101 | AM32: 9 | AN32: 0 | AO32: 1 | AP32: 6 | AQ32: RÉPUBLIQUE EN MARCHE conduite par N. LOISEAU | AR32: 597
A33: =GE!A64:D64 -> 27 | B33: Plaisance, collège | C33: 8-1 | D33: 969 | F33: 508 | G33: 8 | H33: 8 | I33: 29 | J33: 0 | K33: 0 | L33: 0 | M33: 118 | N33: 0 | O33: 2 | P33: 2 | Q33: 14 | R33: 0 | S33: 11 | T33: 48 | U33: 0 | V33: 0 | W33: 18 | X33: 0 | Y33: 1 | Z33: 3 | AA33: 12 | AB33: 6 | AC33: 25 | AD33: 0 | AE33: 53 | AF33: 0 | AG33: 0 | AH33: 0 | AI33: 0 | AJ33: 1 | AK33: 43 | AL33: 87 | AM33: 16 | AN33: 1 | AO33: 0 | AP33: 2 | AQ33: RÉPUBLIQUE EN MARCHE conduite par N. LOISEAU | AR33: 492 | AS33: =IF($AR33=($F33-($G33+$H33)),"","erreur") -> 
A34: =GE!A66:D66 -> 28 | B34: Hugo, maternelle | C34: 8-1 | D34: 879 | F34: 557 | G34: 2 | H34: 3 | I34: 16 | J34: 0 | K34: 0 | L34: 3 | M34: 161 | N34: 0 | O34: 2 | P34: 0 | Q34: 8 | R34: 0 | S34: 9 | T34: 37 | U34: 0 | V34: 0 | W34: 24 | X34: 0 | Y34: 0 | Z34: 0 | AA34: 7 | AB34: 5 | AC34: 32 | AD34: 0 | AE34: 88 | AF34: 0 | AG34: 0 | AH34: 0 | AI34: 0 | AJ34: 0 | AK34: 53 | AL34: 98 | AM34: 9 | AN34: 0 | AO34: 0 | AP34: 0 | AQ34: RÉPUBLIQUE EN MARCHE conduite par N. LOISEAU | AR34: 552
A35: =GE!A68:D68 -> 29 | B35: Maison du combattant | C35: 8-1 | D35: 989 | F35: 524 | G35: 18 | H35: 10 | I35: 41 | J35: 0 | K35: 0 | L35: 2 | M35: 95 | N35: 0 | O35: 5 | P35: 0 | Q35: 18 | R35: 0 | S35: 12 | T35: 32 | U35: 0 | V35: 0 | W35: 10 | X35: 0 | Y35: 0 | Z35: 4 | AA35: 13 | AB35: 16 | AC35: 26 | AD35: 0 | AE35: 73 | AF35: 0 | AG35: 0 | AH35: 0 | AI35: 0 | AJ35: 1 | AK35: 29 | AL35: 87 | AM35: 16 | AN35: 2 | AO35: 0 | AP35: 14 | AQ35: RÉPUBLIQUE EN MARCHE conduite par N. LOISEAU | AR35: 496
A36: =GE!A70:D70 -> 30 | B36: Hugo, gymnase | C36: 8-1 | D36: 989 | F36: 553 | G36: 13 | H36: 8 | I36: 26 | J36: 0 | K36: 0 | L36: 1 | M36: 152 | N36: 0 | O36: 2 | P36: 0 | Q36: 10 | R36: 0 | S36: 4 | T36: 41 | U36: 0 | V36: 0 | W36: 17 | X36: 0 | Y36: 0 | Z36: 2 | AA36: 22 | AB36: 12 | AC36: 20 | AD36: 0 | AE36: 72 | AF36: 0 | AG36: 0 | AH36: 2 | AI36: 0 | AJ36: 2 | AK36: 52 | AL36: 77 | AM36: 11 | AN36: 1 | AO36: 0 | AP36: 6 | AQ36: RÉPUBLIQUE EN MARCHE conduite par N. LOISEAU | AR36: 532
A37: =GE!A72:D72 -> 31 | B37: Salle polyvalente René Renaud | C37: 8-1 | D37: 1153 | F37: 602 | G37: 12 | H37: 4 | I37: 34 | J37: 0 | K37: 0 | L37: 1 | M37: 154 | N37: 0 | O37: 1 | P37: 0 | Q37: 9 | R37: 0 | S37: 13 | T37: 58 | U37: 1 | V37: 0 | W37: 21 | X37: 0 | Y37: 0 | Z37: 3 | AA37: 22 | AB37: 6 | AC37: 20 | AD37: 0 | AE37: 99 | AF37: 0 | AG37: 0 | AH37: 0 | AI37: 0 | AJ37: 0 | AK37: 41 | AL37: 84 | AM37: 16 | AN37: 0 | AO37: 0 | AP37: 3 | AQ37: RÉPUBLIQUE EN MARCHE conduite par N. LOISEAU | AR37: 586
A38: =GE!A74:D74 -> 32 | B38: Hugo, élémentaire | C38: 8-1 | D38: 978 | F38: 570 | G38: 5 | H38: 5 | I38: 22 | J38: 0 | K38: 0 | L38: 1 | M38: 165 | N38: 0 | O38: 0 | P38: 0 | Q38: 8 | R38: 0 | S38: 11 | T38: 44 | U38: 4 | V38: 0 | W38: 16 | X38: 1 | Y38: 0 | Z38: 0 | AA38: 15 | AB38: 5 | AC38: 22 | AD38: 0 | AE38: 49 | AF38: 0 | AG38: 0 | AH38: 0 | AI38: 0 | AJ38: 2 | AK38: 47 | AL38: 132 | AM38: 8 | AN38: 1 | AO38: 0 | AP38: 7 | AQ38: RÉPUBLIQUE EN MARCHE conduite par N. LOISEAU | AR38: 560
A39: =GE!A76:D76 -> 33 | B39: Camus, maternelle | C39: 8-1 | D39: 1162 | F39: 579 | G39: 14 | H39: 8 | I39: 42 | J39: 0 | K39: 0 | L39: 2 | M39: 150 | N39: 0 | O39: 2 | P39: 0 | Q39: 9 | R39: 0 | S39: 11 | T39: 42 | U39: 0 | V39: 0 | W39: 20 | X39: 0 | Y39: 0 | Z39: 1 | AA39: 13 | AB39: 7 | AC39: 19 | AD39: 0 | AE39: 74 | AF39: 0 | AG39: 0 | AH39: 0 | AI39: 0 | AJ39: 0 | AK39: 50 | AL39: 92 | AM39: 16 | AN39: 2 | AO39: 0 | AP39: 5 | AQ39: RÉPUBLIQUE EN MARCHE conduite par N. LOISEAU | AR39: 557
A40: =GE!A78:D78 -> 34 | B40: Guiblets | C40: 8-2 | D40: 1019 | F40: 437 | G40: 9 | H40: 14 | I40: 33 | J40: 0 | K40: 0 | L40: 0 | M40: 109 | N40: 0 | O40: 1 | P40: 0 | Q40: 9 | R40: 0 | S40: 15 | T40: 27 | U40: 0 | V40: 0 | W40: 15 | X40: 0 | Y40: 0 | Z40: 2 | AA40: 10 | AB40: 7 | AC40: 12 | AD40: 0 | AE40: 68 | AF40: 0 | AG40: 0 | AH40: 0 | AI40: 0 | AJ40: 0 | AK40: 39 | AL40: 44 | AM40: 13 | AN40: 1 | AO40: 1 | AP40: 8 | AQ40: RÉPUBLIQUE EN MARCHE conduite par N. LOISEAU | AR40: 414
A41: =GE!A80:D80 -> 35 | B41: Casalis, élémentaire | C41: 8-2 | D41: 637 | F41: 210 | G41: 5 | H41: 3 | I41: 36 | J41: 0 | K41: 0 | L41: 0 | M41: 34 | N41: 0 | O41: 1 | P41: 0 | Q41: 5 | R41: 0 | S41: 2 | T41: 15 | U41: 1 | V41: 0 | W41: 5 | X41: 0 | Y41: 0 | Z41: 0 | AA41: 9 | AB41: 5 | AC41: 13 | AD41: 0 | AE41: 32 | AF41: 0 | AG41: 0 | AH41: 0 | AI41: 0 | AJ41: 2 | AK41: 12 | AL41: 20 | AM41: 6 | AN41: 0 | AO41: 0 | AP41: 4 | AQ41: FRANCE INSOUMISE conduite par M. AUBRY | AR41: 202
A42: =GE!A82:D82 -> 36 | B42: Guiblets | C42: 8-2 | D42: 748 | F42: 258 | G42: 6 | H42: 5 | I42: 31 | J42: 0 | K42: 0 | L42: 0 | M42: 41 | N42: 0 | O42: 0 | P42: 0 | Q42: 15 | R42: 0 | S42: 8 | T42: 14 | U42: 0 | V42: 0 | W42: 8 | X42: 0 | Y42: 0 | Z42: 2 | AA42: 13 | AB42: 4 | AC42: 19 | AD42: 0 | AE42: 43 | AF42: 0 | AG42: 0 | AH42: 0 | AI42: 0 | AJ42: 1 | AK42: 14 | AL42: 26 | AM42: 7 | AN42: 0 | AO42: 0 | AP42: 1 | AQ42: RÉPUBLIQUE EN MARCHE conduite par N. LOISEAU | AR42: 247
A43: =GE!A84:D84 -> 37 | B43: Casalis, maternelle | C43: 8-2 | D43: 1023 | F43: 309 | G43: 5 | H43: 7 | I43: 55 | J43: 0 | K43: 0 | L43: 1 | M43: 42 | N43: 0 | O43: 0 | P43: 0 | Q43: 5 | R43: 0 | S43: 2 | T43: 21 | U43: 0 | V43: 0 | W43: 2 | X43: 0 | Y43: 0 | Z43: 4 | AA43: 9 | AB43: 7 | AC43: 24 | AD43: 0 | AE43: 53 | AF43: 0 | AG43: 0 | AH43: 0 | AI43: 0 | AJ43: 0 | AK43: 11 | AL43: 32 | AM43: 6 | AN43: 3 | AO43: 2 | AP43: 18 | AQ43: FRANCE INSOUMISE conduite par M. AUBRY | AR43: 297
A44: =GE!A86:D86 -> 38 | B44: Jeu de paume | C44: 8-2 | D44: 807 | F44: 266 | G44: 6 | H44: 11 | I44: 38 | J44: 0 | K44: 0 | L44: 0 | M44: 45 | N44: 0 | O44: 1 | P44: 0 | Q44: 1 | R44: 0 | S44: 4 | T44: 24 | U44: 0 | V44: 0 | W44: 7 | X44: 0 | Y44: 0 | Z44: 1 | AA44: 16 | AB44: 4 | AC44: 21 | AD44: 0 | AE44: 39 | AF44: 0 | AG44: 0 | AH44: 0 | AI44: 0 | AJ44: 0 | AK44: 11 | AL44: 22 | AM44: 6 | AN44: 2 | AO44: 2 | AP44: 5 | AQ44: RÉPUBLIQUE EN MARCHE conduite par N. LOISEAU | AR44: 249
A45: =GE!A88:D88 -> 39 | B45: Jeu de paume | C45: 8-2 | D45: 1178 | F45: 466 | G45: 7 | H45: 10 | I45: 63 | J45: 0 | K45: 0 | L45: 1 | M45: 74 | N45: 0 | O45: 1 | P45: 0 | Q45: 7 | R45: 0 | S45: 2 | T45: 41 | U45: 0 | V45: 0 | W45: 21 | X45: 0 | Y45: 0 | Z45: 3 | AA45: 7 | AB45: 4 | AC45: 13 | AD45: 0 | AE45: 86 | AF45: 0 | AG45: 0 | AH45: 1 | AI45: 0 | AJ45: 0 | AK45: 22 | AL45: 54 | AM45: 23 | AN45: 0 | AO45: 0 | AP45: 26 | AQ45: RÉPUBLIQUE EN MARCHE conduite par N. LOISEAU | AR45: 449
A46: =GE!A90:D90 -> 40 | B46: Savignat, maternelle | C46: 8-2 | D46: 929 | F46: 273 | G46: 7 | H46: 9 | I46: 29 | J46: 0 | K46: 0 | L46: 0 | M46: 33 | N46: 0 | O46: 1 | P46: 0 | Q46: 2 | R46: 0 | S46: 6 | T46: 28 | U46: 0 | V46: 0 | W46: 6 | X46: 0 | Y46: 0 | Z46: 0 | AA46: 13 | AB46: 5 | AC46: 21 | AD46: 0 | AE46: 38 | AF46: 0 | AG46: 0 | AH46: 0 | AI46: 0 | AJ46: 2 | AK46: 18 | AL46: 25 | AM46: 4 | AN46: 1 | AO46: 0 | AP46: 25 | AQ46: RÉPUBLIQUE EN MARCHE conduite par N. LOISEAU | AR46: 257
A47: =GE!A92:D92 -> 41 | B47: Savignat, élémentaire | C47: 8-2 | D47: 865 | F47: 358 | G47: 10 | H47: 9 | I47: 40 | J47: 0 | K47: 0 | L47: 1 | M47: 51 | N47: 0 | O47: 3 | P47: 0 | Q47: 6 | R47: 0 | S47: 8 | T47: 28 | U47: 1 | V47: 0 | W47: 13 | X47: 0 | Y47: 0 | Z47: 0 | AA47: 16 | AB47: 6 | AC47: 14 | AD47: 0 | AE47: 69 | AF47: 0 | AG47: 0 | AH47: 0 | AI47: 0 | AJ47: 0 | AK47: 9 | AL47: 44 | AM47: 10 | AN47: 1 | AO47: 0 | AP47: 19 | AQ47: RÉPUBLIQUE EN MARCHE conduite par N. LOISEAU | AR47: 339
A48: =GE!A94:D94 -> 42 | B48: La Habette, élémentaire | C48: 8-2 | D48: 984 | F48: 342 | G48: 7 | H48: 12 | I48: 59 | J48: 0 | K48: 0 | L48: 2 | M48: 40 | N48: 0 | O48: 3 | P48: 0 | Q48: 15 | R48: 0 | S48: 7 | T48: 25 | U48: 0 | V48: 0 | W48: 13 | X48: 0 | Y48: 0 | Z48: 3 | AA48: 17 | AB48: 5 | AC48: 15 | AD48: 0 | AE48: 68 | AF48: 0 | AG48: 0 | AH48: 0 | AI48: 0 | AJ48: 1 | AK48: 3 | AL48: 36 | AM48: 4 | AN48: 0 | AO48: 0 | AP48: 7 | AQ48: FRANCE INSOUMISE conduite par M. AUBRY | AR48: 323
A49: =GE!A96:D96 -> 43 | B49: La Habette, élémentaire | C49: 8-2 | D49: 1103 | F49: 373 | G49: 7 | H49: 6 | I49: 45 | J49: 0 | K49: 0 | L49: 1 | M49: 52 | N49: 0 | O49: 3 | P49: 0 | Q49: 10 | R49: 0 | S49: 4 | T49: 45 | U49: 0 | V49: 0 | W49: 8 | X49: 0 | Y49: 0 | Z49: 7 | AA49: 20 | AB49: 9 | AC49: 27 | AD49: 0 | AE49: 57 | AF49: 0 | AG49: 0 | AH49: 0 | AI49: 0 | AJ49: 2 | AK49: 12 | AL49: 34 | AM49: 12 | AN49: 0 | AO49: 1 | AP49: 11 | AQ49: RÉPUBLIQUE EN MARCHE conduite par N. LOISEAU | AR49: 360
A50: =GE!A98:D98 -> 44 | B50: Centre socio-culturel M.Rebérioux | C50: 8-2 | D50: 926 | F50: 369 | G50: 13 | H50: 5 | I50: 41 | J50: 0 | K50: 0 | L50: 4 | M50: 57 | N50: 0 | O50: 2 | P50: 0 | Q50: 7 | R50: 0 | S50: 3 | T50: 39 | U50: 0 | V50: 0 | W50: 4 | X50: 0 | Y50: 0 | Z50: 3 | AA50: 11 | AB50: 12 | AC50: 17 | AD50: 0 | AE50: 46 | AF50: 0 | AG50: 0 | AH50: 1 | AI50: 0 | AJ50: 2 | AK50: 15 | AL50: 51 | AM50: 9 | AN50: 0 | AO50: 2 | AP50: 25 | AQ50: RÉPUBLIQUE EN MARCHE conduite par N. LOISEAU | AR50: 351
A51: =GE!A100:D100 -> 45 | B51: Les Sarrazins, élémentaire | C51: 8-2 | D51: 1369 | F51: 544 | G51: 16 | H51: 7 | I51: 64 | J51: 0 | K51: 0 | L51: 1 | M51: 116 | N51: 0 | O51: 3 | P51: 0 | Q51: 11 | R51: 0 | S51: 11 | T51: 46 | U51: 1 | V51: 0 | W51: 5 | X51: 0 | Y51: 0 | Z51: 5 | AA51: 21 | AB51: 10 | AC51: 45 | AD51: 0 | AE51: 62 | AF51: 0 | AG51: 0 | AH51: 0 | AI51: 0 | AJ51: 2 | AK51: 12 | AL51: 79 | AM51: 8 | AN51: 2 | AO51: 2 | AP51: 15 | AQ51: RÉPUBLIQUE EN MARCHE conduite par N. LOISEAU | AR51: 521
A52: =GE!A102:D102 -> 46 | B52: 0 | C52: 0 | D52: 0 | L52: 100 | P52: 100 | AR52: =SUM($I52:$AM52) -> 200 | AS52: erreur
A53: =GE!A104:D104 -> 47 | B53: 0 | C53: 0 | D53: 0 | L53: 100 | P53: 100 | AR53: =SUM($I53:$AM53) -> 200 | AS53: erreur
A54: =GE!A106:D106 -> 48 | B54: 0 | C54: 0 | D54: 0 | P54: 100 | AR54: =SUM($I54:$AM54) -> 100 | AS54: erreur
A55: =GE!A108:D108 -> 49 | B55: 0 | C55: 0 | D55: 0 | O55: 100 | AR55: =SUM($I55:$AM55) -> 100 | AS55: erreur
A56: =GE!A110:D110 -> 50 | B56: 0 | C56: 0 | D56: 0 | O56: 100 | AR56: =SUM($I56:$AM56) -> 100 | AS56: erreur
O57: 100
O58: 100
A59: =GE!A135:D135 -> 0 | B59: Canton de Bonneuil | C59: bo | D59: 0 | O59: 100 | AR59: =SUM($I59:$AM59) -> 100 | AS59: =IF($AR59=($F59-($G59+$H59)),"","erreur") -> erreur
A60: =GE!A137:D137 -> 0 | B60: Canton de Champigny ouest | C60: ch-o | D60: 0 | O60: 100 | AR60: 100 | AS60: erreur
A61: =GE!A139:D139 -> 0 | B61: Canton de Saint-Maur centre | C61: sm-c | D61: 0 | O61: 100 | AR61: 100 | AS61: erreur
A62: =GE!A141:D141 -> 0 | B62: Canton de Saint-Maur ouest | C62: sm-o | D62: 0 | O62: 100 | AR62: 100 | AS62: erreur
A63: =GE!A143:D143 -> 0 | B63: Canton de Saint-Maur-La Varenne | C63: sm-v | D63: 0 | O63: 100 | AR63: 100 | AS63: erreur
A64: =GE!A145:D145 -> 0 | B64: y | C64: 0 | D64: 0 | O64: 100 | AR64: 100 | AS64: erreur
A65: =GE!A147:D147 -> 0 | B65: z | C65: 0 | D65: 0 | O65: 100 | AR65: 100 | AS65: erreur
O66: 100
O67: 100
O68: 100
A69: =GE!A149:D149 -> 0 | B69: Canton de Choisy-le-roi | C69: clr | D69: 0 | O69: 100 | AR69: =SUM($I69:$AM69) -> 100 | AS69: =IF($AR69=($F69-($G69+$H69)),"","erreur") -> erreur
A70: =GE!A151:D151 -> 0 | B70: Canton d'Orly | C70: or | D70: 0 | O70: 100 | AR70: =SUM($I70:$AM70) -> 100 | AS70: erreur
A71: =GE!A153:D153 -> 0 | B71: a | C71: 0 | D71: 0 | O71: 100 | AR71: 100 | AS71: erreur
A72: =GE!A155:D155 -> 0 | B72: b | C72: 0 | D72: 0 | O72: 100 | AR72: 100 | AS72: erreur
A73: =GE!A157:D157 -> 0 | B73: c | C73: 0 | D73: 0 | O73: 100 | AR73: 100 | AS73: erreur
A74: =GE!A159:D159 -> 0 | B74: d | C74: 0 | D74: 0 | O74: 100 | AR74: 100 | AS74: erreur
A75: =GE!A161:D161 -> 0 | B75: e | C75: 0 | D75: 0 | O75: 100 | AR75: 100 | AS75: erreur
O76: 100

Sheet Résultats 1V
A3: ='1CA'!A2 -> 0
B4: =NOW() -> 2019-05-26T23:05:47.390
A5: ='Saisie 1V'!A5:F5 -> n° | B5: bureaux | C5: canton - circonscription | D5: inscrits | E5: émarge- ments | F5: bulletins | G5: abstentions | H5: blancs | I5: nuls | J5: blancs et nuls | K5: exprimés | L5: ='Saisie 1V'!I5:AQ5 -> FRANCE INSOUMISE conduite par M. AUBRY | M5: FRANCE ROYALE conduite par R. de PREVOISIN | N5: LIGNE CLAIRE conduite par R. CAMUS | O5: PARTI PIRATE conduite par F. MARIE | P5: RÉPUBLIQUE EN MARCHE conduite par N. LOISEAU | Q5: DÉMOCRATIE RÉPRESENTATIVE conduite par H. TRAORE | R5: PATRIOTES ET GILETS JAUNES conduite par F. PHILIPPOT | S5: PACE conduite par A. ALEXANDRE | T5: URGENCE ÉCOLOGIE conduite par D. BOURG | U5: LISTE DE LA RECONQUÊTE conduite par V. VAUCLIN | V5: LES EUROPÉENS conduite par J-C. LAGARDE | W5: ENVIE D’EUROPE conduite par R. GLUCKSMANN | X5: PARTI FÉDÉRALISTE EUROPÉEN conduite par Y. GERNIGON | Y5: MOUVEMENT POUR L’INITIATIVE CITOYENNE conduite par G. HELGEN | Z5: LE COURAGE DE DÉFENDRE LES FRANÇAIS conduite par N. DUPONT-AIGNAN | AA5: ALLONS ENFANTS conduite par S. CAILLAUD | AB5: DÉCROISSANCE 2019 conduite par T. DELFEL | AC5: LUTTE OUVRIERE conduite par N. ARTHAUD | AD5: POUR L’EUROPE DES GENS conduite par I. BROSSAT | AE5: ENSEMBLE POUR LE FREXIT conduite par F. ASSELINEAU | AF5: LISTE CITOYENNE DU PRINTEMPS EUROPEEN conduite par B. HAMON | AG5: À VOIX ÉGALES conduite par N. TOMASINI | AH5: PRENEZ LE POUVOIR conduite par J. BARDELLA | AI5: NEUTRE ET ACTIF conduite par C. CORBET | AJ5: PARTI RÉVOLUTIONNAIRE COMMUNISTES conduite par A. SANCHEZ | AK5: ESPÉRANTO conduite par P. DIEUMEGARD | AL5: ÉVOLUTION CITOYENNE conduite par C. CHALANCON | AM5: ALLIANCE JAUNE conduite par F. LALANNE | AN5: UNION DE LA DROITE ET DU CENTRE conduite par F. X. BELLAMY | AO5: EUROPE ÉCOLOGIE conduite par Y. JADOT | AP5: PARTI ANIMALISTE conduite par H. THOUY | AQ5: ='Saisie 1V'!AN5:BV5 -> LES OUBLIÉS DE L’EUROPE conduite par O. BIDOU | AR5: ='Saisie 1V'!AO5:BW5 -> UNION DÉMOCRATIQUE conduite par C. Luc PERSON | AS5: ='Saisie 1V'!AP5:BX5 -> UNE EUROPE AU SERVICE DES PEUPLES conduite par N. AZERGUI
A6: N° | B6: BUR | C6: CAN | D6: INS | E6: EMA | F6: BUL | G6: ABS | J6: BLA | K6: EXP | L6: can1 | M6: can2 | N6: can3 | O6: can4 | P6: can5 | Q6: can6 | R6: can7 | S6: can8 | T6: can9 | U6: can10 | V6: can11 | W6: can12 | X6: can13 | Y6: can14 | Z6: can15 | AA6: can16 | AB6: can17 | AC6: can18 | AD6: can19 | AE6: can20 | AF6: can21 | AG6: can22 | AH6: can23 | AI6: can24 | AJ6: can25 | AK6: can26 | AL6: can27 | AM6: can28 | AN6: can29 | AO6: can30 | AP6: can31 | AQ6: can32 | AR6: can33 | AS6: can34
A7: =GE!A12:D111 -> 1 | B7: Hôtel de ville, salle 1 | C7: 7-2 | D7: 921 | E7: ='Saisie 1V'!E7:F7 -> 0 | F7: 405 | G7: =D7-F7 -> 516 | H7: ='Saisie 1V'!G7 -> 4 | I7: ='Saisie 1V'!H7 -> 4 | J7: =H7+I7 -> 8 | K7: =F7-J7 -> 397 | L7: ='Saisie 1V'!I7:AM7 -> 23 | M7: 0 | N7: 0 | O7: 1 | P7: 119 | Q7: 0 | R7: 0 | S7: 0 | T7: 7 | U7: 0 | V7: 11 | W7: 45 | X7: 0 | Y7: 0 | Z7: 4 | AA7: 0 | AB7: 0 | AC7: 5 | AD7: 11 | AE7: 19 | AF7: 19 | AG7: 2 | AH7: 36 | AI7: 0 | AJ7: 0 | AK7: 0 | AL7: 0 | AM7: 0 | AN7: 46 | AO7: 43 | AP7: 1 | AQ7: ='Saisie 1V'!AN7:BR7 -> 1 | AR7: ='Saisie 1V'!AO7:BS7 -> 0 | AS7: ='Saisie 1V'!AP7:BT7 -> 4
A8: 0 | B8: 0 | C8: 0 | D8: 0 | E8: =E7/D7 -> 0 | F8: =IF(F7=0,"",F7/D7) -> 0.4397394137 | G8: =IF(G7=0,"",G7/$D$7) -> 0.5602605863 | H8: =IF(H7=0,"",H7/$F$7) -> 0.00987654321 | I8: =IF(I7=0,"",I7/$F$7) -> 0.00987654321 | J8: =IF(J7=0,"",J7/$F$7) -> 0.01975308642 | L8: =L7/K7 -> 0.05793450882 | M8: =M7/K7 -> 0 | N8: =N7/K7 -> 0 | O8: =O7/K7 -> 0.002518891688 | P8: =P7/K7 -> 0.2997481108 | Q8: =Q7/K7 -> 0 | R8: =R7/K7 -> 0 | S8: =S7/$K$7 -> 0 | T8: 0.01763224181 | U8: 0 | V8: 0.02770780856 | W8: 0.1133501259 | X8: 0 | Y8: 0 | Z8: 0.01007556675 | AA8: 0 | AB8: 0 | AC8: 0.01259445844 | AD8: 0.02770780856 | AE8: 0.04785894207 | AF8: 0.04785894207 | AG8: 0.005037783375 | AH8: 0.09068010076 | AI8: 0 | AJ8: 0 | AK8: =AK7/$K$7 -> 0 | AL8: 0 | AM8: 0 | AN8: 0.1158690176 | AO8: 0.1083123426 | AP8: 0.002518891688 | AQ8: =AQ7/$K$7 -> 0.002518891688 | AR8: 0 | AS8: 0.01007556675
A9: 2 | B9: Hôtel de ville, salle 2 | C9: 7-2 | D9: 899 | E9: ='Saisie 1V'!E8:F8 -> 0 | F9: 432 | G9: =D9-F9 -> 467 | H9: ='Saisie 1V'!G8 -> 1 | I9: ='Saisie 1V'!H8 -> 1 | J9: =H9+I9 -> 2 | K9: =F9-J9 -> 430 | L9: ='Saisie 1V'!I8:AM8 -> 21 | M9: 1 | N9: 0 | O9: 4 | P9: 149 | Q9: 0 | R9: 0 | S9: 0 | T9: 10 | U9: 0 | V9: 12 | W9: 25 | X9: 1 | Y9: 0 | Z9: 7 | AA9: 0 | AB9: 0 | AC9: 4 | AD9: 9 | AE9: 4 | AF9: 12 | AG9: 0 | AH9: 45 | AI9: 0 | AJ9: 0 | AK9: 0 | AL9: 0 | AM9: 1 | AN9: 51 | AO9: 56 | AP9: 12 | AQ9: ='Saisie 1V'!AN8:BR8 -> 1 | AR9: ='Saisie 1V'!AO8:BS8 -> 0 | AS9: ='Saisie 1V'!AP8:BT8 -> 5
A10: 0 | B10: 0 | C10: 0 | D10: 0 | E10: =E9/D9 -> 0 | F10: =IF(F9=0,"",F9/D9) -> 0.4805339266 | G10: =IF(G9=0,"",G9/$D$9) -> 0.5194660734 | H10: =IF(H9=0,"",H9/$F$9) -> 0.002314814815 | I10: =IF(I9=0,"",I9/$F$9) -> 0.002314814815 | J10: =IF(J9=0,"",J9/$F$9) -> 0.00462962963 | L10: =L9/$K$9 -> 0.0488372093 | M10: 0.002325581395 | N10: 0 | O10: 0.009302325581 | P10: 0.3465116279 | Q10: 0 | R10: 0 | S10: 0 | T10: 0.02325581395 | U10: 0 | V10: 0.02790697674 | W10: 0.05813953488 | X10: 0.002325581395 | Y10: 0 | Z10: 0.01627906977 | AA10: 0 | AB10: 0 | AC10: 0.009302325581 | AD10: 0.02093023256 | AE10: 0.009302325581 | AF10: 0.02790697674 | AG10: 0 | AH10: 0.1046511628 | AI10: 0 | AJ10: 0 | AK10: =AK9/$K$9 -> 0 | AL10: 0 | AM10: 0.002325581395 | AN10: 0.1186046512 | AO10: 0.1302325581 | AP10: 0.02790697674 | AQ10: =AQ9/$K$9 -> 0.002325581395 | AR10: 0 | AS10: 0.01162790698
A11: 3 | B11: Mendès-France, maternelle | C11: 7-2 | D11: 884 | E11: ='Saisie 1V'!E9:F9 -> 0 | F11: 396 | G11: =D11-F11 -> 488 | H11: ='Saisie 1V'!G9 -> 10 | I11: ='Saisie 1V'!H9 -> 14 | J11: =H11+I11 -> 24 | K11: =F11-J11 -> 372 | L11: ='Saisie 1V'!I9:AM9 -> 48 | M11: 0 | N11: 0 | O11: 5 | P11: 67 | Q11: 0 | R11: 1 | S11: 0 | T11: 15 | U11: 0 | V11: 5 | W11: 41 | X11: 0 | Y11: 0 | Z11: 5 | AA11: 1 | AB11: 3 | AC11: 5 | AD11: 8 | AE11: 7 | AF11: 17 | AG11: 0 | AH11: 39 | AI11: 0 | AJ11: 0 | AK11: 1 | AL11: 0 | AM11: 3 | AN11: 37 | AO11: 39 | AP11: 12 | AQ11: ='Saisie 1V'!AN9:BR9 -> 2 | AR11: ='Saisie 1V'!AO9:BS9 -> 2 | AS11: ='Saisie 1V'!AP9:BT9 -> 9
A12: 0 | B12: 0 | C12: 0 | D12: 0 | E12: =E11/D11 -> 0 | F12: =IF(F11=0,"",F11/D11) -> 0.4479638009 | G12: =IF(G11=0,"",G11/$D$11) -> 0.5520361991 | H12: =IF(H11=0,"",H11/$F$11) -> 0.02525252525 | I12: =IF(I11=0,"",I11/$F$11) -> 0.03535353535 | J12: =IF(J11=0,"",J11/$F$11) -> 0.06060606061 | L12: =L11/$K$11 -> 0.1290322581 | M12: 0 | N12: 0 | O12: 0.01344086022 | P12: 0.1801075269 | Q12: 0 | R12: 0.002688172043 | S12: 0 | T12: 0.04032258065 | U12: 0 | V12: 0.01344086022 | W12: 0.1102150538 | X12: 0 | Y12: 0 | Z12: 0.01344086022 | AA12: 0.002688172043 | AB12: 0.008064516129 | AC12: 0.01344086022 | AD12: 0.02150537634 | AE12: 0.0188172043 | AF12: 0.04569892473 | AG12: 0 | AH12: 0.1048387097 | AI12: 0 | AJ12: 0 | AK12: =AK11/$K$11 -> 0.002688172043 | AL12: 0 | AM12: 0.008064516129 | AN12: 0.09946236559 | AO12: 0.1048387097 | AP12: 0.03225806452 | AQ12: =AQ11/$K$11 -> 0.005376344086 | AR12: 0.005376344086 | AS12: 0.02419354839
A13: 4 | B13: Defferre, maternelle | C13: 7-2 | D13: 958 | E13: ='Saisie 1V'!E10:F10 -> 0 | F13: 394 | G13: =D13-F13 -> 564 | H13: ='Saisie 1V'!G10 -> 6 | I13: ='Saisie 1V'!H10 -> 10 | J13: =H13+I13 -> 16 | K13: =F13-J13 -> 378 | L13: ='Saisie 1V'!I10:AM10 -> 59 | M13: 0 | N13: 0 | O13: 23 | P13: 59 | Q13: 0 | R13: 1 | S13: 0 | T13: 5 | U13: 0 | V13: 6 | W13: 33 | X13: 0 | Y13: 0 | Z13: 18 | AA13: 0 | AB13: 0 | AC13: 5 | AD13: 9 | AE13: 2 | AF13: 23 | AG13: 0 | AH13: 45 | AI13: 0 | AJ13: 0 | AK13: 0 | AL13: 0 | AM13: 3 | AN13: 26 | AO13: 41 | AP13: 6 | AQ13: ='Saisie 1V'!AN10:BR10 -> 0 | AR13: ='Saisie 1V'!AO10:BS10 -> 0 | AS13: ='Saisie 1V'!AP10:BT10 -> 14
A14: 0 | B14: 0 | C14: 0 | D14: 0 | E14: =E13/D13 -> 0 | F14: =IF(F13=0,"",F13/D13) -> 0.4112734864 | G14: =IF(G13=0,"",G13/$D$13) -> 0.5887265136 | H14: =IF(H13=0,"",H13/$F$13) -> 0.0152284264 | I14: =IF(I13=0,"",I13/$F$13) -> 0.02538071066 | J14: =IF(J13=0,"",J13/$F$13) -> 0.04060913706 | L14: =L13/$K$13 -> 0.1560846561 | M14: 0 | N14: 0 | O14: 0.06084656085 | P14: 0.1560846561 | Q14: 0 | R14: 0.002645502646 | S14: 0 | T14: 0.01322751323 | U14: 0 | V14: 0.01587301587 | W14: 0.0873015873 | X14: 0 | Y14: 0 | Z14: 0.04761904762 | AA14: 0 | AB14: 0 | AC14: 0.01322751323 | AD14: 0.02380952381 | AE14: 0.005291005291 | AF14: 0.06084656085 | AG14: 0 | AH14: 0.119047619 | AI14: 0 | AJ14: 0 | AK14: =AK13/$K$13 -> 0 | AL14: 0 | AM14: 0.007936507937 | AN14: 0.06878306878 | AO14: 0.1084656085 | AP14: 0.01587301587 | AQ14: =AQ13/$K$13 -> 0 | AR14: 0 | AS14: 0.03703703704
A15: 5 | B15: Port, Maison de quartier | C15: 7-2 | D15: 1070 | E15: ='Saisie 1V'!E11:F11 -> 0 | F15: 429 | G15: =D15-F15 -> 641 | H15: ='Saisie 1V'!G11 -> 11 | I15: ='Saisie 1V'!H11 -> 5 | J15: =H15+I15 -> 16 | K15: =F15-J15 -> 413 | L15: ='Saisie 1V'!I11:AM11 -> 37 | M15: 0 | N15: 0 | O15: 2 | P15: 94 | Q15: 0 | R15: 1 | S15: 0 | T15: 10 | U15: 0 | V15: 5 | W15: 35 | X15: 1 | Y15: 0 | Z15: 12 | AA15: 0 | AB15: 0 | AC15: 3 | AD15: 11 | AE15: 13 | AF15: 18 | AG15: 1 | AH15: 48 | AI15: 0 | AJ15: 0 | AK15: 0 | AL15: 0 | AM15: 0 | AN15: 36 | AO15: 55 | AP15: 11 | AQ15: ='Saisie 1V'!AN11:BR11 -> 2 | AR15: ='Saisie 1V'!AO11:BS11 -> 3 | AS15: ='Saisie 1V'!AP11:BT11 -> 15
A16: 0 | B16: 0 | C16: 0 | D16: 0 | E16: =E15/D15 -> 0 | F16: =IF(F15=0,"",F15/D15) -> 0.4009345794 | G16: =IF(G15=0,"",G15/$D$15) -> 0.5990654206 | H16: =IF(H15=0,"",H15/$F$15) -> 0.02564102564 | I16: =IF(I15=0,"",I15/$F$15) -> 0.01165501166 | J16: =IF(J15=0,"",J15/$F$15) -> 0.0372960373 | L16: =L15/$K$15 -> 0.08958837772 | M16: 0 | N16: 0 | O16: 0.004842615012 | P16: 0.2276029056 | Q16: 0 | R16: 0.002421307506 | S16: 0 | T16: 0.02421307506 | U16: 0 | V16: 0.01210653753 | W16: 0.08474576271 | X16: 0.002421307506 | Y16: 0 | Z16: 0.02905569007 | AA16: 0 | AB16: 0 | AC16: 0.007263922518 | AD16: 0.02663438257 | AE16: 0.03147699758 | AF16: 0.04358353511 | AG16: 0.002421307506 | AH16: 0.1162227603 | AI16: 0 | AJ16: 0 | AK16: =AK15/$K$15 -> 0 | AL16: 0 | AM16: 0 | AN16: 0.08716707022 | AO16: 0.1331719128 | AP16: 0.02663438257 | AQ16: =AQ15/$K$15 -> 0.004842615012 | AR16: 0.007263922518 | AS16: 0.03631961259
A17: 6 | B17: La Source, élémentaire | C17: 7-2 | D17: 965 | E17: ='Saisie 1V'!E12:F12 -> 0 | F17: 404 | G17: =D17-F17 -> 561 | H17: ='Saisie 1V'!G12 -> 12 | I17: ='Saisie 1V'!H12 -> 6 | J17: =H17+I17 -> 18 | K17: =F17-J17 -> 386 | L17: ='Saisie 1V'!I12:AM12 -> 49 | M17: 0 | N17: 3 | O17: 0 | P17: 79 | Q17: 0 | R17: 1 | S17: 0 | T17: 10 | U17: 0 | V17: 12 | W17: 35 | X17: 0 | Y17: 0 | Z17: 13 | AA17: 0 | AB17: 0 | AC17: 2 | AD17: 11 | AE17: 11 | AF17: 13 | AG17: 0 | AH17: 55 | AI17: 0 | AJ17: 0 | AK17: 0 | AL17: 0 | AM17: 2 | AN17: 22 | AO17: 45 | AP17: 11 | AQ17: ='Saisie 1V'!AN12:BR12 -> 2 | AR17: ='Saisie 1V'!AO12:BS12 -> 0 | AS17: ='Saisie 1V'!AP12:BT12 -> 10
A18: 0 | B18: 0 | C18: 0 | D18: 0 | E18: =E17/D17 -> 0 | F18: =IF(F17=0,"",F17/D17) -> 0.4186528497 | G18: =IF(G17=0,"",G17/$D$17) -> 0.5813471503 | H18: =IF(H17=0,"",H17/$F$17) -> 0.0297029703 | I18: =IF(I17=0,"",I17/$F$17) -> 0.01485148515 | J18: =IF(J17=0,"",J17/$F$17) -> 0.04455445545 | L18: =L17/$K$17 -> 0.1269430052 | M18: 0 | N18: 0.007772020725 | O18: 0 | P18: 0.2046632124 | Q18: 0 | R18: 0.002590673575 | S18: 0 | T18: 0.02590673575 | U18: 0 | V18: 0.0310880829 | W18: 0.09067357513 | X18: 0 | Y18: 0 | Z18: 0.03367875648 | AA18: 0 | AB18: 0 | AC18: 0.00518134715 | AD18: 0.02849740933 | AE18: 0.02849740933 | AF18: 0.03367875648 | AG18: 0 | AH18: 0.1424870466 | AI18: 0 | AJ18: 0 | AK18: =AK17/$K$17 -> 0 | AL18: 0 | AM18: 0.00518134715 | AN18: 0.05699481865 | AO18: 0.1165803109 | AP18: 0.02849740933 | AQ18: =AQ17/$K$17 -> 0.00518134715 | AR18: 0 | AS18: 0.02590673575
A19: 7 | B19: Césaire, élementaire | C19: 7-2 | D19: 1310 | E19: ='Saisie 1V'!E13:F13 -> 0 | F19: 604 | G19: =D19-F19 -> 706 | H19: ='Saisie 1V'!G13 -> 16 | I19: ='Saisie 1V'!H13 -> 5 | J19: =H19+I19 -> 21 | K19: =F19-J19 -> 583 | L19: ='Saisie 1V'!I13:AM13 -> 64 | M19: 0 | N19: 0 | O19: 1 | P19: 161 | Q19: 0 | R19: 1 | S19: 1 | T19: 7 | U19: 0 | V19: 10 | W19: 41 | X19: 1 | Y19: 0 | Z19: 24 | AA19: 0 | AB19: 0 | AC19: 4 | AD19: 21 | AE19: 12 | AF19: 42 | AG19: 0 | AH19: 56 | AI19: 0 | AJ19: 0 | AK19: 1 | AL19: 0 | AM19: 0 | AN19: 38 | AO19: 69 | AP19: 5 | AQ19: ='Saisie 1V'!AN13:BR13 -> 3 | AR19: ='Saisie 1V'!AO13:BS13 -> 0 | AS19: ='Saisie 1V'!AP13:BT13 -> 21
A20: 0 | B20: 0 | C20: 0 | D20: 0 | E20: =E19/D19 -> 0 | F20: =IF(F19=0,"",F19/D19) -> 0.4610687023 | G20: =IF(G19=0,"",G19/$D$19) -> 0.5389312977 | H20: =IF(H19=0,"",H19/$F$19) -> 0.02649006623 | I20: =IF(I19=0,"",I19/$F$19) -> 0.008278145695 | J20: =IF(J19=0,"",J19/$F$19) -> 0.03476821192 | L20: =L19/$K$19 -> 0.1097770154 | M20: 0 | N20: 0 | O20: 0.001715265866 | P20: 0.2761578045 | Q20: 0 | R20: 0.001715265866 | S20: 0.001715265866 | T20: 0.01200686106 | U20: 0 | V20: 0.01715265866 | W20: 0.07032590051 | X20: 0.001715265866 | Y20: 0 | Z20: 0.04116638079 | AA20: 0 | AB20: 0 | AC20: 0.006861063465 | AD20: 0.03602058319 | AE20: 0.02058319039 | AF20: 0.07204116638 | AG20: 0 | AH20: 0.09605488851 | AI20: 0 | AJ20: 0 | AK20: =AK19/$K$19 -> 0.001715265866 | AL20: 0 | AM20: 0 | AN20: 0.06518010292 | AO20: 0.1183533448 | AP20: 0.008576329331 | AQ20: =AQ19/$K$19 -> 0.005145797599 | AR20: 0 | AS20: 0.03602058319
A21: 8 | B21: Gerbault | C21: 7-2 | D21: 1101 | E21: ='Saisie 1V'!E14:F14 -> 0 | F21: 512 | G21: =D21-F21 -> 589 | H21: ='Saisie 1V'!G14 -> 10 | I21: ='Saisie 1V'!H14 -> 5 | J21: =H21+I21 -> 15 | K21: =F21-J21 -> 497 | L21: ='Saisie 1V'!I14:AM14 -> 28 | M21: 0 | N21: 0 | O21: 3 | P21: 145 | Q21: 0 | R21: 0 | S21: 0 | T21: 10 | U21: 0 | V21: 17 | W21: 38 | X21: 0 | Y21: 0 | Z21: 15 | AA21: 0 | AB21: 0 | AC21: 4 | AD21: 24 | AE21: 14 | AF21: 24 | AG21: 0 | AH21: 58 | AI21: 0 | AJ21: 0 | AK21: 0 | AL21: 0 | AM21: 1 | AN21: 51 | AO21: 51 | AP21: 8 | AQ21: ='Saisie 1V'!AN14:BR14 -> 0 | AR21: ='Saisie 1V'!AO14:BS14 -> 1 | AS21: ='Saisie 1V'!AP14:BT14 -> 5
A22: 0 | B22: 0 | C22: 0 | D22: 0 | E22: =E21/D21 -> 0 | F22: =IF(F21=0,"",F21/D21) -> 0.4650317893 | G22: =IF(G21=0,"",G21/$D$21) -> 0.5349682107 | H22: =IF(H21=0,"",H21/$F$21) -> 0.01953125 | I22: =IF(I21=0,"",I21/$F$21) -> 0.009765625 | J22: =IF(J21=0,"",J21/$F$21) -> 0.029296875 | L22: =L21/$K$21 -> 0.05633802817 | M22: 0 | N22: 0 | O22: 0.006036217304 | P22: 0.291750503 | Q22: 0 | R22: 0 | S22: 0 | T22: 0.02012072435 | U22: 0 | V22: 0.03420523139 | W22: 0.07645875252 | X22: 0 | Y22: 0 | Z22: 0.03018108652 | AA22: 0 | AB22: 0 | AC22: 0.008048289738 | AD22: 0.04828973843 | AE22: 0.02816901408 | AF22: 0.04828973843 | AG22: 0 | AH22: 0.1167002012 | AI22: 0 | AJ22: 0 | AK22: =AK21/$K$21 -> 0 | AL22: 0 | AM22: 0.002012072435 | AN22: 0.1026156942 | AO22: 0.1026156942 | AP22: 0.01609657948 | AQ22: =AQ21/$K$21 -> 0 | AR22: 0.002012072435 | AS22: 0.01006036217
A23: 9 | B23: Chateaubriand, maternelle | C23: 7-2 | D23: 1106 | E23: ='Saisie 1V'!E15:F15 -> 0 | F23: 510 | G23: =D23-F23 -> 596 | H23: ='Saisie 1V'!G15 -> 15 | I23: ='Saisie 1V'!H15 -> 14 | J23: =H23+I23 -> 29 | K23: =F23-J23 -> 481 | L23: ='Saisie 1V'!I15:AM15 -> 49 | M23: 0 | N23: 0 | O23: 2 | P23: 97 | Q23: 0 | R23: 4 | S23: 0 | T23: 11 | U23: 0 | V23: 10 | W23: 39 | X23: 1 | Y23: 0 | Z23: 20 | AA23: 0 | AB23: 0 | AC23: 3 | AD23: 15 | AE23: 11 | AF23: 37 | AG23: 0 | AH23: 75 | AI23: 0 | AJ23: 0 | AK23: 2 | AL23: 0 | AM23: 5 | AN23: 20 | AO23: 60 | AP23: 8 | AQ23: ='Saisie 1V'!AN15:BR15 -> 1 | AR23: ='Saisie 1V'!AO15:BS15 -> 0 | AS23: ='Saisie 1V'!AP15:BT15 -> 11
A24: 0 | B24: 0 | C24: 0 | D24: 0 | E24: =E23/D23 -> 0 | F24: =IF(F23=0,"",F23/D23) -> 0.4611211573 | G24: =IF(G23=0,"",G23/$D$23) -> 0.5388788427 | H24: =IF(H23=0,"",H23/$F$23) -> 0.02941176471 | I24: =IF(I23=0,"",I23/$F$23) -> 0.02745098039 | J24: =IF(J23=0,"",J23/$F$23) -> 0.0568627451 | L24: =L23/$K$23 -> 0.1018711019 | M24: 0 | N24: 0 | O24: 0.004158004158 | P24: 0.2016632017 | Q24: 0 | R24: 0.008316008316 | S24: 0 | T24: 0.02286902287 | U24: 0 | V24: 0.02079002079 | W24: 0.08108108108 | X24: 0.002079002079 | Y24: 0 | Z24: 0.04158004158 | AA24: 0 | AB24: 0 | AC24: 0.006237006237 | AD24: 0.03118503119 | AE24: 0.02286902287 | AF24: 0.07692307692 | AG24: 0 | AH24: 0.1559251559 | AI24: 0 | AJ24: 0 | AK24: =AK23/$K$23 -> 0.004158004158 | AL24: 0 | AM24: 0.0103950104 | AN24: 0.04158004158 | AO24: 0.1247401247 | AP24: 0.01663201663 | AQ24: =AQ23/$K$23 -> 0.002079002079 | AR24: 0 | AS24: 0.02286902287
A25: 10 | B25: Allezard, maternelle | C25: 7-1 | D25: 1090 | E25: ='Saisie 1V'!E16:F16 -> 0 | F25: 481 | G25: =D25-F25 -> 609 | H25: ='Saisie 1V'!G16 -> 9 | I25: ='Saisie 1V'!H16 -> 7 | J25: =H25+I25 -> 16 | K25: =F25-J25 -> 465 | L25: ='Saisie 1V'!I16:AM16 -> 51 | M25: 0 | N25: 0 | O25: 1 | P25: 108 | Q25: 0 | R25: 0 | S25: 0 | T25: 13 | U25: 0 | V25: 15 | W25: 28 | X25: 0 | Y25: 0 | Z25: 14 | AA25: 0 | AB25: 1 | AC25: 3 | AD25: 7 | AE25: 12 | AF25: 26 | AG25: 0 | AH25: 86 | AI25: 0 | AJ25: 0 | AK25: 0 | AL25: 0 | AM25: 8 | AN25: 23 | AO25: 61 | AP25: 8 | AQ25: ='Saisie 1V'!AN16:BR16 -> 0 | AR25: ='Saisie 1V'!AO16:BS16 -> 0 | AS25: ='Saisie 1V'!AP16:BT16 -> 0
A26: 0 | B26: 0 | C26: 0 | D26: 0 | E26: =E25/D25 -> 0 | F26: =IF(F25=0,"",F25/D25) -> 0.4412844037 | G26: =IF(G25=0,"",G25/$D$25) -> 0.5587155963 | H26: =IF(H25=0,"",H25/$F$25) -> 0.01871101871 | I26: =IF(I25=0,"",I25/$F$25) -> 0.01455301455 | J26: =IF(J25=0,"",J25/$F$25) -> 0.03326403326 | L26: =L25/$K$25 -> 0.1096774194 | M26: 0 | N26: 0 | O26: 0.002150537634 | P26: 0.2322580645 | Q26: 0 | R26: 0 | S26: 0 | T26: 0.02795698925 | U26: 0 | V26: 0.03225806452 | W26: 0.06021505376 | X26: 0 | Y26: 0 | Z26: 0.03010752688 | AA26: 0 | AB26: 0.002150537634 | AC26: 0.006451612903 | AD26: 0.01505376344 | AE26: 0.02580645161 | AF26: 0.05591397849 | AG26: 0 | AH26: 0.1849462366 | AI26: 0 | AJ26: 0 | AK26: =AK25/$K$25 -> 0 | AL26: 0 | AM26: 0.01720430108 | AN26: 0.04946236559 | AO26: 0.1311827957 | AP26: 0.01720430108 | AQ26: =AQ25/$K$25 -> 0 | AR26: 0 | AS26: 0
A27: 11 | B27: Allezard, élémentaire | C27: 7-1 | D27: 808 | E27: ='Saisie 1V'!E17:F17 -> 0 | F27: 386 | G27: =D27-F27 -> 422 | H27: ='Saisie 1V'!G17 -> 9 | I27: ='Saisie 1V'!H17 -> 7 | J27: =H27+I27 -> 16 | K27: =F27-J27 -> 370 | L27: ='Saisie 1V'!I17:AM17 -> 16 | M27: 0 | N27: 0 | O27: 2 | P27: 88 | Q27: 0 | R27: 1 | S27: 0 | T27: 7 | U27: 0 | V27: 14 | W27: 32 | X27: 1 | Y27: 0 | Z27: 14 | AA27: 0 | AB27: 0 | AC27: 1 | AD27: 20 | AE27: 7 | AF27: 10 | AG27: 0 | AH27: 63 | AI27: 0 | AJ27: 0 | AK27: 0 | AL27: 0 | AM27: 1 | AN27: 24 | AO27: 58 | AP27: 6 | AQ27: ='Saisie 1V'!AN17:BR17 -> 0 | AR27: ='Saisie 1V'!AO17:BS17 -> 0 | AS27: ='Saisie 1V'!AP17:BT17 -> 5
A28: 0 | B28: 0 | C28: 0 | D28: 0 | E28: =E27/D27 -> 0 | F28: =IF(F27=0,"",F27/D27) -> 0.4777227723 | G28: =IF(G27=0,"",G27/$D$27) -> 0.5222772277 | H28: =IF(H27=0,"",H27/$F$27) -> 0.02331606218 | I28: =IF(I27=0,"",I27/$F$27) -> 0.01813471503 | J28: =IF(J27=0,"",J27/$F$27) -> 0.0414507772 | L28: =L27/$K$27 -> 0.04324324324 | M28: 0 | N28: 0 | O28: 0.005405405405 | P28: 0.2378378378 | Q28: 0 | R28: 0.002702702703 | S28: 0 | T28: 0.01891891892 | U28: 0 | V28: 0.03783783784 | W28: 0.08648648649 | X28: 0.002702702703 | Y28: 0 | Z28: 0.03783783784 | AA28: 0 | AB28: 0 | AC28: 0.002702702703 | AD28: 0.05405405405 | AE28: 0.01891891892 | AF28: 0.02702702703 | AG28: 0 | AH28: 0.1702702703 | AI28: 0 | AJ28: 0 | AK28: =AK27/$K$27 -> 0 | AL28: 0 | AM28: 0.002702702703 | AN28: 0.06486486486 | AO28: 0.1567567568 | AP28: 0.01621621622 | AQ28: =AQ27/$K$27 -> 0 | AR28: 0 | AS28: 0.01351351351
A29: 12 | B29: Hérédia, élementaire | C29: 7-2 | D29: 920 | E29: ='Saisie 1V'!E18:F18 -> 0 | F29: 430 | G29: =D29-F29 -> 490 | H29: ='Saisie 1V'!G18 -> 9 | I29: ='Saisie 1V'!H18 -> 8 | J29: =H29+I29 -> 17 | K29: =F29-J29 -> 413 | L29: ='Saisie 1V'!I18:AM18 -> 40 | M29: 0 | N29: 0 | O29: 4 | P29: 89 | Q29: 0 | R29: 3 | S29: 0 | T29: 6 | U29: 1 | V29: 13 | W29: 50 | X29: 1 | Y29: 0 | Z29: 11 | AA29: 0 | AB29: 0 | AC29: 2 | AD29: 15 | AE29: 7 | AF29: 18 | AG29: 0 | AH29: 52 | AI29: 0 | AJ29: 0 | AK29: 0 | AL29: 0 | AM29: 0 | AN29: 33 | AO29: 58 | AP29: 4 | AQ29: ='Saisie 1V'!AN18:BR18 -> 0 | AR29: ='Saisie 1V'!AO18:BS18 -> 0 | AS29: ='Saisie 1V'!AP18:BT18 -> 6
A30: 0 | B30: 0 | C30: 0 | D30: 0 | E30: =E29/D29 -> 0 | F30: =IF(F29=0,"",F29/D29) -> 0.4673913043 | G30: =IF(G29=0,"",G29/$D$29) -> 0.5326086957 | H30: =IF(H29=0,"",H29/$F$29) -> 0.02093023256 | I30: =IF(I29=0,"",I29/$F$29) -> 0.01860465116 | J30: =IF(J29=0,"",J29/$F$29) -> 0.03953488372 | L30: =L29/$K$29 -> 0.09685230024 | M30: 0 | N30: 0 | O30: 0.009685230024 | P30: 0.215496368 | Q30: 0 | R30: 0.007263922518 | S30: 0 | T30: 0.01452784504 | U30: 0.002421307506 | V30: 0.03147699758 | W30: 0.1210653753 | X30: 0.002421307506 | Y30: 0 | Z30: 0.02663438257 | AA30: 0 | AB30: 0 | AC30: 0.004842615012 | AD30: 0.03631961259 | AE30: 0.01694915254 | AF30: 0.04358353511 | AG30: 0 | AH30: 0.1259079903 | AI30: 0 | AJ30: 0 | AK30: =AK29/$K$29 -> 0 | AL30: 0 | AM30: 0 | AN30: 0.0799031477 | AO30: 0.1404358354 | AP30: 0.009685230024 | AQ30: =AQ29/$K$29 -> 0 | AR30: 0 | AS30: 0.01452784504
A31: 13 | B31: Péguy, élémentaire | C31: 7-2 | D31: 962 | E31: ='Saisie 1V'!E19:F19 -> 0 | F31: 390 | G31: =D31-F31 -> 572 | H31: ='Saisie 1V'!G19 -> 3 | I31: ='Saisie 1V'!H19 -> 3 | J31: =H31+I31 -> 6 | K31: =F31-J31 -> 384 | L31: ='Saisie 1V'!I19:AM19 -> 41 | M31: 0 | N31: 0 | O31: 1 | P31: 100 | Q31: 0 | R31: 2 | S31: 0 | T31: 6 | U31: 0 | V31: 15 | W31: 27 | X31: 0 | Y31: 0 | Z31: 15 | AA31: 0 | AB31: 0 | AC31: 3 | AD31: 11 | AE31: 5 | AF31: 20 | AG31: 0 | AH31: 49 | AI31: 0 | AJ31: 0 | AK31: 0 | AL31: 0 | AM31: 2 | AN31: 21 | AO31: 44 | AP31: 6 | AQ31: ='Saisie 1V'!AN19:BR19 -> 1 | AR31: ='Saisie 1V'!AO19:BS19 -> 0 | AS31: ='Saisie 1V'!AP19:BT19 -> 15
A32: 0 | B32: 0 | C32: 0 | D32: 0 | E32: =E31/D31 -> 0 | F32: =IF(F31=0,"",F31/D31) -> 0.4054054054 | G32: =IF(G31=0,"",G31/$D$31) -> 0.5945945946 | H32: =IF(H31=0,"",H31/$F$31) -> 0.007692307692 | I32: =IF(I31=0,"",I31/$F$31) -> 0.007692307692 | J32: =IF(J31=0,"",J31/$F$31) -> 0.01538461538 | L32: =L31/$K$31 -> 0.1067708333 | M32: 0 | N32: 0 | O32: 0.002604166667 | P32: 0.2604166667 | Q32: 0 | R32: 0.005208333333 | S32: 0 | T32: 0.015625 | U32: 0 | V32: 0.0390625 | W32: 0.0703125 | X32: 0 | Y32: 0 | Z32: 0.0390625 | AA32: 0 | AB32: 0 | AC32: 0.0078125 | AD32: 0.02864583333 | AE32: 0.01302083333 | AF32: 0.05208333333 | AG32: 0 | AH32: 0.1276041667 | AI32: 0 | AJ32: 0 | AK32: =AK31/$K$31 -> 0 | AL32: 0 | AM32: 0.005208333333 | AN32: 0.0546875 | AO32: 0.1145833333 | AP32: 0.015625 | AQ32: =AQ31/$K$31 -> 0.002604166667 | AR32: 0 | AS32: 0.0390625
A33: 14 | B33: Pascal, élémentaire | C33: 7-2 | D33: 977 | E33: ='Saisie 1V'!E20:F20 -> 0 | F33: 370 | G33: =D33-F33 -> 607 | H33: ='Saisie 1V'!G20 -> 12 | I33: ='Saisie 1V'!H20 -> 12 | J33: =H33+I33 -> 24 | K33: =F33-J33 -> 346 | L33: ='Saisie 1V'!I20:AM20 -> 28 | M33: 0 | N33: 0 | O33: 0 | P33: 75 | Q33: 0 | R33: 1 | S33: 0 | T33: 3 | U33: 0 | V33: 5 | W33: 22 | X33: 0 | Y33: 0 | Z33: 20 | AA33: 0 | AB33: 0 | AC33: 5 | AD33: 11 | AE33: 9 | AF33: 12 | AG33: 0 | AH33: 68 | AI33: 0 | AJ33: 0 | AK33: 0 | AL33: 0 | AM33: 2 | AN33: 20 | AO33: 37 | AP33: 8 | AQ33: ='Saisie 1V'!AN20:BR20 -> 0 | AR33: ='Saisie 1V'!AO20:BS20 -> 5 | AS33: ='Saisie 1V'!AP20:BT20 -> 15
A34: 0 | B34: 0 | C34: 0 | D34: 0 | E34: =E33/D33 -> 0 | F34: =IF(F33=0,"",F33/D33) -> 0.3787103378 | G34: =IF(G33=0,"",G33/$D$33) -> 0.6212896622 | H34: =IF(H33=0,"",H33/$F$33) -> 0.03243243243 | I34: =IF(I33=0,"",I33/$F$33) -> 0.03243243243 | J34: =IF(J33=0,"",J33/$F$33) -> 0.06486486486 | L34: =L33/$K$33 -> 0.08092485549 | M34: 0 | N34: 0 | O34: 0 | P34: 0.2167630058 | Q34: 0 | R34: 0.00289017341 | S34: 0 | T34: 0.008670520231 | U34: 0 | V34: 0.01445086705 | W34: 0.06358381503 | X34: 0 | Y34: 0 | Z34: 0.05780346821 | AA34: 0 | AB34: 0 | AC34: 0.01445086705 | AD34: 0.03179190751 | AE34: 0.02601156069 | AF34: 0.03468208092 | AG34: 0 | AH34: 0.1965317919 | AI34: 0 | AJ34: 0 | AK34: =AK33/$K$33 -> 0 | AL34: 0 | AM34: 0.005780346821 | AN34: 0.05780346821 | AO34: 0.1069364162 | AP34: 0.02312138728 | AQ34: =AQ33/$K$33 -> 0 | AR34: 0.01445086705 | AS34: 0.04335260116
A35: 15 | B35: Monge, élémentaire | C35: 7-2 | D35: 851 | E35: ='Saisie 1V'!E21:F21 -> 0 | F35: 418 | G35: =D35-F35 -> 433 | H35: ='Saisie 1V'!G21 -> 12 | I35: ='Saisie 1V'!H21 -> 5 | J35: =H35+I35 -> 17 | K35: =F35-J35 -> 401 | L35: ='Saisie 1V'!I21:AM21 -> 36 | M35: 0 | N35: 0 | O35: 1 | P35: 85 | Q35: 0 | R35: 0 | S35: 0 | T35: 8 | U35: 0 | V35: 6 | W35: 34 | X35: 0 | Y35: 0 | Z35: 10 | AA35: 0 | AB35: 0 | AC35: 5 | AD35: 20 | AE35: 7 | AF35: 17 | AG35: 0 | AH35: 56 | AI35: 0 | AJ35: 0 | AK35: 0 | AL35: 0 | AM35: 7 | AN35: 15 | AO35: 60 | AP35: 22 | AQ35: ='Saisie 1V'!AN21:BR21 -> 0 | AR35: ='Saisie 1V'!AO21:BS21 -> 2 | AS35: ='Saisie 1V'!AP21:BT21 -> 10
A36: 0 | B36: 0 | C36: 0 | D36: 0 | E36: =E35/D35 -> 0 | F36: =IF(F35=0,"",F35/D35) -> 0.491186839 | G36: =IF(G35=0,"",G35/$D$35) -> 0.508813161 | H36: =IF(H35=0,"",H35/$F$35) -> 0.02870813397 | I36: =IF(I35=0,"",I35/$F$35) -> 0.01196172249 | J36: =IF(J35=0,"",J35/$F$35) -> 0.04066985646 | L36: =L35/$K$35 -> 0.0897755611 | M36: 0 | N36: 0 | O36: 0.002493765586 | P36: 0.2119700748 | Q36: 0 | R36: 0 | S36: 0 | T36: 0.01995012469 | U36: 0 | V36: 0.01496259352 | W36: 0.08478802993 | X36: 0 | Y36: 0 | Z36: 0.02493765586 | AA36: 0 | AB36: 0 | AC36: 0.01246882793 | AD36: 0.04987531172 | AE36: 0.0174563591 | AF36: 0.04239401496 | AG36: 0 | AH36: 0.1396508728 | AI36: 0 | AJ36: 0 | AK36: =AK35/$K$35 -> 0 | AL36: 0 | AM36: 0.0174563591 | AN36: 0.03740648379 | AO36: 0.1496259352 | AP36: 0.05486284289 | AQ36: =AQ35/$K$35 -> 0 | AR36: 0.004987531172 | AS36: 0.02493765586
A37: 16 | B37: Monge, maternelle | C37: 7-2 | D37: 1002 | E37: ='Saisie 1V'!E22:F22 -> 0 | F37: 447 | G37: =D37-F37 -> 555 | H37: ='Saisie 1V'!G22 -> 8 | I37: ='Saisie 1V'!H22 -> 7 | J37: =H37+I37 -> 15 | K37: =F37-J37 -> 432 | L37: ='Saisie 1V'!I22:AM22 -> 42 | M37: 0 | N37: 0 | O37: 1 | P37: 98 | Q37: 0 | R37: 0 | S37: 0 | T37: 6 | U37: 0 | V37: 13 | W37: 26 | X37: 1 | Y37: 0 | Z37: 17 | AA37: 0 | AB37: 0 | AC37: 2 | AD37: 23 | AE37: 11 | AF37: 28 | AG37: 0 | AH37: 65 | AI37: 0 | AJ37: 0 | AK37: 1 | AL37: 0 | AM37: 2 | AN37: 34 | AO37: 45 | AP37: 5 | AQ37: ='Saisie 1V'!AN22:BR22 -> 0 | AR37: ='Saisie 1V'!AO22:BS22 -> 0 | AS37: ='Saisie 1V'!AP22:BT22 -> 12
A38: 0 | B38: 0 | C38: 0 | D38: 0 | E38: =E37/D37 -> 0 | F38: =IF(F37=0,"",F37/D37) -> 0.4461077844 | G38: =IF(G37=0,"",G37/$D$37) -> 0.5538922156 | H38: =IF(H37=0,"",H37/$F$37) -> 0.01789709172 | I38: =IF(I37=0,"",I37/$F$37) -> 0.01565995526 | J38: =IF(J37=0,"",J37/$F$37) -> 0.03355704698 | L38: =L37/$K$37 -> 0.09722222222 | M38: 0 | N38: 0 | O38: 0.002314814815 | P38: 0.2268518519 | Q38: 0 | R38: 0 | S38: 0 | T38: 0.01388888889 | U38: 0 | V38: 0.03009259259 | W38: 0.06018518519 | X38: 0.002314814815 | Y38: 0 | Z38: 0.03935185185 | AA38: 0 | AB38: 0 | AC38: 0.00462962963 | AD38: 0.05324074074 | AE38: 0.02546296296 | AF38: 0.06481481481 | AG38: 0 | AH38: 0.150462963 | AI38: 0 | AJ38: 0 | AK38: =AK37/$K$37 -> 0.002314814815 | AL38: 0 | AM38: 0.00462962963 | AN38: 0.0787037037 | AO38: 0.1041666667 | AP38: 0.01157407407 | AQ38: =AQ37/$K$37 -> 0 | AR38: 0 | AS38: 0.02777777778
A39: 17 | B39: Lagrange, élémentaire | C39: 7-2 | D39: 992 | E39: ='Saisie 1V'!E23:F23 -> 0 | F39: 476 | G39: =D39-F39 -> 516 | H39: ='Saisie 1V'!G23 -> 9 | I39: ='Saisie 1V'!H23 -> 5 | J39: =H39+I39 -> 14 | K39: =F39-J39 -> 462 | L39: ='Saisie 1V'!I23:AM23 -> 45 | M39: 0 | N39: 0 | O39: 0 | P39: 115 | Q39: 0 | R39: 2 | S39: 1 | T39: 18 | U39: 0 | V39: 15 | W39: 46 | X39: 0 | Y39: 0 | Z39: 9 | AA39: 0 | AB39: 0 | AC39: 1 | AD39: 14 | AE39: 14 | AF39: 25 | AG39: 0 | AH39: 60 | AI39: 0 | AJ39: 0 | AK39: 0 | AL39: 0 | AM39: 1 | AN39: 24 | AO39: 60 | AP39: 7 | AQ39: ='Saisie 1V'!AN23:BR23 -> 0 | AR39: ='Saisie 1V'!AO23:BS23 -> 0 | AS39: ='Saisie 1V'!AP23:BT23 -> 5
A40: 0 | B40: 0 | C40: 0 | D40: 0 | E40: =E39/D39 -> 0 | F40: =IF(F39=0,"",F39/D39) -> 0.4798387097 | G40: =IF(G39=0,"",G39/$D$39) -> 0.5201612903 | H40: =IF(H39=0,"",H39/$F$39) -> 0.01890756303 | I40: =IF(I39=0,"",I39/$F$39) -> 0.01050420168 | J40: =IF(J39=0,"",J39/$F$39) -> 0.02941176471 | L40: =L39/$K$39 -> 0.0974025974 | M40: 0 | N40: 0 | O40: 0 | P40: 0.2489177489 | Q40: 0 | R40: 0.004329004329 | S40: 0.002164502165 | T40: 0.03896103896 | U40: 0 | V40: 0.03246753247 | W40: 0.09956709957 | X40: 0 | Y40: 0 | Z40: 0.01948051948 | AA40: 0 | AB40: 0 | AC40: 0.002164502165 | AD40: 0.0303030303 | AE40: 0.0303030303 | AF40: 0.05411255411 | AG40: 0 | AH40: 0.1298701299 | AI40: 0 | AJ40: 0 | AK40: =AK39/$K$39 -> 0 | AL40: 0 | AM40: 0.002164502165 | AN40: 0.05194805195 | AO40: 0.1298701299 | AP40: 0.01515151515 | AQ40: =AQ39/$K$39 -> 0 | AR40: 0 | AS40: 0.01082251082
A41: 18 | B41: Conservatoire de musique M.Dadi | C41: 7-1 | D41: 1035 | E41: ='Saisie 1V'!E24:F24 -> 0 | F41: 493 | G41: =D41-F41 -> 542 | H41: ='Saisie 1V'!G24 -> 12 | I41: ='Saisie 1V'!H24 -> 5 | J41: =H41+I41 -> 17 | K41: =F41-J41 -> 476 | L41: ='Saisie 1V'!I24:AM24 -> 48 | M41: 0 | N41: 0 | O41: 1 | P41: 132 | Q41: 0 | R41: 1 | S41: 0 | T41: 13 | U41: 0 | V41: 11 | W41: 30 | X41: 1 | Y41: 0 | Z41: 8 | AA41: 0 | AB41: 0 | AC41: 2 | AD41: 23 | AE41: 4 | AF41: 10 | AG41: 4 | AH41: 57 | AI41: 0 | AJ41: 0 | AK41: 0 | AL41: 0 | AM41: 0 | AN41: 28 | AO41: 89 | AP41: 10 | AQ41: ='Saisie 1V'!AN24:BR24 -> 1 | AR41: ='Saisie 1V'!AO24:BS24 -> 1 | AS41: ='Saisie 1V'!AP24:BT24 -> 2
A42: 0 | B42: 0 | C42: 0 | D42: 0 | E42: =E41/D41 -> 0 | F42: =IF(F41=0,"",F41/D41) -> 0.4763285024 | G42: =IF(G41=0,"",G41/$D$41) -> 0.5236714976 | H42: =IF(H41=0,"",H41/$F$41) -> 0.02434077079 | I42: =IF(I41=0,"",I41/$F$41) -> 0.01014198783 | J42: =IF(J41=0,"",J41/$F$41) -> 0.03448275862 | L42: =L41/$K$41 -> 0.1008403361 | M42: 0 | N42: 0 | O42: 0.002100840336 | P42: 0.2773109244 | Q42: 0 | R42: 0.002100840336 | S42: 0 | T42: 0.02731092437 | U42: 0 | V42: 0.0231092437 | W42: 0.06302521008 | X42: 0.002100840336 | Y42: 0 | Z42: 0.01680672269 | AA42: 0 | AB42: 0 | AC42: 0.004201680672 | AD42: 0.04831932773 | AE42: 0.008403361345 | AF42: 0.02100840336 | AG42: 0.008403361345 | AH42: 0.1197478992 | AI42: 0 | AJ42: 0 | AK42: =AK41/$K$41 -> 0 | AL42: 0 | AM42: 0 | AN42: 0.05882352941 | AO42: 0.1869747899 | AP42: 0.02100840336 | AQ42: =AQ41/$K$41 -> 0.002100840336 | AR42: 0.002100840336 | AS42: 0.004201680672
A43: 19 | B43: Eboué, élémentaire | C43: 7-2 | D43: 842 | E43: ='Saisie 1V'!E25:F25 -> 0 | F43: 371 | G43: =D43-F43 -> 471 | H43: ='Saisie 1V'!G25 -> 6 | I43: ='Saisie 1V'!H25 -> 8 | J43: =H43+I43 -> 14 | K43: =F43-J43 -> 357 | L43: ='Saisie 1V'!I25:AM25 -> 35 | M43: 0 | N43: 0 | O43: 2 | P43: 82 | Q43: 0 | R43: 2 | S43: 0 | T43: 7 | U43: 0 | V43: 6 | W43: 25 | X43: 1 | Y43: 0 | Z43: 7 | AA43: 0 | AB43: 0 | AC43: 6 | AD43: 8 | AE43: 3 | AF43: 12 | AG43: 0 | AH43: 47 | AI43: 0 | AJ43: 0 | AK43: 0 | AL43: 0 | AM43: 2 | AN43: 32 | AO43: 70 | AP43: 4 | AQ43: ='Saisie 1V'!AN25:BR25 -> 0 | AR43: ='Saisie 1V'!AO25:BS25 -> 1 | AS43: ='Saisie 1V'!AP25:BT25 -> 5
A44: 0 | B44: 0 | C44: 0 | D44: 0 | E44: =E43/D43 -> 0 | F44: =IF(F43=0,"",F43/D43) -> 0.4406175772 | G44: =IF(G43=0,"",G43/$D$43) -> 0.5593824228 | H44: =IF(H43=0,"",H43/$F$43) -> 0.01617250674 | I44: =IF(I43=0,"",I43/$F$43) -> 0.02156334232 | J44: =IF(J43=0,"",J43/$F$43) -> 0.03773584906 | L44: =L43/$K$43 -> 0.09803921569 | M44: 0 | N44: 0 | O44: 0.005602240896 | P44: 0.2296918768 | Q44: 0 | R44: 0.005602240896 | S44: 0 | T44: 0.01960784314 | U44: 0 | V44: 0.01680672269 | W44: 0.0700280112 | X44: 0.002801120448 | Y44: 0 | Z44: 0.01960784314 | AA44: 0 | AB44: 0 | AC44: 0.01680672269 | AD44: 0.02240896359 | AE44: 0.008403361345 | AF44: 0.03361344538 | AG44: 0 | AH44: 0.1316526611 | AI44: 0 | AJ44: 0 | AK44: =AK43/$K$43 -> 0 | AL44: 0 | AM44: 0.005602240896 | AN44: 0.08963585434 | AO44: 0.1960784314 | AP44: 0.01120448179 | AQ44: =AQ43/$K$43 -> 0 | AR44: 0.002801120448 | AS44: 0.01400560224
A45: 20 | B45: Eboué, maternelle | C45: 7-2 | D45: 735 | E45: ='Saisie 1V'!E26:F26 -> 0 | F45: 312 | G45: =D45-F45 -> 423 | H45: ='Saisie 1V'!G26 -> 6 | I45: ='Saisie 1V'!H26 -> 7 | J45: =H45+I45 -> 13 | K45: =F45-J45 -> 299 | L45: ='Saisie 1V'!I26:AM26 -> 56 | M45: 0 | N45: 0 | O45: 0 | P45: 91 | Q45: 0 | R45: 1 | S45: 0 | T45: 7 | U45: 0 | V45: 5 | W45: 14 | X45: 0 | Y45: 0 | Z45: 8 | AA45: 0 | AB45: 0 | AC45: 3 | AD45: 6 | AE45: 7 | AF45: 20 | AG45: 0 | AH45: 27 | AI45: 0 | AJ45: 0 | AK45: 0 | AL45: 0 | AM45: 3 | AN45: 18 | AO45: 23 | AP45: 4 | AQ45: ='Saisie 1V'!AN26:BR26 -> 0 | AR45: ='Saisie 1V'!AO26:BS26 -> 1 | AS45: ='Saisie 1V'!AP26:BT26 -> 5
A46: 0 | B46: 0 | C46: 0 | D46: 0 | E46: =E45/D45 -> 0 | F46: =IF(F45=0,"",F45/D45) -> 0.4244897959 | G46: =IF(G45=0,"",G45/$D$45) -> 0.5755102041 | H46: =IF(H45=0,"",H45/$F$45) -> 0.01923076923 | I46: =IF(I45=0,"",I45/$F$45) -> 0.02243589744 | J46: =IF(J45=0,"",J45/$F$45) -> 0.04166666667 | L46: =L45/$K$45 -> 0.1872909699 | M46: 0 | N46: 0 | O46: 0 | P46: 0.3043478261 | Q46: 0 | R46: 0.003344481605 | S46: 0 | T46: 0.02341137124 | U46: 0 | V46: 0.01672240803 | W46: 0.04682274247 | X46: 0 | Y46: 0 | Z46: 0.02675585284 | AA46: 0 | AB46: 0 | AC46: 0.01003344482 | AD46: 0.02006688963 | AE46: 0.02341137124 | AF46: 0.06688963211 | AG46: 0 | AH46: 0.09030100334 | AI46: 0 | AJ46: 0 | AK46: =AK45/$K$45 -> 0 | AL46: 0 | AM46: 0.01003344482 | AN46: 0.0602006689 | AO46: 0.07692307692 | AP46: 0.01337792642 | AQ46: =AQ45/$K$45 -> 0 | AR46: 0.003344481605 | AS46: 0.01672240803
A47: 21 | B47: Le Cléac'h, maternelle | C47: 7-2 | D47: 972 | E47: ='Saisie 1V'!E27:F27 -> 0 | F47: 424 | G47: =D47-F47 -> 548 | H47: ='Saisie 1V'!G27 -> 8 | I47: ='Saisie 1V'!H27 -> 6 | J47: =H47+I47 -> 14 | K47: =F47-J47 -> 410 | L47: ='Saisie 1V'!I27:AM27 -> 38 | M47: 0 | N47: 0 | O47: 2 | P47: 90 | Q47: 0 | R47: 0 | S47: 0 | T47: 8 | U47: 1 | V47: 6 | W47: 35 | X47: 1 | Y47: 0 | Z47: 8 | AA47: 0 | AB47: 0 | AC47: 1 | AD47: 11 | AE47: 10 | AF47: 24 | AG47: 0 | AH47: 51 | AI47: 0 | AJ47: 0 | AK47: 0 | AL47: 0 | AM47: 1 | AN47: 18 | AO47: 79 | AP47: 7 | AQ47: ='Saisie 1V'!AN27:BR27 -> 1 | AR47: ='Saisie 1V'!AO27:BS27 -> 0 | AS47: ='Saisie 1V'!AP27:BT27 -> 18
A48: 0 | B48: 0 | C48: 0 | D48: 0 | E48: =E47/D47 -> 0 | F48: =IF(F47=0,"",F47/D47) -> 0.4362139918 | G48: =IF(G47=0,"",G47/$D$47) -> 0.5637860082 | H48: =IF(H47=0,"",H47/$F$47) -> 0.01886792453 | I48: =IF(I47=0,"",I47/$F$47) -> 0.0141509434 | J48: =IF(J47=0,"",J47/$F$47) -> 0.03301886792 | L48: =L47/$K$47 -> 0.09268292683 | M48: 0 | N48: 0 | O48: 0.00487804878 | P48: 0.2195121951 | Q48: 0 | R48: 0 | S48: 0 | T48: 0.01951219512 | U48: 0.00243902439 | V48: 0.01463414634 | W48: 0.08536585366 | X48: 0.00243902439 | Y48: 0 | Z48: 0.01951219512 | AA48: 0 | AB48: 0 | AC48: 0.00243902439 | AD48: 0.02682926829 | AE48: 0.0243902439 | AF48: 0.05853658537 | AG48: 0 | AH48: 0.1243902439 | AI48: 0 | AJ48: 0 | AK48: =AK47/$K$47 -> 0 | AL48: 0 | AM48: 0.00243902439 | AN48: 0.04390243902 | AO48: 0.1926829268 | AP48: 0.01707317073 | AQ48: =AQ47/$K$47 -> 0.00243902439 | AR48: 0 | AS48: 0.04390243902
A49: 22 | B49: Beuvin, maternelle | C49: 7-2 | D49: 852 | E49: ='Saisie 1V'!E28:F28 -> 0 | F49: 390 | G49: =D49-F49 -> 462 | H49: ='Saisie 1V'!G28 -> 4 | I49: ='Saisie 1V'!H28 -> 6 | J49: =H49+I49 -> 10 | K49: =F49-J49 -> 380 | L49: ='Saisie 1V'!I28:AM28 -> 34 | M49: 0 | N49: 0 | O49: 2 | P49: 79 | Q49: 0 | R49: 0 | S49: 0 | T49: 6 | U49: 0 | V49: 11 | W49: 18 | X49: 1 | Y49: 0 | Z49: 13 | AA49: 0 | AB49: 0 | AC49: 1 | AD49: 11 | AE49: 5 | AF49: 16 | AG49: 0 | AH49: 75 | AI49: 0 | AJ49: 0 | AK49: 0 | AL49: 0 | AM49: 2 | AN49: 34 | AO49: 58 | AP49: 11 | AQ49: ='Saisie 1V'!AN28:BR28 -> 1 | AR49: ='Saisie 1V'!AO28:BS28 -> 1 | AS49: ='Saisie 1V'!AP28:BT28 -> 1
A50: 0 | B50: 0 | C50: 0 | D50: 0 | E50: =E49/D49 -> 0 | F50: =IF(F49=0,"",F49/D49) -> 0.4577464789 | G50: =IF(G49=0,"",G49/$D$49) -> 0.5422535211 | H50: =IF(H49=0,"",H49/$F$49) -> 0.01025641026 | I50: =IF(I49=0,"",I49/$F$49) -> 0.01538461538 | J50: =IF(J49=0,"",J49/$F$49) -> 0.02564102564 | L50: =L49/$K$49 -> 0.08947368421 | M50: 0 | N50: 0 | O50: 0.005263157895 | P50: 0.2078947368 | Q50: 0 | R50: 0 | S50: 0 | T50: 0.01578947368 | U50: 0 | V50: 0.02894736842 | W50: 0.04736842105 | X50: 0.002631578947 | Y50: 0 | Z50: 0.03421052632 | AA50: 0 | AB50: 0 | AC50: 0.002631578947 | AD50: 0.02894736842 | AE50: 0.01315789474 | AF50: 0.04210526316 | AG50: 0 | AH50: 0.1973684211 | AI50: 0 | AJ50: 0 | AK50: =AK49/$K$49 -> 0 | AL50: 0 | AM50: 0.005263157895 | AN50: 0.08947368421 | AO50: 0.1526315789 | AP50: 0.02894736842 | AQ50: =AQ49/$K$49 -> 0.002631578947 | AR50: 0.002631578947 | AS50: 0.002631578947
A51: 23 | B51: Halage, RPA | C51: 8-1 | D51: 1009 | E51: ='Saisie 1V'!E29:F29 -> 0 | F51: 616 | G51: =D51-F51 -> 393 | H51: ='Saisie 1V'!G29 -> 6 | I51: ='Saisie 1V'!H29 -> 9 | J51: =H51+I51 -> 15 | K51: =F51-J51 -> 601 | L51: ='Saisie 1V'!I29:AM29 -> 18 | M51: 0 | N51: 0 | O51: 0 | P51: 192 | Q51: 0 | R51: 1 | S51: 0 | T51: 9 | U51: 0 | V51: 16 | W51: 60 | X51: 0 | Y51: 0 | Z51: 19 | AA51: 0 | AB51: 0 | AC51: 1 | AD51: 9 | AE51: 5 | AF51: 26 | AG51: 0 | AH51: 65 | AI51: 0 | AJ51: 0 | AK51: 2 | AL51: 0 | AM51: 2 | AN51: 52 | AO51: 110 | AP51: 13 | AQ51: ='Saisie 1V'!AN29:BR29 -> 0 | AR51: ='Saisie 1V'!AO29:BS29 -> 1 | AS51: ='Saisie 1V'!AP29:BT29 -> 0
A52: 0 | B52: 0 | C52: 0 | D52: 0 | E52: =E51/D51 -> 0 | F52: =IF(F51=0,"",F51/D51) -> 0.6105054509 | G52: =IF(G51=0,"",G51/$D$51) -> 0.3894945491 | H52: =IF(H51=0,"",H51/$F$51) -> 0.00974025974 | I52: =IF(I51=0,"",I51/$F$51) -> 0.01461038961 | J52: =IF(J51=0,"",J51/$F$51) -> 0.02435064935 | L52: =L51/$K$51 -> 0.02995008319 | M52: 0 | N52: 0 | O52: 0 | P52: 0.3194675541 | Q52: 0 | R52: 0.001663893511 | S52: 0 | T52: 0.0149750416 | U52: 0 | V52: 0.02662229617 | W52: 0.09983361065 | X52: 0 | Y52: 0 | Z52: 0.03161397671 | AA52: 0 | AB52: 0 | AC52: 0.001663893511 | AD52: 0.0149750416 | AE52: 0.008319467554 | AF52: 0.04326123128 | AG52: 0 | AH52: 0.1081530782 | AI52: 0 | AJ52: 0 | AK52: =AK51/$K$51 -> 0.003327787022 | AL52: 0 | AM52: 0.003327787022 | AN52: 0.08652246256 | AO52: 0.1830282862 | AP52: 0.02163061564 | AQ52: =AQ51/$K$51 -> 0 | AR52: 0.001663893511 | AS52: 0
A53: 24 | B53: Beuvin, élémentaire | C53: 8-2 | D53: 685 | E53: ='Saisie 1V'!E30:F30 -> 0 | F53: 278 | G53: =D53-F53 -> 407 | H53: ='Saisie 1V'!G30 -> 5 | I53: ='Saisie 1V'!H30 -> 4 | J53: =H53+I53 -> 9 | K53: =F53-J53 -> 269 | L53: ='Saisie 1V'!I30:AM30 -> 42 | M53: 0 | N53: 0 | O53: 0 | P53: 71 | Q53: 0 | R53: 0 | S53: 0 | T53: 4 | U53: 0 | V53: 7 | W53: 18 | X53: 1 | Y53: 0 | Z53: 11 | AA53: 0 | AB53: 0 | AC53: 3 | AD53: 7 | AE53: 6 | AF53: 5 | AG53: 0 | AH53: 28 | AI53: 0 | AJ53: 0 | AK53: 0 | AL53: 0 | AM53: 5 | AN53: 14 | AO53: 43 | AP53: 1 | AQ53: ='Saisie 1V'!AN30:BR30 -> 0 | AR53: ='Saisie 1V'!AO30:BS30 -> 0 | AS53: ='Saisie 1V'!AP30:BT30 -> 3
A54: 0 | B54: 0 | C54: 0 | D54: 0 | E54: =E53/D53 -> 0 | F54: =IF(F53=0,"",F53/D53) -> 0.4058394161 | G54: =IF(G53=0,"",G53/$D$53) -> 0.5941605839 | H54: =IF(H53=0,"",H53/$F$53) -> 0.01798561151 | I54: =IF(I53=0,"",I53/$F$53) -> 0.01438848921 | J54: =IF(J53=0,"",J53/$F$53) -> 0.03237410072 | L54: =L53/$K$53 -> 0.156133829 | M54: 0 | N54: 0 | O54: 0 | P54: 0.2639405204 | Q54: 0 | R54: 0 | S54: 0 | T54: 0.01486988848 | U54: 0 | V54: 0.02602230483 | W54: 0.06691449814 | X54: 0.003717472119 | Y54: 0 | Z54: 0.04089219331 | AA54: 0 | AB54: 0 | AC54: 0.01115241636 | AD54: 0.02602230483 | AE54: 0.02230483271 | AF54: 0.01858736059 | AG54: 0 | AH54: 0.1040892193 | AI54: 0 | AJ54: 0 | AK54: =AK53/$K$53 -> 0 | AL54: 0 | AM54: 0.01858736059 | AN54: 0.05204460967 | AO54: 0.1598513011 | AP54: 0.003717472119 | AQ54: =AQ53/$K$53 -> 0 | AR54: 0 | AS54: 0.01115241636
A55: 25 | B55: LCR, rue de Bonne | C55: 8-1 | D55: 1021 | E55: ='Saisie 1V'!E31:F31 -> 0 | F55: 697 | G55: =D55-F55 -> 324 | H55: ='Saisie 1V'!G31 -> 11 | I55: ='Saisie 1V'!H31 -> 9 | J55: =H55+I55 -> 20 | K55: =F55-J55 -> 677 | L55: ='Saisie 1V'!I31:AM31 -> 30 | M55: 0 | N55: 0 | O55: 4 | P55: 233 | Q55: 0 | R55: 1 | S55: 0 | T55: 11 | U55: 0 | V55: 19 | W55: 71 | X55: 0 | Y55: 0 | Z55: 17 | AA55: 0 | AB55: 1 | AC55: 2 | AD55: 24 | AE55: 7 | AF55: 15 | AG55: 0 | AH55: 58 | AI55: 0 | AJ55: 0 | AK55: 0 | AL55: 0 | AM55: 1 | AN55: 42 | AO55: 121 | AP55: 13 | AQ55: ='Saisie 1V'!AN31:BR31 -> 2 | AR55: ='Saisie 1V'!AO31:BS31 -> 1 | AS55: ='Saisie 1V'!AP31:BT31 -> 4
A56: 0 | B56: 0 | C56: 0 | D56: 0 | E56: =E55/D55 -> 0 | F56: =IF(F55=0,"",F55/D55) -> 0.6826640548 | G56: =IF(G55=0,"",G55/$D$55) -> 0.3173359452 | H56: =IF(H55=0,"",H55/$F$55) -> 0.01578192253 | I56: =IF(I55=0,"",I55/$F$55) -> 0.01291248207 | J56: =IF(J55=0,"",J55/$F$55) -> 0.02869440459 | L56: =L55/$K$55 -> 0.04431314623 | M56: 0 | N56: 0 | O56: 0.005908419498 | P56: 0.3441654357 | Q56: 0 | R56: 0.001477104874 | S56: 0 | T56: 0.01624815362 | U56: 0 | V56: 0.02806499261 | W56: 0.1048744461 | X56: 0 | Y56: 0 | Z56: 0.02511078287 | AA56: 0 | AB56: 0.001477104874 | AC56: 0.002954209749 | AD56: 0.03545051699 | AE56: 0.01033973412 | AF56: 0.02215657312 | AG56: 0 | AH56: 0.08567208272 | AI56: 0 | AJ56: 0 | AK56: =AK55/$K$55 -> 0 | AL56: 0 | AM56: 0.001477104874 | AN56: 0.06203840473 | AO56: 0.1787296898 | AP56: 0.01920236337 | AQ56: =AQ55/$K$55 -> 0.002954209749 | AR56: 0.001477104874 | AS56: 0.005908419498
A57: 26 | B57: Les Buttes, gymnase | C57: 8-1 | D57: 1090 | E57: ='Saisie 1V'!E32:F32 -> 0 | F57: 614 | G57: =D57-F57 -> 476 | H57: ='Saisie 1V'!G32 -> 10 | I57: ='Saisie 1V'!H32 -> 7 | J57: =H57+I57 -> 17 | K57: =F57-J57 -> 597 | L57: ='Saisie 1V'!I32:AM32 -> 29 | M57: 0 | N57: 0 | O57: 5 | P57: 170 | Q57: 0 | R57: 1 | S57: 0 | T57: 13 | U57: 0 | V57: 20 | W57: 61 | X57: 0 | Y57: 0 | Z57: 24 | AA57: 0 | AB57: 0 | AC57: 4 | AD57: 9 | AE57: 7 | AF57: 24 | AG57: 0 | AH57: 57 | AI57: 0 | AJ57: 0 | AK57: 1 | AL57: 0 | AM57: 1 | AN57: 54 | AO57: 101 | AP57: 9 | AQ57: ='Saisie 1V'!AN32:BR32 -> 0 | AR57: ='Saisie 1V'!AO32:BS32 -> 1 | AS57: ='Saisie 1V'!AP32:BT32 -> 6
A58: 0 | B58: 0 | C58: 0 | D58: 0 | E58: =E57/D57 -> 0 | F58: =IF(F57=0,"",F57/D57) -> 0.5633027523 | G58: =IF(G57=0,"",G57/$D$57) -> 0.4366972477 | H58: =IF(H57=0,"",H57/$F$57) -> 0.01628664495 | I58: =IF(I57=0,"",I57/$F$57) -> 0.01140065147 | J58: =IF(J57=0,"",J57/$F$57) -> 0.02768729642 | L58: =L57/$K$57 -> 0.04857621441 | M58: 0 | N58: 0 | O58: 0.00837520938 | P58: 0.2847571189 | Q58: 0 | R58: 0.001675041876 | S58: 0 | T58: 0.02177554439 | U58: 0 | V58: 0.03350083752 | W58: 0.1021775544 | X58: 0 | Y58: 0 | Z58: 0.04020100503 | AA58: 0 | AB58: 0 | AC58: 0.006700167504 | AD58: 0.01507537688 | AE58: 0.01172529313 | AF58: 0.04020100503 | AG58: 0 | AH58: 0.09547738693 | AI58: 0 | AJ58: 0 | AK58: =AK57/$K$57 -> 0.001675041876 | AL58: 0 | AM58: 0.001675041876 | AN58: 0.09045226131 | AO58: 0.1691792295 | AP58: 0.01507537688 | AQ58: =AQ57/$K$57 -> 0 | AR58: 0.001675041876 | AS58: 0.01005025126
A59: 27 | B59: Plaisance, collège | C59: 8-1 | D59: 969 | E59: ='Saisie 1V'!E33:F33 -> 0 | F59: 508 | G59: =D59-F59 -> 461 | H59: ='Saisie 1V'!G33 -> 8 | I59: ='Saisie 1V'!H33 -> 8 | J59: =H59+I59 -> 16 | K59: =F59-J59 -> 492 | L59: ='Saisie 1V'!I33:AM33 -> 29 | M59: 0 | N59: 0 | O59: 0 | P59: 118 | Q59: 0 | R59: 2 | S59: 2 | T59: 14 | U59: 0 | V59: 11 | W59: 48 | X59: 0 | Y59: 0 | Z59: 18 | AA59: 0 | AB59: 1 | AC59: 3 | AD59: 12 | AE59: 6 | AF59: 25 | AG59: 0 | AH59: 53 | AI59: 0 | AJ59: 0 | AK59: 0 | AL59: 0 | AM59: 1 | AN59: 43 | AO59: 87 | AP59: 16 | AQ59: ='Saisie 1V'!AN33:BR33 -> 1 | AR59: ='Saisie 1V'!AO33:BS33 -> 0 | AS59: ='Saisie 1V'!AP33:BT33 -> 2
A60: 0 | B60: 0 | C60: 0 | D60: 0 | E60: =E59/D59 -> 0 | F60: =IF(F59=0,"",F59/D59) -> 0.524251806 | G60: =IF(G59=0,"",G59/$D$59) -> 0.475748194 | H60: =IF(H59=0,"",H59/$F$59) -> 0.0157480315 | I60: =IF(I59=0,"",I59/$F$59) -> 0.0157480315 | J60: =IF(J59=0,"",J59/$F$59) -> 0.03149606299 | L60: =L59/$K$59 -> 0.05894308943 | M60: 0 | N60: 0 | O60: 0 | P60: 0.2398373984 | Q60: 0 | R60: 0.00406504065 | S60: 0.00406504065 | T60: 0.02845528455 | U60: 0 | V60: 0.02235772358 | W60: 0.09756097561 | X60: 0 | Y60: 0 | Z60: 0.03658536585 | AA60: 0 | AB60: 0.002032520325 | AC60: 0.006097560976 | AD60: 0.0243902439 | AE60: 0.01219512195 | AF60: 0.05081300813 | AG60: 0 | AH60: 0.1077235772 | AI60: 0 | AJ60: 0 | AK60: =AK59/$K$59 -> 0 | AL60: 0 | AM60: 0.002032520325 | AN60: 0.08739837398 | AO60: 0.1768292683 | AP60: 0.0325203252 | AQ60: =AQ59/$K$59 -> 0.002032520325 | AR60: 0 | AS60: 0.00406504065
A61: 28 | B61: Hugo, maternelle | C61: 8-1 | D61: 879 | E61: ='Saisie 1V'!E34:F34 -> 0 | F61: 557 | G61: =D61-F61 -> 322 | H61: ='Saisie 1V'!G34 -> 2 | I61: ='Saisie 1V'!H34 -> 3 | J61: =H61+I61 -> 5 | K61: =F61-J61 -> 552 | L61: ='Saisie 1V'!I34:AM34 -> 16 | M61: 0 | N61: 0 | O61: 3 | P61: 161 | Q61: 0 | R61: 2 | S61: 0 | T61: 8 | U61: 0 | V61: 9 | W61: 37 | X61: 0 | Y61: 0 | Z61: 24 | AA61: 0 | AB61: 0 | AC61: 0 | AD61: 7 | AE61: 5 | AF61: 32 | AG61: 0 | AH61: 88 | AI61: 0 | AJ61: 0 | AK61: 0 | AL61: 0 | AM61: 0 | AN61: 53 | AO61: 98 | AP61: 9 | AQ61: ='Saisie 1V'!AN34:BR34 -> 0 | AR61: ='Saisie 1V'!AO34:BS34 -> 0 | AS61: ='Saisie 1V'!AP34:BT34 -> 0
A62: 0 | B62: 0 | C62: 0 | D62: 0 | E62: =E61/D61 -> 0 | F62: =IF(F61=0,"",F61/D61) -> 0.6336746303 | G62: =IF(G61=0,"",G61/$D$61) -> 0.3663253697 | H62: =IF(H61=0,"",H61/$F$61) -> 0.003590664273 | I62: =IF(I61=0,"",I61/$F$61) -> 0.005385996409 | J62: =IF(J61=0,"",J61/$F$61) -> 0.008976660682 | L62: =L61/$K$61 -> 0.02898550725 | M62: 0 | N62: 0 | O62: 0.005434782609 | P62: 0.2916666667 | Q62: 0 | R62: 0.003623188406 | S62: 0 | T62: 0.01449275362 | U62: 0 | V62: 0.01630434783 | W62: 0.06702898551 | X62: 0 | Y62: 0 | Z62: 0.04347826087 | AA62: 0 | AB62: 0 | AC62: 0 | AD62: 0.01268115942 | AE62: 0.009057971014 | AF62: 0.05797101449 | AG62: 0 | AH62: 0.1594202899 | AI62: 0 | AJ62: 0 | AK62: =AK61/$K$61 -> 0 | AL62: 0 | AM62: 0 | AN62: 0.09601449275 | AO62: 0.1775362319 | AP62: 0.01630434783 | AQ62: =AQ61/$K$61 -> 0 | AR62: 0 | AS62: 0
A63: 29 | B63: Maison du combattant | C63: 8-1 | D63: 989 | E63: ='Saisie 1V'!E35:F35 -> 0 | F63: 524 | G63: =D63-F63 -> 465 | H63: ='Saisie 1V'!G35 -> 18 | I63: ='Saisie 1V'!H35 -> 10 | J63: =H63+I63 -> 28 | K63: =F63-J63 -> 496 | L63: ='Saisie 1V'!I35:AM35 -> 41 | M63: 0 | N63: 0 | O63: 2 | P63: 95 | Q63: 0 | R63: 5 | S63: 0 | T63: 18 | U63: 0 | V63: 12 | W63: 32 | X63: 0 | Y63: 0 | Z63: 10 | AA63: 0 | AB63: 0 | AC63: 4 | AD63: 13 | AE63: 16 | AF63: 26 | AG63: 0 | AH63: 73 | AI63: 0 | AJ63: 0 | AK63: 0 | AL63: 0 | AM63: 1 | AN63: 29 | AO63: 87 | AP63: 16 | AQ63: ='Saisie 1V'!AN35:BR35 -> 2 | AR63: ='Saisie 1V'!AO35:BS35 -> 0 | AS63: ='Saisie 1V'!AP35:BT35 -> 14
A64: 0 | B64: 0 | C64: 0 | D64: 0 | E64: =E63/D63 -> 0 | F64: =IF(F63=0,"",F63/D63) -> 0.5298281092 | G64: =IF(G63=0,"",G63/$D$63) -> 0.4701718908 | H64: =IF(H63=0,"",H63/$F$63) -> 0.03435114504 | I64: =IF(I63=0,"",I63/$F$63) -> 0.01908396947 | J64: =IF(J63=0,"",J63/$F$63) -> 0.0534351145 | L64: =L63/$K$63 -> 0.08266129032 | M64: 0 | N64: 0 | O64: 0.004032258065 | P64: 0.1915322581 | Q64: 0 | R64: 0.01008064516 | S64: 0 | T64: 0.03629032258 | U64: 0 | V64: 0.02419354839 | W64: 0.06451612903 | X64: 0 | Y64: 0 | Z64: 0.02016129032 | AA64: 0 | AB64: 0 | AC64: 0.008064516129 | AD64: 0.02620967742 | AE64: 0.03225806452 | AF64: 0.05241935484 | AG64: 0 | AH64: 0.1471774194 | AI64: 0 | AJ64: 0 | AK64: =AK63/$K$63 -> 0 | AL64: 0 | AM64: 0.002016129032 | AN64: 0.05846774194 | AO64: 0.1754032258 | AP64: 0.03225806452 | AQ64: =AQ63/$K$63 -> 0.004032258065 | AR64: 0 | AS64: 0.02822580645
A65: 30 | B65: Hugo, gymnase | C65: 8-1 | D65: 989 | E65: ='Saisie 1V'!E36:F36 -> 0 | F65: 553 | G65: =D65-F65 -> 436 | H65: ='Saisie 1V'!G36 -> 13 | I65: ='Saisie 1V'!H36 -> 8 | J65: =H65+I65 -> 21 | K65: =F65-J65 -> 532 | L65: ='Saisie 1V'!I36:AM36 -> 26 | M65: 0 | N65: 0 | O65: 1 | P65: 152 | Q65: 0 | R65: 2 | S65: 0 | T65: 10 | U65: 0 | V65: 4 | W65: 41 | X65: 0 | Y65: 0 | Z65: 17 | AA65: 0 | AB65: 0 | AC65: 2 | AD65: 22 | AE65: 12 | AF65: 20 | AG65: 0 | AH65: 72 | AI65: 0 | AJ65: 0 | AK65: 2 | AL65: 0 | AM65: 2 | AN65: 52 | AO65: 77 | AP65: 11 | AQ65: ='Saisie 1V'!AN36:BR36 -> 1 | AR65: ='Saisie 1V'!AO36:BS36 -> 0 | AS65: ='Saisie 1V'!AP36:BT36 -> 6
A66: 0 | B66: 0 | C66: 0 | D66: 0 | E66: =E65/D65 -> 0 | F66: =IF(F65=0,"",F65/D65) -> 0.5591506572 | G66: =IF(G65=0,"",G65/$D$65) -> 0.4408493428 | H66: =IF(H65=0,"",H65/$F$65) -> 0.02350813743 | I66: =IF(I65=0,"",I65/$F$65) -> 0.01446654611 | J66: =IF(J65=0,"",J65/$F$65) -> 0.03797468354 | L66: =L65/$K$65 -> 0.04887218045 | M66: 0 | N66: 0 | O66: 0.001879699248 | P66: 0.2857142857 | Q66: 0 | R66: 0.003759398496 | S66: 0 | T66: 0.01879699248 | U66: 0 | V66: 0.007518796992 | W66: 0.07706766917 | X66: 0 | Y66: 0 | Z66: 0.03195488722 | AA66: 0 | AB66: 0 | AC66: 0.003759398496 | AD66: 0.04135338346 | AE66: 0.02255639098 | AF66: 0.03759398496 | AG66: 0 | AH66: 0.1353383459 | AI66: 0 | AJ66: 0 | AK66: =AK65/$K$65 -> 0.003759398496 | AL66: 0 | AM66: 0.003759398496 | AN66: 0.0977443609 | AO66: 0.1447368421 | AP66: 0.02067669173 | AQ66: =AQ65/$K$65 -> 0.001879699248 | AR66: 0 | AS66: 0.01127819549
A67: 31 | B67: Salle polyvalente René Renaud | C67: 8-1 | D67: 1153 | E67: ='Saisie 1V'!E37:F37 -> 0 | F67: 602 | G67: =D67-F67 -> 551 | H67: ='Saisie 1V'!G37 -> 12 | I67: ='Saisie 1V'!H37 -> 4 | J67: =H67+I67 -> 16 | K67: =F67-J67 -> 586 | L67: ='Saisie 1V'!I37:AM37 -> 34 | M67: 0 | N67: 0 | O67: 1 | P67: 154 | Q67: 0 | R67: 1 | S67: 0 | T67: 9 | U67: 0 | V67: 13 | W67: 58 | X67: 1 | Y67: 0 | Z67: 21 | AA67: 0 | AB67: 0 | AC67: 3 | AD67: 22 | AE67: 6 | AF67: 20 | AG67: 0 | AH67: 99 | AI67: 0 | AJ67: 0 | AK67: 0 | AL67: 0 | AM67: 0 | AN67: 41 | AO67: 84 | AP67: 16 | AQ67: ='Saisie 1V'!AN37:BR37 -> 0 | AR67: ='Saisie 1V'!AO37:BS37 -> 0 | AS67: ='Saisie 1V'!AP37:BT37 -> 3
A68: 0 | B68: 0 | C68: 0 | D68: 0 | E68: =E67/D67 -> 0 | F68: =IF(F67=0,"",F67/D67) -> 0.5221162186 | G68: =IF(G67=0,"",G67/$D$67) -> 0.4778837814 | H68: =IF(H67=0,"",H67/$F$67) -> 0.01993355482 | I68: =IF(I67=0,"",I67/$F$67) -> 0.006644518272 | J68: =IF(J67=0,"",J67/$F$67) -> 0.02657807309 | L68: =L67/$K$67 -> 0.05802047782 | M68: 0 | N68: 0 | O68: 0.001706484642 | P68: 0.2627986348 | Q68: 0 | R68: 0.001706484642 | S68: 0 | T68: 0.01535836177 | U68: 0 | V68: 0.02218430034 | W68: 0.09897610922 | X68: 0.001706484642 | Y68: 0 | Z68: 0.03583617747 | AA68: 0 | AB68: 0 | AC68: 0.005119453925 | AD68: 0.03754266212 | AE68: 0.01023890785 | AF68: 0.03412969283 | AG68: 0 | AH68: 0.1689419795 | AI68: 0 | AJ68: 0 | AK68: =AK67/$K$67 -> 0 | AL68: 0 | AM68: 0 | AN68: 0.06996587031 | AO68: 0.1433447099 | AP68: 0.02730375427 | AQ68: =AQ67/$K$67 -> 0 | AR68: 0 | AS68: 0.005119453925
A69: 32 | B69: Hugo, élémentaire | C69: 8-1 | D69: 978 | E69: ='Saisie 1V'!E38:F38 -> 0 | F69: 570 | G69: =D69-F69 -> 408 | H69: ='Saisie 1V'!G38 -> 5 | I69: ='Saisie 1V'!H38 -> 5 | J69: =H69+I69 -> 10 | K69: =F69-J69 -> 560 | L69: ='Saisie 1V'!I38:AM38 -> 22 | M69: 0 | N69: 0 | O69: 1 | P69: 165 | Q69: 0 | R69: 0 | S69: 0 | T69: 8 | U69: 0 | V69: 11 | W69: 44 | X69: 4 | Y69: 0 | Z69: 16 | AA69: 1 | AB69: 0 | AC69: 0 | AD69: 15 | AE69: 5 | AF69: 22 | AG69: 0 | AH69: 49 | AI69: 0 | AJ69: 0 | AK69: 0 | AL69: 0 | AM69: 2 | AN69: 47 | AO69: 132 | AP69: 8 | AQ69: ='Saisie 1V'!AN38:BR38 -> 1 | AR69: ='Saisie 1V'!AO38:BS38 -> 0 | AS69: ='Saisie 1V'!AP38:BT38 -> 7
A70: 0 | B70: 0 | C70: 0 | D70: 0 | E70: =E69/D69 -> 0 | F70: =IF(F69=0,"",F69/D69) -> 0.5828220859 | G70: =IF(G69=0,"",G69/$D$69) -> 0.4171779141 | H70: =IF(H69=0,"",H69/$F$69) -> 0.008771929825 | I70: =IF(I69=0,"",I69/$F$69) -> 0.008771929825 | J70: =IF(J69=0,"",J69/$F$69) -> 0.01754385965 | L70: =L69/$K$69 -> 0.03928571429 | M70: 0 | N70: 0 | O70: 0.001785714286 | P70: 0.2946428571 | Q70: 0 | R70: 0 | S70: 0 | T70: 0.01428571429 | U70: 0 | V70: 0.01964285714 | W70: 0.07857142857 | X70: 0.007142857143 | Y70: 0 | Z70: 0.02857142857 | AA70: 0.001785714286 | AB70: 0 | AC70: 0 | AD70: 0.02678571429 | AE70: 0.008928571429 | AF70: 0.03928571429 | AG70: 0 | AH70: 0.0875 | AI70: 0 | AJ70: 0 | AK70: =AK69/$K$69 -> 0 | AL70: 0 | AM70: 0.003571428571 | AN70: 0.08392857143 | AO70: 0.2357142857 | AP70: 0.01428571429 | AQ70: =AQ69/$K$69 -> 0.001785714286 | AR70: 0 | AS70: 0.0125
A71: 33 | B71: Camus, maternelle | C71: 8-1 | D71: 1162 | E71: ='Saisie 1V'!E39:F39 -> 0 | F71: 579 | G71: =D71-F71 -> 583 | H71: ='Saisie 1V'!G39 -> 14 | I71: ='Saisie 1V'!H39 -> 8 | J71: =H71+I71 -> 22 | K71: =F71-J71 -> 557 | L71: ='Saisie 1V'!I39:AM39 -> 42 | M71: 0 | N71: 0 | O71: 2 | P71: 150 | Q71: 0 | R71: 2 | S71: 0 | T71: 9 | U71: 0 | V71: 11 | W71: 42 | X71: 0 | Y71: 0 | Z71: 20 | AA71: 0 | AB71: 0 | AC71: 1 | AD71: 13 | AE71: 7 | AF71: 19 | AG71: 0 | AH71: 74 | AI71: 0 | AJ71: 0 | AK71: 0 | AL71: 0 | AM71: 0 | AN71: 50 | AO71: 92 | AP71: 16 | AQ71: ='Saisie 1V'!AN39:BR39 -> 2 | AR71: ='Saisie 1V'!AO39:BS39 -> 0 | AS71: ='Saisie 1V'!AP39:BT39 -> 5
A72: 0 | B72: 0 | C72: 0 | D72: 0 | E72: =E71/D71 -> 0 | F72: =IF(F71=0,"",F71/D71) -> 0.4982788296 | G72: =IF(G71=0,"",G71/$D$71) -> 0.5017211704 | H72: =IF(H71=0,"",H71/$F$71) -> 0.02417962003 | I72: =IF(I71=0,"",I71/$F$71) -> 0.01381692573 | J72: =IF(J71=0,"",J71/$F$71) -> 0.03799654577 | L72: =L71/$K$71 -> 0.07540394973 | M72: 0 | N72: 0 | O72: 0.003590664273 | P72: 0.2692998205 | Q72: 0 | R72: 0.003590664273 | S72: 0 | T72: 0.01615798923 | U72: 0 | V72: 0.0197486535 | W72: 0.07540394973 | X72: 0 | Y72: 0 | Z72: 0.03590664273 | AA72: 0 | AB72: 0 | AC72: 0.001795332136 | AD72: 0.02333931777 | AE72: 0.01256732496 | AF72: 0.03411131059 | AG72: 0 | AH72: 0.1328545781 | AI72: 0 | AJ72: 0 | AK72: =AK71/$K$71 -> 0 | AL72: 0 | AM72: 0 | AN72: 0.08976660682 | AO72: 0.1651705566 | AP72: 0.02872531418 | AQ72: =AQ71/$K$71 -> 0.003590664273 | AR72: 0 | AS72: 0.008976660682
A73: 34 | B73: Guiblets | C73: 8-2 | D73: 1019 | E73: ='Saisie 1V'!E40:F40 -> 0 | F73: 437 | G73: =D73-F73 -> 582 | H73: ='Saisie 1V'!G40 -> 9 | I73: ='Saisie 1V'!H40 -> 14 | J73: =H73+I73 -> 23 | K73: =F73-J73 -> 414 | L73: ='Saisie 1V'!I40:AM40 -> 33 | M73: 0 | N73: 0 | O73: 0 | P73: 109 | Q73: 0 | R73: 1 | S73: 0 | T73: 9 | U73: 0 | V73: 15 | W73: 27 | X73: 0 | Y73: 0 | Z73: 15 | AA73: 0 | AB73: 0 | AC73: 2 | AD73: 10 | AE73: 7 | AF73: 12 | AG73: 0 | AH73: 68 | AI73: 0 | AJ73: 0 | AK73: 0 | AL73: 0 | AM73: 0 | AN73: 39 | AO73: 44 | AP73: 13 | AQ73: ='Saisie 1V'!AN40:BR40 -> 1 | AR73: ='Saisie 1V'!AO40:BS40 -> 1 | AS73: ='Saisie 1V'!AP40:BT40 -> 8
A74: 0 | B74: 0 | C74: 0 | D74: 0 | E74: =E73/D73 -> 0 | F74: =IF(F73=0,"",F73/D73) -> 0.4288518155 | G74: =IF(G73=0,"",G73/$D$73) -> 0.5711481845 | H74: =IF(H73=0,"",H73/$F$73) -> 0.02059496568 | I74: =IF(I73=0,"",I73/$F$73) -> 0.03203661327 | J74: =IF(J73=0,"",J73/$F$73) -> 0.05263157895 | L74: =L73/$K$73 -> 0.07971014493 | M74: 0 | N74: 0 | O74: 0 | P74: 0.2632850242 | Q74: 0 | R74: 0.002415458937 | S74: 0 | T74: 0.02173913043 | U74: 0 | V74: 0.03623188406 | W74: 0.0652173913 | X74: 0 | Y74: 0 | Z74: 0.03623188406 | AA74: 0 | AB74: 0 | AC74: 0.004830917874 | AD74: 0.02415458937 | AE74: 0.01690821256 | AF74: 0.02898550725 | AG74: 0 | AH74: 0.1642512077 | AI74: 0 | AJ74: 0 | AK74: =AK73/$K$73 -> 0 | AL74: 0 | AM74: 0 | AN74: 0.09420289855 | AO74: 0.1062801932 | AP74: 0.03140096618 | AQ74: =AQ73/$K$73 -> 0.002415458937 | AR74: 0.002415458937 | AS74: 0.0193236715
A75: 35 | B75: Casalis, élémentaire | C75: 8-2 | D75: 637 | E75: ='Saisie 1V'!E41:F41 -> 0 | F75: 210 | G75: =D75-F75 -> 427 | H75: ='Saisie 1V'!G41 -> 5 | I75: ='Saisie 1V'!H41 -> 3 | J75: =H75+I75 -> 8 | K75: =F75-J75 -> 202 | L75: ='Saisie 1V'!I41:AM41 -> 36 | M75: 0 | N75: 0 | O75: 0 | P75: 34 | Q75: 0 | R75: 1 | S75: 0 | T75: 5 | U75: 0 | V75: 2 | W75: 15 | X75: 1 | Y75: 0 | Z75: 5 | AA75: 0 | AB75: 0 | AC75: 0 | AD75: 9 | AE75: 5 | AF75: 13 | AG75: 0 | AH75: 32 | AI75: 0 | AJ75: 0 | AK75: 0 | AL75: 0 | AM75: 2 | AN75: 12 | AO75: 20 | AP75: 6 | AQ75: ='Saisie 1V'!AN41:BR41 -> 0 | AR75: ='Saisie 1V'!AO41:BS41 -> 0 | AS75: ='Saisie 1V'!AP41:BT41 -> 4
A76: 0 | B76: 0 | C76: 0 | D76: 0 | E76: =E75/D75 -> 0 | F76: =IF(F75=0,"",F75/D75) -> 0.3296703297 | G76: =IF(G75=0,"",G75/$D$75) -> 0.6703296703 | H76: =IF(H75=0,"",H75/$F$75) -> 0.02380952381 | I76: =IF(I75=0,"",I75/$F$75) -> 0.01428571429 | J76: =IF(J75=0,"",J75/$F$75) -> 0.0380952381 | L76: =L75/$K$75 -> 0.1782178218 | M76: 0 | N76: 0 | O76: 0 | P76: 0.1683168317 | Q76: 0 | R76: 0.00495049505 | S76: 0 | T76: 0.02475247525 | U76: 0 | V76: 0.009900990099 | W76: 0.07425742574 | X76: 0.00495049505 | Y76: 0 | Z76: 0.02475247525 | AA76: 0 | AB76: 0 | AC76: 0 | AD76: 0.04455445545 | AE76: 0.02475247525 | AF76: 0.06435643564 | AG76: 0 | AH76: 0.1584158416 | AI76: 0 | AJ76: 0 | AK76: =AK75/$K$75 -> 0 | AL76: 0 | AM76: 0.009900990099 | AN76: 0.05940594059 | AO76: 0.09900990099 | AP76: 0.0297029703 | AQ76: =AQ75/$K$75 -> 0 | AR76: 0 | AS76: 0.0198019802
A77: 36 | B77: Guiblets | C77: 8-2 | D77: 748 | E77: ='Saisie 1V'!E42:F42 -> 0 | F77: 258 | G77: =D77-F77 -> 490 | H77: ='Saisie 1V'!G42 -> 6 | I77: ='Saisie 1V'!H42 -> 5 | J77: =H77+I77 -> 11 | K77: =F77-J77 -> 247 | L77: ='Saisie 1V'!I42:AM42 -> 31 | M77: 0 | N77: 0 | O77: 0 | P77: 41 | Q77: 0 | R77: 0 | S77: 0 | T77: 15 | U77: 0 | V77: 8 | W77: 14 | X77: 0 | Y77: 0 | Z77: 8 | AA77: 0 | AB77: 0 | AC77: 2 | AD77: 13 | AE77: 4 | AF77: 19 | AG77: 0 | AH77: 43 | AI77: 0 | AJ77: 0 | AK77: 0 | AL77: 0 | AM77: 1 | AN77: 14 | AO77: 26 | AP77: 7 | AQ77: ='Saisie 1V'!AN42:BR42 -> 0 | AR77: ='Saisie 1V'!AO42:BS42 -> 0 | AS77: ='Saisie 1V'!AP42:BT42 -> 1
A78: 0 | B78: 0 | C78: 0 | D78: 0 | E78: =E77/D77 -> 0 | F78: =IF(F77=0,"",F77/D77) -> 0.3449197861 | G78: =IF(G77=0,"",G77/$D$77) -> 0.6550802139 | H78: =IF(H77=0,"",H77/$F$77) -> 0.02325581395 | I78: =IF(I77=0,"",I77/$F$77) -> 0.01937984496 | J78: =IF(J77=0,"",J77/$F$77) -> 0.04263565891 | L78: =L77/$K$77 -> 0.1255060729 | M78: 0 | N78: 0 | O78: 0 | P78: 0.1659919028 | Q78: 0 | R78: 0 | S78: 0 | T78: 0.06072874494 | U78: 0 | V78: 0.03238866397 | W78: 0.05668016194 | X78: 0 | Y78: 0 | Z78: 0.03238866397 | AA78: 0 | AB78: 0 | AC78: 0.008097165992 | AD78: 0.05263157895 | AE78: 0.01619433198 | AF78: 0.07692307692 | AG78: 0 | AH78: 0.1740890688 | AI78: 0 | AJ78: 0 | AK78: =AK77/$K$77 -> 0 | AL78: 0 | AM78: 0.004048582996 | AN78: 0.05668016194 | AO78: 0.1052631579 | AP78: 0.02834008097 | AQ78: =AQ77/$K$77 -> 0 | AR78: 0 | AS78: 0.004048582996
A79: 37 | B79: Casalis, maternelle | C79: 8-2 | D79: 1023 | E79: ='Saisie 1V'!E43:F43 -> 0 | F79: 309 | G79: =D79-F79 -> 714 | H79: ='Saisie 1V'!G43 -> 5 | I79: ='Saisie 1V'!H43 -> 7 | J79: =H79+I79 -> 12 | K79: =F79-J79 -> 297 | L79: ='Saisie 1V'!I43:AM43 -> 55 | M79: 0 | N79: 0 | O79: 1 | P79: 42 | Q79: 0 | R79: 0 | S79: 0 | T79: 5 | U79: 0 | V79: 2 | W79: 21 | X79: 0 | Y79: 0 | Z79: 2 | AA79: 0 | AB79: 0 | AC79: 4 | AD79: 9 | AE79: 7 | AF79: 24 | AG79: 0 | AH79: 53 | AI79: 0 | AJ79: 0 | AK79: 0 | AL79: 0 | AM79: 0 | AN79: 11 | AO79: 32 | AP79: 6 | AQ79: ='Saisie 1V'!AN43:BR43 -> 3 | AR79: ='Saisie 1V'!AO43:BS43 -> 2 | AS79: ='Saisie 1V'!AP43:BT43 -> 18
A80: 0 | B80: 0 | C80: 0 | D80: 0 | E80: =E79/D79 -> 0 | F80: =IF(F79=0,"",F79/D79) -> 0.3020527859 | G80: =IF(G79=0,"",G79/$D$79) -> 0.6979472141 | H80: =IF(H79=0,"",H79/$F$79) -> 0.01618122977 | I80: =IF(I79=0,"",I79/$F$79) -> 0.02265372168 | J80: =IF(J79=0,"",J79/$F$79) -> 0.03883495146 | L80: =L79/$K$79 -> 0.1851851852 | M80: 0 | N80: 0 | O80: 0.003367003367 | P80: 0.1414141414 | Q80: 0 | R80: 0 | S80: 0 | T80: 0.01683501684 | U80: 0 | V80: 0.006734006734 | W80: 0.07070707071 | X80: 0 | Y80: 0 | Z80: 0.006734006734 | AA80: 0 | AB80: 0 | AC80: 0.01346801347 | AD80: 0.0303030303 | AE80: 0.02356902357 | AF80: 0.08080808081 | AG80: 0 | AH80: 0.1784511785 | AI80: 0 | AJ80: 0 | AK80: =AK79/$K$79 -> 0 | AL80: 0 | AM80: 0 | AN80: 0.03703703704 | AO80: 0.1077441077 | AP80: 0.0202020202 | AQ80: =AQ79/$K$79 -> 0.0101010101 | AR80: 0.006734006734 | AS80: 0.06060606061
A81: 38 | B81: Jeu de paume | C81: 8-2 | D81: 807 | E81: ='Saisie 1V'!E44:F44 -> 0 | F81: 266 | G81: =D81-F81 -> 541 | H81: ='Saisie 1V'!G44 -> 6 | I81: ='Saisie 1V'!H44 -> 11 | J81: =H81+I81 -> 17 | K81: =F81-J81 -> 249 | L81: ='Saisie 1V'!I44:AM44 -> 38 | M81: 0 | N81: 0 | O81: 0 | P81: 45 | Q81: 0 | R81: 1 | S81: 0 | T81: 1 | U81: 0 | V81: 4 | W81: 24 | X81: 0 | Y81: 0 | Z81: 7 | AA81: 0 | AB81: 0 | AC81: 1 | AD81: 16 | AE81: 4 | AF81: 21 | AG81: 0 | AH81: 39 | AI81: 0 | AJ81: 0 | AK81: 0 | AL81: 0 | AM81: 0 | AN81: 11 | AO81: 22 | AP81: 6 | AQ81: ='Saisie 1V'!AN44:BR44 -> 2 | AR81: ='Saisie 1V'!AO44:BS44 -> 2 | AS81: ='Saisie 1V'!AP44:BT44 -> 5
A82: 0 | B82: 0 | C82: 0 | D82: 0 | E82: =E81/D81 -> 0 | F82: =IF(F81=0,"",F81/D81) -> 0.3296158612 | G82: =IF(G81=0,"",G81/$D$81) -> 0.6703841388 | H82: =IF(H81=0,"",H81/$F$81) -> 0.02255639098 | I82: =IF(I81=0,"",I81/$F$81) -> 0.04135338346 | J82: =IF(J81=0,"",J81/$F$81) -> 0.06390977444 | L82: =L81/$K$81 -> 0.1526104418 | M82: 0 | N82: 0 | O82: 0 | P82: 0.1807228916 | Q82: 0 | R82: 0.004016064257 | S82: 0 | T82: 0.004016064257 | U82: 0 | V82: 0.01606425703 | W82: 0.09638554217 | X82: 0 | Y82: 0 | Z82: 0.0281124498 | AA82: 0 | AB82: 0 | AC82: 0.004016064257 | AD82: 0.06425702811 | AE82: 0.01606425703 | AF82: 0.0843373494 | AG82: 0 | AH82: 0.156626506 | AI82: 0 | AJ82: 0 | AK82: =AK81/$K$81 -> 0 | AL82: 0 | AM82: 0 | AN82: 0.04417670683 | AO82: 0.08835341365 | AP82: 0.02409638554 | AQ82: =AQ81/$K$81 -> 0.008032128514 | AR82: 0.008032128514 | AS82: 0.02008032129
A83: 39 | B83: Jeu de paume | C83: 8-2 | D83: 1178 | E83: ='Saisie 1V'!E45:F45 -> 0 | F83: 466 | G83: =D83-F83 -> 712 | H83: ='Saisie 1V'!G45 -> 7 | I83: ='Saisie 1V'!H45 -> 10 | J83: =H83+I83 -> 17 | K83: =F83-J83 -> 449 | L83: ='Saisie 1V'!I45:AM45 -> 63 | M83: 0 | N83: 0 | O83: 1 | P83: 74 | Q83: 0 | R83: 1 | S83: 0 | T83: 7 | U83: 0 | V83: 2 | W83: 41 | X83: 0 | Y83: 0 | Z83: 21 | AA83: 0 | AB83: 0 | AC83: 3 | AD83: 7 | AE83: 4 | AF83: 13 | AG83: 0 | AH83: 86 | AI83: 0 | AJ83: 0 | AK83: 1 | AL83: 0 | AM83: 0 | AN83: 22 | AO83: 54 | AP83: 23 | AQ83: ='Saisie 1V'!AN45:BR45 -> 0 | AR83: ='Saisie 1V'!AO45:BS45 -> 0 | AS83: ='Saisie 1V'!AP45:BT45 -> 26
A84: 0 | B84: 0 | C84: 0 | D84: 0 | E84: =E83/D83 -> 0 | F84: =IF(F83=0,"",F83/D83) -> 0.3955857385 | G84: =IF(G83=0,"",G83/$D$83) -> 0.6044142615 | H84: =IF(H83=0,"",H83/$F$83) -> 0.01502145923 | I84: =IF(I83=0,"",I83/$F$83) -> 0.02145922747 | J84: =IF(J83=0,"",J83/$F$83) -> 0.0364806867 | L84: =L83/$K$83 -> 0.140311804 | M84: 0 | N84: 0 | O84: 0.002227171492 | P84: 0.1648106904 | Q84: 0 | R84: 0.002227171492 | S84: 0 | T84: 0.01559020045 | U84: 0 | V84: 0.004454342984 | W84: 0.09131403118 | X84: 0 | Y84: 0 | Z84: 0.04677060134 | AA84: 0 | AB84: 0 | AC84: 0.006681514477 | AD84: 0.01559020045 | AE84: 0.008908685969 | AF84: 0.0289532294 | AG84: 0 | AH84: 0.1915367483 | AI84: 0 | AJ84: 0 | AK84: =AK83/$K$83 -> 0.002227171492 | AL84: 0 | AM84: 0 | AN84: 0.04899777283 | AO84: 0.1202672606 | AP84: 0.05122494432 | AQ84: =AQ83/$K$83 -> 0 | AR84: 0 | AS84: 0.0579064588
A85: 40 | B85: Savignat, maternelle | C85: 8-2 | D85: 929 | E85: ='Saisie 1V'!E46:F46 -> 0 | F85: 273 | G85: =D85-F85 -> 656 | H85: ='Saisie 1V'!G46 -> 7 | I85: ='Saisie 1V'!H46 -> 9 | J85: =H85+I85 -> 16 | K85: =F85-J85 -> 257 | L85: ='Saisie 1V'!I46:AM46 -> 29 | M85: 0 | N85: 0 | O85: 0 | P85: 33 | Q85: 0 | R85: 1 | S85: 0 | T85: 2 | U85: 0 | V85: 6 | W85: 28 | X85: 0 | Y85: 0 | Z85: 6 | AA85: 0 | AB85: 0 | AC85: 0 | AD85: 13 | AE85: 5 | AF85: 21 | AG85: 0 | AH85: 38 | AI85: 0 | AJ85: 0 | AK85: 0 | AL85: 0 | AM85: 2 | AN85: 18 | AO85: 25 | AP85: 4 | AQ85: ='Saisie 1V'!AN46:BR46 -> 1 | AR85: ='Saisie 1V'!AO46:BS46 -> 0 | AS85: ='Saisie 1V'!AP46:BT46 -> 25
A86: 0 | B86: 0 | C86: 0 | D86: 0 | E86: =E85/D85 -> 0 | F86: =IF(F85=0,"",F85/D85) -> 0.2938643703 | G86: =IF(G85=0,"",G85/$D$85) -> 0.7061356297 | H86: =IF(H85=0,"",H85/$F$85) -> 0.02564102564 | I86: =IF(I85=0,"",I85/$F$85) -> 0.03296703297 | J86: =IF(J85=0,"",J85/$F$85) -> 0.05860805861 | L86: =L85/$K$85 -> 0.1128404669 | M86: 0 | N86: 0 | O86: 0 | P86: 0.1284046693 | Q86: 0 | R86: 0.003891050584 | S86: 0 | T86: 0.007782101167 | U86: 0 | V86: 0.0233463035 | W86: 0.1089494163 | X86: 0 | Y86: 0 | Z86: 0.0233463035 | AA86: 0 | AB86: 0 | AC86: 0 | AD86: 0.05058365759 | AE86: 0.01945525292 | AF86: 0.08171206226 | AG86: 0 | AH86: 0.1478599222 | AI86: 0 | AJ86: 0 | AK86: =AK85/$K$85 -> 0 | AL86: 0 | AM86: 0.007782101167 | AN86: 0.07003891051 | AO86: 0.09727626459 | AP86: 0.01556420233 | AQ86: =AQ85/$K$85 -> 0.003891050584 | AR86: 0 | AS86: 0.09727626459
A87: 41 | B87: Savignat, élémentaire | C87: 8-2 | D87: 865 | E87: ='Saisie 1V'!E47:F47 -> 0 | F87: 358 | G87: =D87-F87 -> 507 | H87: ='Saisie 1V'!G47 -> 10 | I87: ='Saisie 1V'!H47 -> 9 | J87: =H87+I87 -> 19 | K87: =F87-J87 -> 339 | L87: ='Saisie 1V'!I47:AM47 -> 40 | M87: 0 | N87: 0 | O87: 1 | P87: 51 | Q87: 0 | R87: 3 | S87: 0 | T87: 6 | U87: 0 | V87: 8 | W87: 28 | X87: 1 | Y87: 0 | Z87: 13 | AA87: 0 | AB87: 0 | AC87: 0 | AD87: 16 | AE87: 6 | AF87: 14 | AG87: 0 | AH87: 69 | AI87: 0 | AJ87: 0 | AK87: 0 | AL87: 0 | AM87: 0 | AN87: 9 | AO87: 44 | AP87: 10 | AQ87: ='Saisie 1V'!AN47:BR47 -> 1 | AR87: ='Saisie 1V'!AO47:BS47 -> 0 | AS87: ='Saisie 1V'!AP47:BT47 -> 19
A88: 0 | B88: 0 | C88: 0 | D88: 0 | E88: =E87/D87 -> 0 | F88: =IF(F87=0,"",F87/D87) -> 0.4138728324 | G88: =IF(G87=0,"",G87/$D$87) -> 0.5861271676 | H88: =IF(H87=0,"",H87/$F$87) -> 0.02793296089 | I88: =IF(I87=0,"",I87/$F$87) -> 0.0251396648 | J88: =IF(J87=0,"",J87/$F$87) -> 0.0530726257 | L88: =L87/$K$87 -> 0.1179941003 | M88: 0 | N88: 0 | O88: 0.002949852507 | P88: 0.1504424779 | Q88: 0 | R88: 0.008849557522 | S88: 0 | T88: 0.01769911504 | U88: 0 | V88: 0.02359882006 | W88: 0.08259587021 | X88: 0.002949852507 | Y88: 0 | Z88: 0.0383480826 | AA88: 0 | AB88: 0 | AC88: 0 | AD88: 0.04719764012 | AE88: 0.01769911504 | AF88: 0.0412979351 | AG88: 0 | AH88: 0.203539823 | AI88: 0 | AJ88: 0 | AK88: =AK87/$K$87 -> 0 | AL88: 0 | AM88: 0 | AN88: 0.02654867257 | AO88: 0.1297935103 | AP88: 0.02949852507 | AQ88: =AQ87/$K$87 -> 0.002949852507 | AR88: 0 | AS88: 0.05604719764
A89: 42 | B89: La Habette, élémentaire | C89: 8-2 | D89: 984 | E89: ='Saisie 1V'!E48:F48 -> 0 | F89: 342 | G89: =D89-F89 -> 642 | H89: ='Saisie 1V'!G48 -> 7 | I89: ='Saisie 1V'!H48 -> 12 | J89: =H89+I89 -> 19 | K89: =F89-J89 -> 323 | L89: ='Saisie 1V'!I48:AM48 -> 59 | M89: 0 | N89: 0 | O89: 2 | P89: 40 | Q89: 0 | R89: 3 | S89: 0 | T89: 15 | U89: 0 | V89: 7 | W89: 25 | X89: 0 | Y89: 0 | Z89: 13 | AA89: 0 | AB89: 0 | AC89: 3 | AD89: 17 | AE89: 5 | AF89: 15 | AG89: 0 | AH89: 68 | AI89: 0 | AJ89: 0 | AK89: 0 | AL89: 0 | AM89: 1 | AN89: 3 | AO89: 36 | AP89: 4 | AQ89: ='Saisie 1V'!AN48:BR48 -> 0 | AR89: ='Saisie 1V'!AO48:BS48 -> 0 | AS89: ='Saisie 1V'!AP48:BT48 -> 7
A90: 0 | B90: 0 | C90: 0 | D90: 0 | E90: =E89/D89 -> 0 | F90: =IF(F89=0,"",F89/D89) -> 0.3475609756 | G90: =IF(G89=0,"",G89/$D$89) -> 0.6524390244 | H90: =IF(H89=0,"",H89/$F$89) -> 0.02046783626 | I90: =IF(I89=0,"",I89/$F$89) -> 0.0350877193 | J90: =IF(J89=0,"",J89/$F$89) -> 0.05555555556 | L90: =L89/$K$89 -> 0.1826625387 | M90: 0 | N90: 0 | O90: 0.006191950464 | P90: 0.1238390093 | Q90: 0 | R90: 0.009287925697 | S90: 0 | T90: 0.04643962848 | U90: 0 | V90: 0.02167182663 | W90: 0.0773993808 | X90: 0 | Y90: 0 | Z90: 0.04024767802 | AA90: 0 | AB90: 0 | AC90: 0.009287925697 | AD90: 0.05263157895 | AE90: 0.01547987616 | AF90: 0.04643962848 | AG90: 0 | AH90: 0.2105263158 | AI90: 0 | AJ90: 0 | AK90: =AK89/$K$89 -> 0 | AL90: 0 | AM90: 0.003095975232 | AN90: 0.009287925697 | AO90: 0.1114551084 | AP90: 0.01238390093 | AQ90: =AQ89/$K$89 -> 0 | AR90: 0 | AS90: 0.02167182663
A91: 43 | B91: La Habette, élémentaire | C91: 8-2 | D91: 1103 | E91: ='Saisie 1V'!E49:F49 -> 0 | F91: 373 | G91: =D91-F91 -> 730 | H91: ='Saisie 1V'!G49 -> 7 | I91: ='Saisie 1V'!H49 -> 6 | J91: =H91+I91 -> 13 | K91: =F91-J91 -> 360 | L91: ='Saisie 1V'!I49:AM49 -> 45 | M91: 0 | N91: 0 | O91: 1 | P91: 52 | Q91: 0 | R91: 3 | S91: 0 | T91: 10 | U91: 0 | V91: 4 | W91: 45 | X91: 0 | Y91: 0 | Z91: 8 | AA91: 0 | AB91: 0 | AC91: 7 | AD91: 20 | AE91: 9 | AF91: 27 | AG91: 0 | AH91: 57 | AI91: 0 | AJ91: 0 | AK91: 0 | AL91: 0 | AM91: 2 | AN91: 12 | AO91: 34 | AP91: 12 | AQ91: ='Saisie 1V'!AN49:BR49 -> 0 | AR91: ='Saisie 1V'!AO49:BS49 -> 1 | AS91: ='Saisie 1V'!AP49:BT49 -> 11
A92: 0 | B92: 0 | C92: 0 | D92: 0 | E92: =E91/D91 -> 0 | F92: =IF(F91=0,"",F91/D91) -> 0.338168631 | G92: =IF(G91=0,"",G91/$D$91) -> 0.661831369 | H92: =IF(H91=0,"",H91/$F$91) -> 0.01876675603 | I92: =IF(I91=0,"",I91/$F$91) -> 0.01608579088 | J92: =IF(J91=0,"",J91/$F$91) -> 0.03485254692 | L92: =L91/$K$91 -> 0.125 | M92: 0 | N92: 0 | O92: 0.002777777778 | P92: 0.1444444444 | Q92: 0 | R92: 0.008333333333 | S92: 0 | T92: 0.02777777778 | U92: 0 | V92: 0.01111111111 | W92: 0.125 | X92: 0 | Y92: 0 | Z92: 0.02222222222 | AA92: 0 | AB92: 0 | AC92: 0.01944444444 | AD92: 0.05555555556 | AE92: 0.025 | AF92: 0.075 | AG92: 0 | AH92: 0.1583333333 | AI92: 0 | AJ92: 0 | AK92: =AK91/$K$91 -> 0 | AL92: 0 | AM92: 0.005555555556 | AN92: 0.03333333333 | AO92: 0.09444444444 | AP92: 0.03333333333 | AQ92: =AQ91/$K$91 -> 0 | AR92: 0.002777777778 | AS92: 0.03055555556
A93: 44 | B93: Centre socio-culturel M.Rebérioux | C93: 8-2 | D93: 926 | E93: ='Saisie 1V'!E50:F50 -> 0 | F93: 369 | G93: =D93-F93 -> 557 | H93: ='Saisie 1V'!G50 -> 13 | I93: ='Saisie 1V'!H50 -> 5 | J93: =H93+I93 -> 18 | K93: =F93-J93 -> 351 | L93: ='Saisie 1V'!I50:AM50 -> 41 | M93: 0 | N93: 0 | O93: 4 | P93: 57 | Q93: 0 | R93: 2 | S93: 0 | T93: 7 | U93: 0 | V93: 3 | W93: 39 | X93: 0 | Y93: 0 | Z93: 4 | AA93: 0 | AB93: 0 | AC93: 3 | AD93: 11 | AE93: 12 | AF93: 17 | AG93: 0 | AH93: 46 | AI93: 0 | AJ93: 0 | AK93: 1 | AL93: 0 | AM93: 2 | AN93: 15 | AO93: 51 | AP93: 9 | AQ93: ='Saisie 1V'!AN50:BR50 -> 0 | AR93: ='Saisie 1V'!AO50:BS50 -> 2 | AS93: ='Saisie 1V'!AP50:BT50 -> 25
A94: 0 | B94: 0 | C94: 0 | D94: 0 | E94: =E93/$D$93 -> 0 | F94: =IF(F93=0,"",F93/D93) -> 0.398488121 | G94: =IF(G93=0,"",G93/$D$93) -> 0.601511879 | H94: =IF(H93=0,"",H93/$F$93) -> 0.0352303523 | I94: =IF(I93=0,"",I93/$F$93) -> 0.0135501355 | J94: =IF(J93=0,"",J93/$F$93) -> 0.0487804878 | L94: =L93/$K$93 -> 0.1168091168 | M94: 0 | N94: 0 | O94: 0.0113960114 | P94: 0.1623931624 | Q94: 0 | R94: 0.005698005698 | S94: 0 | T94: 0.01994301994 | U94: 0 | V94: 0.008547008547 | W94: 0.1111111111 | X94: 0 | Y94: 0 | Z94: 0.0113960114 | AA94: 0 | AB94: 0 | AC94: 0.008547008547 | AD94: 0.03133903134 | AE94: 0.03418803419 | AF94: 0.04843304843 | AG94: 0 | AH94: 0.1310541311 | AI94: 0 | AJ94: 0 | AK94: =AK93/$K$93 -> 0.002849002849 | AL94: 0 | AM94: 0.005698005698 | AN94: 0.04273504274 | AO94: 0.1452991453 | AP94: 0.02564102564 | AQ94: =AQ93/$K$93 -> 0 | AR94: 0.005698005698 | AS94: 0.07122507123
A95: 45 | B95: Les Sarrazins, élémentaire | C95: 8-2 | D95: 1369 | E95: ='Saisie 1V'!E51:F51 -> 0 | F95: 544 | G95: =D95-F95 -> 825 | H95: ='Saisie 1V'!G51 -> 16 | I95: ='Saisie 1V'!H51 -> 7 | J95: =H95+I95 -> 23 | K95: =F95-J95 -> 521 | L95: ='Saisie 1V'!I51:AM51 -> 64 | M95: 0 | N95: 0 | O95: 1 | P95: 116 | Q95: 0 | R95: 3 | S95: 0 | T95: 11 | U95: 0 | V95: 11 | W95: 46 | X95: 1 | Y95: 0 | Z95: 5 | AA95: 0 | AB95: 0 | AC95: 5 | AD95: 21 | AE95: 10 | AF95: 45 | AG95: 0 | AH95: 62 | AI95: 0 | AJ95: 0 | AK95: 0 | AL95: 0 | AM95: 2 | AN95: 12 | AO95: 79 | AP95: 8 | AQ95: ='Saisie 1V'!AN51:BR51 -> 2 | AR95: ='Saisie 1V'!AO51:BS51 -> 2 | AS95: ='Saisie 1V'!AP51:BT51 -> 15
A96: 0 | B96: 0 | C96: 0 | D96: 0 | E96: =E95/$D$95 -> 0 | F96: =IF(F95=0,"",F95/D95) -> 0.3973703433 | G96: =IF(G95=0,"",G95/$D$95) -> 0.6026296567 | H96: =IF(H95=0,"",H95/$F$95) -> 0.02941176471 | I96: =IF(I95=0,"",I95/$F$95) -> 0.01286764706 | J96: =IF(J95=0,"",J95/$F$95) -> 0.04227941176 | L96: =L95/$K$95 -> 0.122840691 | M96: 0 | N96: 0 | O96: 0.001919385797 | P96: 0.2226487524 | Q96: 0 | R96: 0.00575815739 | S96: 0 | T96: 0.02111324376 | U96: 0 | V96: 0.02111324376 | W96: 0.08829174664 | X96: 0.001919385797 | Y96: 0 | Z96: 0.009596928983 | AA96: 0 | AB96: 0 | AC96: 0.009596928983 | AD96: 0.04030710173 | AE96: 0.01919385797 | AF96: 0.08637236084 | AG96: 0 | AH96: 0.1190019194 | AI96: 0 | AJ96: 0 | AK96: =AK95/$K$95 -> 0 | AL96: 0 | AM96: 0.003838771593 | AN96: 0.02303262956 | AO96: 0.1516314779 | AP96: 0.01535508637 | AQ96: =AQ95/$K$95 -> 0.003838771593 | AR96: 0.003838771593 | AS96: 0.02879078695
A97: 46 | B97: 0 | C97: 0 | D97: 0 | E97: ='Saisie 1V'!E52:F52 -> 0 | F97: 0 | G97: =D97-F97 -> 0 | H97: ='Saisie 1V'!G52 -> 0 | I97: ='Saisie 1V'!H52 -> 0 | J97: =H97+I97 -> 0 | K97: =F97-J97 -> 0 | L97: ='Saisie 1V'!I52:AM52 -> 0 | M97: 0 | N97: 0 | O97: 100 | P97: 0 | Q97: 0 | R97: 0 | S97: 100 | T97: 0 | U97: 0 | V97: 0 | W97: 0 | X97: 0 | Y97: 0 | Z97: 0 | AA97: 0 | AB97: 0 | AC97: 0 | AD97: 0 | AE97: 0 | AF97: 0 | AG97: 0 | AH97: 0 | AI97: 0 | AJ97: 0 | AK97: 0 | AL97: 0 | AM97: 0 | AN97: 0 | AO97: 0 | AP97: 0 | AQ97: ='Saisie 1V'!AN52:BR52 -> 0 | AR97: ='Saisie 1V'!AO52:BS52 -> 0 | AS97: ='Saisie 1V'!AP52:BT52 -> 0
A98: 0 | B98: 0 | C98: 0 | D98: 0 | E98: =E97/$D$97 ->  | F98: =IF(F97=0,"",F97/D97) ->  | G98: =IF(G97=0,"",G97/$D$97) ->  | H98: =IF(H97=0,"",H97/$F$97) ->  | I98: =IF(I97=0,"",I97/$F$97) ->  | J98: =IF(J97=0,"",J97/$F$97) ->  | L98: =L97/$K$97 ->  | AK98: =AK97/$K$97 ->  | AQ98: =AQ97/$K$97 -> 
A99: 47 | B99: 0 | C99: 0 | D99: 0 | E99: ='Saisie 1V'!E53:F53 -> 0 | F99: 0 | G99: =D99-F99 -> 0 | H99: ='Saisie 1V'!G53 -> 0 | I99: ='Saisie 1V'!H53 -> 0 | J99: =H99+I99 -> 0 | K99: =F99-J99 -> 0 | L99: ='Saisie 1V'!I53:AM53 -> 0 | M99: 0 | N99: 0 | O99: 100 | P99: 0 | Q99: 0 | R99: 0 | S99: 100 | T99: 0 | U99: 0 | V99: 0 | W99: 0 | X99: 0 | Y99: 0 | Z99: 0 | AA99: 0 | AB99: 0 | AC99: 0 | AD99: 0 | AE99: 0 | AF99: 0 | AG99: 0 | AH99: 0 | AI99: 0 | AJ99: 0 | AK99: 0 | AL99: 0 | AM99: 0 | AN99: 0 | AO99: 0 | AP99: 0 | AQ99: ='Saisie 1V'!AN53:BR53 -> 0 | AR99: ='Saisie 1V'!AO53:BS53 -> 0 | AS99: ='Saisie 1V'!AP53:BT53 -> 0
A100: 0 | B100: 0 | C100: 0 | D100: 0 | E100: =E99/$D$99 ->  | F100: =IF(F99=0,"",F99/D99) ->  | G100: =IF(G99=0,"",G99/$D$99) ->  | H100: =IF(H99=0,"",H99/$F$99) ->  | I100: =IF(I99=0,"",I99/$F$99) ->  | J100: =IF(J99=0,"",J99/$F$99) ->  | L100: =L99/$K$99 ->  | AK100: =AK99/$K$99 ->  | AQ100: =AQ99/$K$99 -> 
A101: 48 | B101: 0 | C101: 0 | D101: 0 | E101: ='Saisie 1V'!E54:F54 -> 0 | F101: 0 | G101: =D101-F101 -> 0 | H101: ='Saisie 1V'!G54 -> 0 | I101: ='Saisie 1V'!H54 -> 0 | J101: =H101+I101 -> 0 | K101: =F101-J101 -> 0 | L101: ='Saisie 1V'!I54:AM54 -> 0 | M101: 0 | N101: 0 | O101: 0 | P101: 0 | Q101: 0 | R101: 0 | S101: 100 | T101: 0 | U101: 0 | V101: 0 | W101: 0 | X101: 0 | Y101: 0 | Z101: 0 | AA101: 0 | AB101: 0 | AC101: 0 | AD101: 0 | AE101: 0 | AF101: 0 | AG101: 0 | AH101: 0 | AI101: 0 | AJ101: 0 | AK101: 0 | AL101: 0 | AM101: 0 | AN101: 0 | AO101: 0 | AP101: 0 | AQ101: ='Saisie 1V'!AN54:BR54 -> 0 | AR101: ='Saisie 1V'!AO54:BS54 -> 0 | AS101: ='Saisie 1V'!AP54:BT54 -> 0 | AV101: CRETEIL critères par canton
A102: 0 | B102: 0 | C102: 0 | D102: 0 | E102: =E101/$D$101 ->  | F102: =IF(F101=0,"",F101/D101) ->  | G102: =IF(G101=0,"",G101/$D$101) ->  | H102: =IF(H101=0,"",H101/$F$101) ->  | I102: =IF(I101=0,"",I101/$F$101) ->  | J102: =IF(J101=0,"",J101/$F$101) ->  | L102: =L101/$K$101 ->  | AK102: =AK101/$K$101 ->  | AQ102: =AQ101/$K$101 ->  | AV102: CR | AX102: CR_7 | AY102: CR_8
A103: 49 | B103: 0 | C103: 0 | D103: 0 | E103: ='Saisie 1V'!E55:F556 -> 0 | F103: 0 | G103: =D103-F103 -> 0 | H103: ='Saisie 1V'!G55 -> 0 | I103: ='Saisie 1V'!H55 -> 0 | J103: =H103+I103 -> 0 | K103: =F103-J103 -> 0 | L103: ='Saisie 1V'!I55:AM55 -> 0 | M103: 0 | N103: 0 | O103: 0 | P103: 0 | Q103: 0 | R103: 100 | S103: 0 | T103: 0 | U103: 0 | V103: 0 | W103: 0 | X103: 0 | Y103: 0 | Z103: 0 | AA103: 0 | AB103: 0 | AC103: 0 | AD103: 0 | AE103: 0 | AF103: 0 | AG103: 0 | AH103: 0 | AI103: 0 | AJ103: 0 | AK103: 0 | AL103: 0 | AM103: 0 | AN103: 0 | AO103: 0 | AP103: 0 | AQ103: ='Saisie 1V'!AN55:BR55 -> 0 | AR103: ='Saisie 1V'!AO55:BS55 -> 0 | AS103: ='Saisie 1V'!AP55:BT55 -> 0 | AV103: CAN | AX103: CAN | AY103: CAN
A104: 0 | B104: 0 | C104: 0 | D104: 0 | E104: =E103/$D$103 ->  | F104: =IF(F103=0,"",F103/D103) ->  | G104: =IF(G103=0,"",G103/$D$103) ->  | H104: =IF(H103=0,"",H103/$F$103) ->  | I104: =IF(I103=0,"",I103/$F$103) ->  | J104: =IF(J103=0,"",J103/$F$103) ->  | L104: =L103/$K$103 ->  | AK104: =AK103/$K$103 ->  | AQ104: =AQ103/$K$103 ->  | AV104: 7* | AX104: 7* | AY104: 8*
A105: 50 | B105: 0 | C105: 0 | D105: 0 | E105: ='Saisie 1V'!E56:F56 -> 0 | F105: 0 | G105: =D105-F105 -> 0 | H105: ='Saisie 1V'!G56 -> 0 | I105: ='Saisie 1V'!H56 -> 0 | J105: =H105+I105 -> 0 | K105: =F105-J105 -> 0 | L105: ='Saisie 1V'!I56:AM56 -> 0 | M105: 0 | N105: 0 | O105: 0 | P105: 0 | Q105: 0 | R105: 100 | S105: 0 | T105: 0 | U105: 0 | V105: 0 | W105: 0 | X105: 0 | Y105: 0 | Z105: 0 | AA105: 0 | AB105: 0 | AC105: 0 | AD105: 0 | AE105: 0 | AF105: 0 | AG105: 0 | AH105: 0 | AI105: 0 | AJ105: 0 | AK105: 0 | AL105: 0 | AM105: 0 | AN105: 0 | AO105: 0 | AP105: 0 | AQ105: ='Saisie 1V'!AN56:BR56 -> 0 | AR105: ='Saisie 1V'!AO56:BS56 -> 0 | AS105: ='Saisie 1V'!AP56:BT56 -> 0 | AV105: 8*
A106: 0 | B106: 0 | C106: 0 | D106: 0 | E106: =E105/$D$105 ->  | F106: =IF(F105=0,"",F105/D105) ->  | G106: =IF(G105=0,"",G105/D105) ->  | H106: =IF(H105=0,"",H105/$F$105) ->  | I106: =IF(I105=0,"",I105/$F$105) ->  | J106: =IF(J105=0,"",J105/$F$105) ->  | L106: =L105/$K105 ->  | M106: =M105/$K$105 ->  | AK106: =AK105/$K$105 ->  | AQ106: =AQ105/$K$105 -> 
A109: =GE!$A$135:$D$148 -> 0 | B109: Canton de Bonneuil | C109: bo | D109: 0 | E109: ='Saisie 1V'!E59:F59 -> 0 | F109: 0 | G109: =D109-F109 -> 0 | H109: ='Saisie 1V'!G59 -> 0 | I109: ='Saisie 1V'!H59 -> 0 | J109: =H109+I109 -> 0 | K109: =F109-J109 -> 0 | L109: ='Saisie 1V'!I59:AM59 -> 0 | M109: 0 | N109: 0 | O109: 0 | P109: 0 | Q109: 0 | R109: 100 | S109: 0 | T109: 0 | U109: 0 | V109: 0 | W109: 0 | X109: 0 | Y109: 0 | Z109: 0 | AA109: 0 | AB109: 0 | AC109: 0 | AD109: 0 | AE109: 0 | AF109: 0 | AG109: 0 | AH109: 0 | AI109: 0 | AJ109: 0 | AK109: 0 | AL109: 0 | AM109: 0 | AN109: 0 | AO109: 0 | AP109: 0 | AQ109: ='Saisie 1V'!AN59:BR59 -> 0 | AR109: ='Saisie 1V'!AO59:BS59 -> 0 | AS109: ='Saisie 1V'!AP59:BT59 -> 0
A110: 0 | B110: 0 | C110: 0 | D110: 0 | E110: =E109/$D$111 ->  | F110: =IF(F109=0,"",F109/D109) ->  | G110: =IF(G109=0,"",G109/$D$109) ->  | H110: =IF(H109=0,"",H109/$F$109) ->  | I110: =IF(I109=0,"",I109/$F$109) ->  | J110: =IF(J109=0,"",J109/$F$109) ->  | L110: =L109/$K$109 ->  | M110: =M109/$K$111 ->  | AO110: =AO109/$K$109 ->  | AP110: =AP109/$K$109 ->  | AQ110: =AQ109/$K$109 -> 
A111: 0 | B111: Canton de Champigny ouest | C111: ch-o | D111: 0 | E111: ='Saisie 1V'!E60:F60 -> 0 | F111: 0 | G111: =D111-F111 -> 0 | H111: ='Saisie 1V'!G60 -> 0 | I111: ='Saisie 1V'!H60 -> 0 | J111: =H111+I111 -> 0 | K111: =F111-J111 -> 0 | L111: ='Saisie 1V'!I60:AM60 -> 0 | M111: 0 | N111: 0 | O111: 0 | P111: 0 | Q111: 0 | R111: 100 | S111: 0 | T111: 0 | U111: 0 | V111: 0 | W111: 0 | X111: 0 | Y111: 0 | Z111: 0 | AA111: 0 | AB111: 0 | AC111: 0 | AD111: 0 | AE111: 0 | AF111: 0 | AG111: 0 | AH111: 0 | AI111: 0 | AJ111: 0 | AK111: 0 | AL111: 0 | AM111: 0 | AN111: 0 | AO111: 0 | AP111: 0 | AQ111: ='Saisie 1V'!AN60:BR60 -> 0 | AR111: ='Saisie 1V'!AO60:BS60 -> 0 | AS111: ='Saisie 1V'!AP60:BT60 -> 0
A112: 0 | B112: 0 | C112: 0 | D112: 0 | E112: =E111/$D$111 ->  | F112: =IF(F111=0,"",F111/D111) ->  | G112: =IF(G111=0,"",G111/$D$111) ->  | H112: =IF(H111=0,"",H111/$F$111) ->  | I112: =IF(I111=0,"",I111/$F$111) ->  | J112: =IF(J111=0,"",J111/$F$111) ->  | L112: =L111/$K$111 ->  | AQ112: =AQ111/$K$111 -> 
A113: 0 | B113: Canton de Saint-Maur centre | C113: sm-c | D113: 0 | E113: ='Saisie 1V'!E61:F61 -> 0 | F113: 0 | G113: =D113-F113 -> 0 | H113: ='Saisie 1V'!G61 -> 0 | I113: ='Saisie 1V'!H61 -> 0 | J113: =H113+I113 -> 0 | K113: =F113-J113 -> 0 | L113: ='Saisie 1V'!I61:AM61 -> 0 | M113: 0 | N113: 0 | O113: 0 | P113: 0 | Q113: 0 | R113: 100 | S113: 0 | T113: 0 | U113: 0 | V113: 0 | W113: 0 | X113: 0 | Y113: 0 | Z113: 0 | AA113: 0 | AB113: 0 | AC113: 0 | AD113: 0 | AE113: 0 | AF113: 0 | AG113: 0 | AH113: 0 | AI113: 0 | AJ113: 0 | AK113: 0 | AL113: 0 | AM113: 0 | AN113: 0 | AO113: 0 | AP113: 0 | AQ113: ='Saisie 1V'!AN61:BR61 -> 0 | AR113: ='Saisie 1V'!AO61:BS61 -> 0 | AS113: ='Saisie 1V'!AP61:BT61 -> 0
A114: 0 | B114: 0 | C114: 0 | D114: 0 | E114: =E113/$D$113 ->  | F114: =IF(F113=0,"",F113/D113) ->  | G114: =IF(G113=0,"",G113/$D$113) ->  | H114: =IF(H113=0,"",H113/$F$113) ->  | I114: =IF(I113=0,"",I113/$F$113) ->  | J114: =IF(J113=0,"",J113/$F$113) ->  | L114: =L113/$K$113 ->  | AQ114: =AQ113/$K$113 -> 
A115: 0 | B115: Canton de Saint-Maur ouest | C115: sm-o | D115: 0 | E115: ='Saisie 1V'!E62:F62 -> 0 | F115: 0 | G115: =D115-F115 -> 0 | H115: ='Saisie 1V'!G62 -> 0 | I115: ='Saisie 1V'!H62 -> 0 | J115: =H115+I115 -> 0 | K115: =F115-J115 -> 0 | L115: ='Saisie 1V'!I62:AM62 -> 0 | M115: 0 | N115: 0 | O115: 0 | P115: 0 | Q115: 0 | R115: 100 | S115: 0 | T115: 0 | U115: 0 | V115: 0 | W115: 0 | X115: 0 | Y115: 0 | Z115: 0 | AA115: 0 | AB115: 0 | AC115: 0 | AD115: 0 | AE115: 0 | AF115: 0 | AG115: 0 | AH115: 0 | AI115: 0 | AJ115: 0 | AK115: 0 | AL115: 0 | AM115: 0 | AN115: 0 | AO115: 0 | AP115: 0 | AQ115: ='Saisie 1V'!AN62:BR62 -> 0 | AR115: ='Saisie 1V'!AO62:BS62 -> 0 | AS115: ='Saisie 1V'!AP62:BT62 -> 0
A116: 0 | B116: 0 | C116: 0 | D116: 0 | E116: =E115/$D$115 ->  | F116: =IF(F115=0,"",F115/D115) ->  | G116: =IF(G115=0,"",G115/$D$115) ->  | H116: =IF(H115=0,"",H115/$F$115) ->  | I116: =IF(I115=0,"",I115/$F$115) ->  | J116: =IF(J115=0,"",J115/$F$115) ->  | L116: =L115/$K$115 ->  | AQ116: =AQ115/$K$115 -> 
A117: 0 | B117: Canton de Saint-Maur-La Varenne | C117: sm-v | D117: 0 | E117: ='Saisie 1V'!E63:F63 -> 0 | F117: 0 | G117: =D117-F117 -> 0 | H117: ='Saisie 1V'!G63 -> 0 | I117: ='Saisie 1V'!H63 -> 0 | J117: =H117+I117 -> 0 | K117: =F117-J117 -> 0 | L117: ='Saisie 1V'!I63:AM63 -> 0 | M117: 0 | N117: 0 | O117: 0 | P117: 0 | Q117: 0 | R117: 100 | S117: 0 | T117: 0 | U117: 0 | V117: 0 | W117: 0 | X117: 0 | Y117: 0 | Z117: 0 | AA117: 0 | AB117: 0 | AC117: 0 | AD117: 0 | AE117: 0 | AF117: 0 | AG117: 0 | AH117: 0 | AI117: 0 | AJ117: 0 | AK117: 0 | AL117: 0 | AM117: 0 | AN117: 0 | AO117: 0 | AP117: 0 | AQ117: ='Saisie 1V'!AN63:BR63 -> 0 | AR117: ='Saisie 1V'!AO63:BS63 -> 0 | AS117: ='Saisie 1V'!AP63:BT63 -> 0
A118: 0 | B118: 0 | C118: 0 | D118: 0 | E118: =E117/$D$117 ->  | F118: =IF(F117=0,"",F117/D117) ->  | G118: =IF(G117=0,"",G117/$D$117) ->  | H118: =IF(H117=0,"",H117/$F$117) ->  | I118: =IF(I117=0,"",I117/$F$117) ->  | J118: =IF(J117=0,"",J117/$F$117) ->  | L118: =L117/$K$117 ->  | AQ118: =AQ117/$K$117 -> 
A119: 0 | B119: y | C119: 0 | D119: 0 | E119: ='Saisie 1V'!E64:F64 -> 0 | F119: 0 | G119: =D119-F119 -> 0 | H119: ='Saisie 1V'!G64 -> 0 | I119: ='Saisie 1V'!H64 -> 0 | J119: =H119+I119 -> 0 | K119: =F119-J119 -> 0 | L119: ='Saisie 1V'!I64:AM64 -> 0 | M119: 0 | N119: 0 | O119: 0 | P119: 0 | Q119: 0 | R119: 100 | S119: 0 | T119: 0 | U119: 0 | V119: 0 | W119: 0 | X119: 0 | Y119: 0 | Z119: 0 | AA119: 0 | AB119: 0 | AC119: 0 | AD119: 0 | AE119: 0 | AF119: 0 | AG119: 0 | AH119: 0 | AI119: 0 | AJ119: 0 | AK119: 0 | AL119: 0 | AM119: 0 | AN119: 0 | AO119: 0 | AP119: 0 | AQ119: ='Saisie 1V'!AN64:BR64 -> 0 | AR119: ='Saisie 1V'!AO64:BS64 -> 0 | AS119: ='Saisie 1V'!AP64:BT64 -> 0
A120: 0 | B120: 0 | C120: 0 | D120: 0 | E120: =E119/$D$119 ->  | F120: =IF(F119=0,"",F119/D119) ->  | G120: =IF(G119=0,"",G119/$D$119) ->  | H120: =IF(H119=0,"",H119/$F$119) ->  | I120: =IF(I119=0,"",I119/$F$119) ->  | J120: =IF(J119=0,"",J119/$F$119) ->  | L120: =L119/$K$119 ->  | AQ120: =AQ119/$K$119 -> 
A121: 0 | B121: z | C121: 0 | D121: 0 | E121: ='Saisie 1V'!E65:F65 -> 0 | F121: 0 | G121: =D121-F121 -> 0 | H121: ='Saisie 1V'!G65 -> 0 | I121: ='Saisie 1V'!H65 -> 0 | J121: =H121+I121 -> 0 | K121: =F121-J121 -> 0 | L121: ='Saisie 1V'!I65:AM65 -> 0 | M121: 0 | N121: 0 | O121: 0 | P121: 0 | Q121: 0 | R121: 100 | S121: 0 | T121: 0 | U121: 0 | V121: 0 | W121: 0 | X121: 0 | Y121: 0 | Z121: 0 | AA121: 0 | AB121: 0 | AC121: 0 | AD121: 0 | AE121: 0 | AF121: 0 | AG121: 0 | AH121: 0 | AI121: 0 | AJ121: 0 | AK121: 0 | AL121: 0 | AM121: 0 | AN121: 0 | AO121: 0 | AP121: 0 | AQ121: ='Saisie 1V'!AN65:BR65 -> 0 | AR121: ='Saisie 1V'!AO65:BS65 -> 0 | AS121: ='Saisie 1V'!AP65:BT65 -> 0
A122: 0 | B122: 0 | C122: 0 | D122: 0 | E122: =E121/$D$121 ->  | F122: =IF(F121=0,"",F121/D121) ->  | G122: =IF(G121=0,"",G121/$D$121) ->  | H122: =IF(H121=0,"",H121/$F$121) ->  | I122: =IF(I121=0,"",I121/$F$121) ->  | J122: =IF(J121=0,"",J121/$F$121) ->  | L122: =L121/$K$121 ->  | AQ122: =AQ121/$K$121 -> 
A126: =GE!$A$149:$D$162 -> 0 | B126: Canton de Choisy-le-roi | C126: clr | D126: 0 | E126: ='Saisie 1V'!E69:F69 -> 0 | F126: 0 | G126: =D126-F126 -> 0 | H126: ='Saisie 1V'!G69 -> 0 | I126: ='Saisie 1V'!H69 -> 0 | J126: ='Saisie 1V'!H69 -> 0 | K126: =F126-J126 -> 0 | L126: ='Saisie 1V'!I69:AM69 -> 0 | M126: 0 | N126: 0 | O126: 0 | P126: 0 | Q126: 0 | R126: 100 | S126: 0 | T126: 0 | U126: 0 | V126: 0 | W126: 0 | X126: 0 | Y126: 0 | Z126: 0 | AA126: 0 | AB126: 0 | AC126: 0 | AD126: 0 | AE126: 0 | AF126: 0 | AG126: 0 | AH126: 0 | AI126: 0 | AJ126: 0 | AK126: 0 | AL126: 0 | AM126: 0 | AN126: 0 | AO126: 0 | AP126: 0 | AQ126: ='Saisie 1V'!AN69:BR69 -> 0 | AR126: ='Saisie 1V'!AO69:BS69 -> 0 | AS126: ='Saisie 1V'!AP69:BT69 -> 0
A127: 0 | B127: 0 | C127: 0 | D127: 0 | E127: =E126/$D$126 ->  | F127: =IF(F126=0,"",F126/D126) ->  | G127: =IF(G126=0,"",G126/D126) ->  | J127: =IF(J126=0,"",J126/F126) ->  | L127: =L126/$K$126 ->  | M127: =M126/$K$126 ->  | AQ127: =AQ126/$K$126 -> 
A128: 0 | B128: Canton d'Orly | C128: or | D128: 0 | E128: ='Saisie 1V'!E70:F70 -> 0 | F128: 0 | G128: =D128-F128 -> 0 | H128: ='Saisie 1V'!G70 -> 0 | I128: ='Saisie 1V'!H70 -> 0 | J128: ='Saisie 1V'!H71 -> 0 | K128: =F128-J128 -> 0 | L128: ='Saisie 1V'!I70:AM70 -> 0 | M128: 0 | N128: 0 | O128: 0 | P128: 0 | Q128: 0 | R128: 100 | S128: 0 | T128: 0 | U128: 0 | V128: 0 | W128: 0 | X128: 0 | Y128: 0 | Z128: 0 | AA128: 0 | AB128: 0 | AC128: 0 | AD128: 0 | AE128: 0 | AF128: 0 | AG128: 0 | AH128: 0 | AI128: 0 | AJ128: 0 | AK128: 0 | AL128: 0 | AM128: 0 | AN128: 0 | AO128: 0 | AP128: 0 | AQ128: ='Saisie 1V'!AN70:BR70 -> 0 | AR128: ='Saisie 1V'!AO70:BS70 -> 0 | AS128: ='Saisie 1V'!AP70:BT70 -> 0
A129: 0 | B129: 0 | C129: 0 | D129: 0 | E129: =E128/$D$128 ->  | F129: =IF(F128=0,"",F128/D128) ->  | G129: =IF(G128=0,"",G128/D128) ->  | J129: =IF(J128=0,"",J128/F128) ->  | L129: =L128/$K$128 ->  | M129: =M128/$K$128 ->  | AQ129: =AQ128/$K$128 -> 
A130: 0 | B130: a | C130: 0 | D130: 0 | E130: ='Saisie 1V'!E71:F71 -> 0 | F130: 0 | G130: =D130-F130 -> 0 | H130: ='Saisie 1V'!G71 -> 0 | I130: ='Saisie 1V'!H71 -> 0 | J130: ='Saisie 1V'!H73 -> 0 | K130: =F130-J130 -> 0 | L130: ='Saisie 1V'!I71:AM71 -> 0 | M130: 0 | N130: 0 | O130: 0 | P130: 0 | Q130: 0 | R130: 100 | S130: 0 | T130: 0 | U130: 0 | V130: 0 | W130: 0 | X130: 0 | Y130: 0 | Z130: 0 | AA130: 0 | AB130: 0 | AC130: 0 | AD130: 0 | AE130: 0 | AF130: 0 | AG130: 0 | AH130: 0 | AI130: 0 | AJ130: 0 | AK130: 0 | AL130: 0 | AM130: 0 | AN130: 0 | AO130: 0 | AP130: 0 | AQ130: ='Saisie 1V'!AN71:BR71 -> 0 | AR130: ='Saisie 1V'!AO71:BS71 -> 0 | AS130: ='Saisie 1V'!AP71:BT71 -> 0
A131: 0 | B131: 0 | C131: 0 | D131: 0 | E131: =E130/$D$130 ->  | F131: =IF(F130=0,"",F130/D130) ->  | G131: =IF(G130=0,"",G130/D130) ->  | J131: =IF(J130=0,"",J130/F130) ->  | L131: =L130/$K$130 ->  | M131: =M130/$K$130 ->  | AQ131: =AQ130/$K$130 -> 
A132: 0 | B132: b | C132: 0 | D132: 0 | E132: ='Saisie 1V'!E72:F72 -> 0 | F132: 0 | G132: =D132-F132 -> 0 | H132: ='Saisie 1V'!G72 -> 0 | I132: ='Saisie 1V'!H72 -> 0 | J132: ='Saisie 1V'!H75 -> 0 | K132: =F132-J132 -> 0 | L132: ='Saisie 1V'!I72:AM72 -> 0 | M132: 0 | N132: 0 | O132: 0 | P132: 0 | Q132: 0 | R132: 100 | S132: 0 | T132: 0 | U132: 0 | V132: 0 | W132: 0 | X132: 0 | Y132: 0 | Z132: 0 | AA132: 0 | AB132: 0 | AC132: 0 | AD132: 0 | AE132: 0 | AF132: 0 | AG132: 0 | AH132: 0 | AI132: 0 | AJ132: 0 | AK132: 0 | AL132: 0 | AM132: 0 | AN132: 0 | AO132: 0 | AP132: 0 | AQ132: ='Saisie 1V'!AN72:BR72 -> 0 | AR132: ='Saisie 1V'!AO72:BS72 -> 0 | AS132: ='Saisie 1V'!AP72:BT72 -> 0
A133: 0 | B133: 0 | C133: 0 | D133: 0 | E133: =E132/$D$132 ->  | F133: =IF(F132=0,"",F132/D132) ->  | G133: =IF(G132=0,"",G132/D132) ->  | J133: =IF(J132=0,"",J132/F132) ->  | L133: =L132/$K$132 ->  | M133: =M132/$K$132 ->  | AQ133: =AQ132/$K$132 -> 
A134: 0 | B134: c | C134: 0 | D134: 0 | E134: ='Saisie 1V'!E73:F73 -> 0 | F134: 0 | G134: =D134-F134 -> 0 | H134: ='Saisie 1V'!G73 -> 0 | I134: ='Saisie 1V'!H73 -> 0 | J134: ='Saisie 1V'!H77 -> 0 | K134: =F134-J134 -> 0 | L134: ='Saisie 1V'!I73:AM73 -> 0 | M134: 0 | N134: 0 | O134: 0 | P134: 0 | Q134: 0 | R134: 100 | S134: 0 | T134: 0 | U134: 0 | V134: 0 | W134: 0 | X134: 0 | Y134: 0 | Z134: 0 | AA134: 0 | AB134: 0 | AC134: 0 | AD134: 0 | AE134: 0 | AF134: 0 | AG134: 0 | AH134: 0 | AI134: 0 | AJ134: 0 | AK134: 0 | AL134: 0 | AM134: 0 | AN134: 0 | AO134: 0 | AP134: 0 | AQ134: ='Saisie 1V'!AN73:BR73 -> 0 | AR134: ='Saisie 1V'!AO73:BS73 -> 0 | AS134: ='Saisie 1V'!AP73:BT73 -> 0
A135: 0 | B135: 0 | C135: 0 | D135: 0 | E135: =E134/$D$134 ->  | F135: =IF(F134=0,"",F134/D134) ->  | G135: =IF(G134=0,"",G134/D134) ->  | J135: =IF(J134=0,"",J134/F134) ->  | L135: =L134/$K$134 ->  | M135: =M134/$K$134 ->  | AQ135: =AQ134/$K$134 -> 
A136: 0 | B136: d | C136: 0 | D136: 0 | E136: ='Saisie 1V'!E74:F74 -> 0 | F136: 0 | G136: =D136-F136 -> 0 | H136: ='Saisie 1V'!G74 -> 0 | I136: ='Saisie 1V'!H74 -> 0 | J136: ='Saisie 1V'!H79 -> 0 | K136: =F136-J136 -> 0 | L136: ='Saisie 1V'!I74:AM74 -> 0 | M136: 0 | N136: 0 | O136: 0 | P136: 0 | Q136: 0 | R136: 100 | S136: 0 | T136: 0 | U136: 0 | V136: 0 | W136: 0 | X136: 0 | Y136: 0 | Z136: 0 | AA136: 0 | AB136: 0 | AC136: 0 | AD136: 0 | AE136: 0 | AF136: 0 | AG136: 0 | AH136: 0 | AI136: 0 | AJ136: 0 | AK136: 0 | AL136: 0 | AM136: 0 | AN136: 0 | AO136: 0 | AP136: 0 | AQ136: ='Saisie 1V'!AN74:BR74 -> 0 | AR136: ='Saisie 1V'!AO74:BS74 -> 0 | AS136: ='Saisie 1V'!AP74:BT74 -> 0
A137: 0 | B137: 0 | C137: 0 | D137: 0 | E137: =E136/$D$136 ->  | F137: =IF(F136=0,"",F136/D136) ->  | G137: =IF(G136=0,"",G136/D136) ->  | J137: =IF(J136=0,"",J136/F136) ->  | L137: =L136/$K$136 ->  | M137: =M136/$K$136 ->  | AQ137: =AQ136/$K$136 -> 
A138: 0 | B138: e | C138: 0 | D138: 0 | E138: ='Saisie 1V'!E75:F75 -> 0 | F138: 0 | G138: =D138-F138 -> 0 | H138: ='Saisie 1V'!G75 -> 0 | I138: ='Saisie 1V'!H75 -> 0 | J138: ='Saisie 1V'!H81 -> 0 | K138: =F138-J138 -> 0 | L138: ='Saisie 1V'!I75:AM75 -> 0 | M138: 0 | N138: 0 | O138: 0 | P138: 0 | Q138: 0 | R138: 100 | S138: 0 | T138: 0 | U138: 0 | V138: 0 | W138: 0 | X138: 0 | Y138: 0 | Z138: 0 | AA138: 0 | AB138: 0 | AC138: 0 | AD138: 0 | AE138: 0 | AF138: 0 | AG138: 0 | AH138: 0 | AI138: 0 | AJ138: 0 | AK138: 0 | AL138: 0 | AM138: 0 | AN138: 0 | AO138: 0 | AP138: 0 | AQ138: ='Saisie 1V'!AN75:BR75 -> 0 | AR138: ='Saisie 1V'!AO75:BS75 -> 0 | AS138: ='Saisie 1V'!AP75:BT75 -> 0
A139: 0 | B139: 0 | C139: 0 | D139: 0 | E139: =E138/$D$138 ->  | F139: =IF(F138=0,"",F138/D138) ->  | G139: =IF(G138=0,"",G138/D138) ->  | J139: =IF(J138=0,"",J138/F138) ->  | L139: =L138/$K$138 ->  | M139: =M138/$K$138 ->  | AQ139: =AQ138/$K$138 -> 
B143: COMMUNE DE CRETEIL | D143: =DSUM(BASE,2,CR) -> 43764 | E143: =DSUM(BASE,3,CR) -> 0 | F143: =DSUM(BASE,4,CR) -> 19777 | G143: =DSUM(BASE,5,CR) -> 23987 | H143: =DSUM(BASE,6,CR) -> 394 | I143: =DSUM(BASE,7,CR) -> 323 | J143: =DSUM(BASE,8,CR) -> 717 | K143: =DSUM(BASE,9,CR) -> 19060 | L143: =DSUM(BASE,10,CR) -> 1751 | M143: =DSUM(BASE,11,CR) -> 1 | N143: =DSUM(BASE,12,CR) -> 3 | O143: =DSUM(BASE,13,CR) -> 88 | P143: =DSUM(BASE,14,CR) -> 4557 | Q143: =DSUM(BASE,15,CR) -> 0 | R143: =DSUM(BASE,16,CR) -> 58 | S143: =DSUM(BASE,17,CR) -> 4 | T143: =DSUM(BASE,18,CR) -> 399 | U143: =DSUM(BASE,19,CR) -> 2 | V143: =DSUM(BASE,20,CR) -> 428 | W143: =DSUM(BASE,21,CR) -> 1584 | X143: =DSUM(BASE,22,CR) -> 20 | Y143: =DSUM(BASE,23,CR) -> 0 | Z143: =DSUM(BASE,24,CR) -> 576 | AA143: =DSUM(BASE,25,CR) -> 2 | AB143: =DSUM(BASE,26,CR) -> 6 | AC143: =DSUM(BASE,27,CR) -> 123 | AD143: =DSUM(BASE,28,CR) -> 614 | AE143: =DSUM(BASE,29,CR) -> 354 | AF143: =DSUM(BASE,30,CR) -> 918 | AG143: =DSUM(BASE,31,CR) -> 7 | AH143: =DSUM(BASE,32,CR) -> 2590 | AI143: =DSUM(BASE,33,CR) -> 0 | AJ143: =DSUM(BASE,34,CR) -> 0 | AK143: =DSUM(BASE,35,CR) -> 12 | AL143: =DSUM(BASE,36,CR) -> 0 | AM143: =DSUM(BASE,37,CR) -> 73 | AN143: =DSUM(BASE,38,CR) -> 1306 | AO143: =DSUM(BASE,39,CR) -> 2700 | AP143: =DSUM(BASE,40,CR) -> 412 | AQ143: =DSUM(BASE,41,CR) -> 35 | AR143: =DSUM(BASE,42,CR) -> 30 | AS143: =DSUM(BASE,43,CR) -> 407
E144: =E143/$D$143 -> 0 | F144: =F143/$D$143 -> 0.4519011059 | G144: =G143/$D$143 -> 0.5480988941 | J144: =J143/$F$143 -> 0.03625423472 | L144: =L143/$K$143 -> 0.09186778594 | M144: 5.246589717e-05 | N144: 0.0001573976915 | O144: 0.004616998951 | P144: 0.2390870934 | Q144: 0 | R144: 0.003043022036 | S144: 0.0002098635887 | T144: 0.02093389297 | U144: 0.0001049317943 | V144: 0.02245540399 | W144: 0.08310598111 | X144: 0.001049317943 | Y144: 0 | Z144: 0.03022035677 | AA144: 0.0001049317943 | AB144: 0.000314795383 | AC144: 0.006453305352 | AD144: 0.03221406086 | AE144: 0.0185729276 | AF144: 0.0481636936 | AG144: 0.0003672612802 | AH144: 0.1358866737 | AI144: 0 | AJ144: 0 | AK144: 0.000629590766 | AL144: 0 | AM144: 0.003830010493 | AN144: 0.0685204617 | AO144: 0.1416579224 | AP144: =AP143/$K$143 -> 0.02161594963 | AQ144: =AQ143/$K$143 -> 0.001836306401 | AR144: 0.001573976915 | AS144: 0.02135362015
B152: =GE!B170 -> Canton n° 7 | D152: =DSUM(BASE,2,CR_7) -> 21252 | E152: =DSUM(BASE,3,CR_7) -> 0 | F152: =DSUM(BASE,4,CR_7) -> 9474 | G152: =DSUM(BASE,5,CR_7) -> 11778 | H152: =DSUM(BASE,6,CR_7) -> 192 | I152: =DSUM(BASE,7,CR_7) -> 150 | J152: =DSUM(BASE,8,CR_7) -> 342 | K152: =DSUM(BASE,9,CR_7) -> 9132 | L152: =DSUM(BASE,10,CR_7) -> 888 | M152: =DSUM(BASE,11,CR_7) -> 1 | N152: =DSUM(BASE,12,CR_7) -> 3 | O152: =DSUM(BASE,13,CR_7) -> 58 | P152: =DSUM(BASE,14,CR_7) -> 2202 | Q152: =DSUM(BASE,15,CR_7) -> 0 | R152: =DSUM(BASE,16,CR_7) -> 22 | S152: =DSUM(BASE,17,CR_7) -> 2 | T152: =DSUM(BASE,18,CR_7) -> 193 | U152: =DSUM(BASE,19,CR_7) -> 2 | V152: =DSUM(BASE,20,CR_7) -> 223 | W152: =DSUM(BASE,21,CR_7) -> 719 | X152: =DSUM(BASE,22,CR_7) -> 11 | Y152: =DSUM(BASE,23,CR_7) -> 0 | Z152: =DSUM(BASE,24,CR_7) -> 272 | AA152: =DSUM(BASE,25,CR_7) -> 1 | AB152: =DSUM(BASE,26,CR_7) -> 4 | AC152: =DSUM(BASE,27,CR_7) -> 70 | AD152: =DSUM(BASE,28,CR_7) -> 299 | AE152: =DSUM(BASE,29,CR_7) -> 194 | AF152: =DSUM(BASE,30,CR_7) -> 443 | AG152: =DSUM(BASE,31,CR_7) -> 7 | AH152: =DSUM(BASE,32,CR_7) -> 1213 | AI152: =DSUM(BASE,33,CR_7) -> 0 | AJ152: =DSUM(BASE,34,CR_7) -> 0 | AK152: =DSUM(BASE,35,CR_7) -> 5 | AL152: =DSUM(BASE,36,CR_7) -> 0 | AM152: =DSUM(BASE,37,CR_7) -> 46 | AN152: =DSUM(BASE,38,CR_7) -> 651 | AO152: =DSUM(BASE,39,CR_7) -> 1201 | AP152: =DSUM(BASE,40,CR_7) -> 176 | AQ152: =DSUM(BASE,40,CR_7) -> 176 | AR152: =DSUM(BASE,40,CR_7) -> 176 | AS152: =DSUM(BASE,40,CR_7) -> 176
E153: =E152/$D$152 -> 0 | F153: =F152/D152 -> 0.4457933371 | G153: =G152/D152 -> 0.5542066629 | J153: =J152/$F$152 -> 0.03609879671 | L153: =L152/$K$152 -> 0.09724047306 | M153: 0.0001095050372 | N153: 0.0003285151117 | O153: 0.006351292159 | P153: 0.241130092 | Q153: 0 | R153: 0.002409110819 | S153: 0.0002190100745 | T153: 0.02113447219 | U153: 0.0002190100745 | V153: 0.0244196233 | W153: 0.07873412177 | X153: 0.00120455541 | Y153: 0 | Z153: 0.02978537013 | AA153: 0.0001095050372 | AB153: 0.0004380201489 | AC153: 0.007665352606 | AD153: 0.03274200613 | AE153: 0.02124397722 | AF153: 0.04851073149 | AG153: 0.0007665352606 | AH153: 0.1328296102 | AI153: 0 | AJ153: 0 | AK153: 0.0005475251862 | AL153: 0 | AM153: 0.005037231713 | AN153: 0.07128777924 | AO153: 0.1315155497 | AP153: 0.01927288655 | AQ153: =AQ152/$K$152 -> 0.01927288655 | AR153: 0.01927288655 | AS153: 0.01927288655
B156: =GE!B172 -> Canton n° 8 | D156: =DSUM(BASE,2,CR_8) -> 22512 | E156: =DSUM(BASE,3,CR_8) -> 0 | F156: =DSUM(BASE,4,CR_8) -> 10303 | G156: =DSUM(BASE,5,CR_8) -> 12209 | H156: =DSUM(BASE,6,CR_8) -> 202 | I156: =DSUM(BASE,7,CR_8) -> 173 | J156: =DSUM(BASE,8,CR_8) -> 375 | K156: =DSUM(BASE,9,CR_8) -> 9928 | L156: =DSUM(BASE,10,CR_8) -> 863 | M156: =DSUM(BASE,11,CR_8) -> 0 | N156: =DSUM(BASE,12,CR_8) -> 0 | O156: =DSUM(BASE,13,CR_8) -> 30 | P156: =DSUM(BASE,14,CR_8) -> 2355 | Q156: =DSUM(BASE,15,CR_8) -> 0 | R156: =DSUM(BASE,16,CR_8) -> 36 | S156: =DSUM(BASE,17,CR_8) -> 2 | T156: =DSUM(BASE,18,CR_8) -> 206 | U156: =DSUM(BASE,19,CR_8) -> 0 | V156: =DSUM(BASE,20,CR_8) -> 205 | W156: =DSUM(BASE,21,CR_8) -> 865 | X156: =DSUM(BASE,22,CR_8) -> 9 | Y156: =DSUM(BASE,23,CR_8) -> 0 | Z156: =DSUM(BASE,24,CR_8) -> 304 | AA156: =DSUM(BASE,25,CR_8) -> 1 | AB156: =DSUM(BASE,26,CR_8) -> 2 | AC156: =DSUM(BASE,27,CR_8) -> 53 | AD156: =DSUM(BASE,28,CR_8) -> 315 | AE156: =DSUM(BASE,29,CR_8) -> 160 | AF156: =DSUM(BASE,30,CR_8) -> 475 | AG156: =DSUM(BASE,31,CR_8) -> 0 | AH156: =DSUM(BASE,32,CR_8) -> 1377 | AI156: =DSUM(BASE,33,CR_8) -> 0 | AJ156: =DSUM(BASE,34,CR_8) -> 0 | AK156: =DSUM(BASE,35,CR_8) -> 7 | AL156: =DSUM(BASE,36,CR_8) -> 0 | AM156: =DSUM(BASE,37,CR_8) -> 27 | AN156: =DSUM(BASE,38,CR_8) -> 655 | AO156: =DSUM(BASE,39,CR_8) -> 1499 | AP156: =DSUM(BASE,40,CR_8) -> 236 | AQ156: =DSUM(BASE,40,CR_8) -> 236 | AR156: =DSUM(BASE,40,CR_8) -> 236 | AS156: =DSUM(BASE,40,CR_8) -> 236
E157: =E156/$D$156 -> 0 | F157: =F156/D156 -> 0.457667022 | G157: =G156/D156 -> 0.542332978 | J157: =J156/$F$156 -> 0.03639716587 | L157: =L156/$K$156 -> 0.08692586624 | M157: 0 | N157: 0 | O157: 0.003021756648 | P157: 0.2372078969 | Q157: 0 | R157: 0.003626107977 | S157: 0.0002014504432 | T157: 0.02074939565 | U157: 0 | V157: 0.02064867043 | W157: 0.08712731668 | X157: 0.0009065269944 | Y157: 0 | Z157: 0.03062046737 | AA157: 0.0001007252216 | AB157: 0.0002014504432 | AC157: 0.005338436745 | AD157: 0.0317284448 | AE157: 0.01611603546 | AF157: 0.04784448026 | AG157: 0 | AH157: 0.1386986301 | AI157: 0 | AJ157: 0 | AK157: 0.0007050765512 | AL157: 0 | AM157: 0.002719580983 | AN157: 0.06597502015 | AO157: 0.1509871072 | AP157: 0.0237711523 | AQ157: =AQ156/$K$156 -> 0.0237711523 | AR157: 0.0237711523 | AS157: 0.0237711523
B160: 1ère circonscription | D160: =DSUM(BASE,2,CR_VM1) -> 13172 | E160: =DSUM(BASE,3,CR_VM1) -> 0 | F160: =DSUM(BASE,4,CR_VM1) -> 7180 | G160: =DSUM(BASE,5,CR_VM1) -> 5992 | H160: =DSUM(BASE,6,CR_VM1) -> 129 | I160: =DSUM(BASE,7,CR_VM1) -> 90 | J160: =DSUM(BASE,8,CR_VM1) -> 219 | K160: =DSUM(BASE,9,CR_VM1) -> 6961 | L160: =DSUM(BASE,10,CR_VM1) -> 402 | M160: =DSUM(BASE,11,CR_VM1) -> 0 | N160: =DSUM(BASE,12,CR_VM1) -> 0 | O160: =DSUM(BASE,13,CR_VM1) -> 23 | P160: =DSUM(BASE,14,CR_VM1) -> 1918 | Q160: =DSUM(BASE,15,CR_VM1) -> 0 | R160: =DSUM(BASE,16,CR_VM1) -> 19 | S160: =DSUM(BASE,17,CR_VM1) -> 2 | T160: =DSUM(BASE,18,CR_VM1) -> 142 | U160: =DSUM(BASE,19,CR_VM1) -> 0 | V160: =DSUM(BASE,20,CR_VM1) -> 166 | W160: =DSUM(BASE,21,CR_VM1) -> 584 | X160: =DSUM(BASE,22,CR_VM1) -> 7 | Y160: =DSUM(BASE,23,CR_VM1) -> 0 | Z160: =DSUM(BASE,24,CR_VM1) -> 222 | AA160: =DSUM(BASE,25,CR_VM1) -> 1 | AB160: =DSUM(BASE,26,CR_VM1) -> 3 | AC160: =DSUM(BASE,27,CR_VM1) -> 26 | AD160: =DSUM(BASE,28,CR_VM1) -> 196 | AE160: =DSUM(BASE,29,CR_VM1) -> 99 | AF160: =DSUM(BASE,30,CR_VM1) -> 275 | AG160: =DSUM(BASE,31,CR_VM1) -> 4 | AH160: =DSUM(BASE,32,CR_VM1) -> 894 | AI160: =DSUM(BASE,33,CR_VM1) -> 0 | AJ160: =DSUM(BASE,34,CR_VM1) -> 0 | AK160: =DSUM(BASE,35,CR_VM1) -> 5 | AL160: =DSUM(BASE,36,CR_VM1) -> 0 | AM160: =DSUM(BASE,37,CR_VM1) -> 19 | AN160: =DSUM(BASE,38,CR_VM1) -> 538 | AO160: =DSUM(BASE,39,CR_VM1) -> 1197 | AP160: =DSUM(BASE,40,CR_VM1) -> 151 | AQ160: =DSUM(BASE,40,CR_VM1) -> 151 | AR160: =DSUM(BASE,40,CR_VM1) -> 151 | AS160: =DSUM(BASE,40,CR_VM1) -> 151
B161: de Créteil | E161: =E160/$D$160 -> 0 | F161: =F160/D160 -> 0.5450956575 | G161: =G160/D160 -> 0.4549043425 | J161: =J160/$F$160 -> 0.03050139276 | L161: =L160/$K$160 -> 0.05775032323 | M161: 0 | N161: 0 | O161: 0.003304122971 | P161: 0.2755351243 | Q161: 0 | R161: 0.002729492889 | S161: 0.0002873150409 | T161: 0.02039936791 | U161: 0 | V161: 0.0238471484 | W161: 0.08389599196 | X161: 0.001005602643 | Y161: 0 | Z161: 0.03189196954 | AA161: 0.0001436575205 | AB161: 0.0004309725614 | AC161: 0.003735095532 | AD161: 0.02815687401 | AE161: 0.01422209453 | AF161: 0.03950581813 | AG161: 0.0005746300819 | AH161: 0.1284298233 | AI161: 0 | AJ161: 0 | AK161: 0.0007182876024 | AL161: 0 | AM161: 0.002729492889 | AN161: 0.07728774601 | AO161: 0.171958052
B164: 2ème circonscription | D164: =DSUM(BASE,2,CR_VM2) -> 30592 | E164: =DSUM(BASE,3,CR_VM2) -> 0 | F164: =DSUM(BASE,4,CR_VM2) -> 12597 | G164: =DSUM(BASE,5,CR_VM2) -> 17995 | H164: =DSUM(BASE,6,CR_VM2) -> 265 | I164: =DSUM(BASE,7,CR_VM2) -> 233 | J164: =DSUM(BASE,8,CR_VM2) -> 498 | K164: =DSUM(BASE,9,CR_VM2) -> 12099 | L164: =DSUM(BASE,10,CR_VM2) -> 1349 | M164: =DSUM(BASE,11,CR_VM2) -> 1 | N164: =DSUM(BASE,12,CR_VM2) -> 3 | O164: =DSUM(BASE,13,CR_VM2) -> 65 | P164: =DSUM(BASE,14,CR_VM2) -> 2639 | Q164: =DSUM(BASE,15,CR_VM2) -> 0 | R164: =DSUM(BASE,16,CR_VM2) -> 39 | S164: =DSUM(BASE,17,CR_VM2) -> 2 | T164: =DSUM(BASE,18,CR_VM2) -> 257 | U164: =DSUM(BASE,19,CR_VM2) -> 2 | V164: =DSUM(BASE,20,CR_VM2) -> 262 | W164: =DSUM(BASE,21,CR_VM2) -> 1000 | X164: =DSUM(BASE,22,CR_VM2) -> 13 | Y164: =DSUM(BASE,23,CR_VM2) -> 0 | Z164: =DSUM(BASE,24,CR_VM2) -> 354 | AA164: =DSUM(BASE,25,CR_VM2) -> 1 | AB164: =DSUM(BASE,26,CR_VM2) -> 3 | AC164: =DSUM(BASE,27,CR_VM2) -> 97 | AD164: =DSUM(BASE,28,CR_VM2) -> 418 | AE164: =DSUM(BASE,29,CR_VM2) -> 255 | AF164: =DSUM(BASE,30,CR_VM2) -> 643 | AG164: =DSUM(BASE,31,CR_VM2) -> 3 | AH164: =DSUM(BASE,32,CR_VM2) -> 1696 | AI164: =DSUM(BASE,33,CR_VM2) -> 0 | AJ164: =DSUM(BASE,34,CR_VM2) -> 0 | AK164: =DSUM(BASE,35,CR_VM2) -> 7 | AL164: =DSUM(BASE,36,CR_VM2) -> 0 | AM164: =DSUM(BASE,37,CR_VM2) -> 54 | AN164: =DSUM(BASE,38,CR_VM2) -> 768 | AO164: =DSUM(BASE,39,CR_VM2) -> 1503 | AP164: =DSUM(BASE,40,CR_VM2) -> 261 | AQ164: =DSUM(BASE,40,CR_VM2) -> 261 | AR164: =DSUM(BASE,40,CR_VM2) -> 261 | AS164: =DSUM(BASE,40,CR_VM2) -> 261
B165: de Créteil | E165: =E164/$D$164 -> 0 | F165: =F164/D164 -> 0.4117743201 | G165: =G164/D164 -> 0.5882256799 | J165: =J164/$F$164 -> 0.0395332222 | L165: =L164/$K$164 -> 0.1114968179 | M165: 8.26514588e-05 | N165: 0.0002479543764 | O165: 0.005372344822 | P165: 0.2181171998 | Q165: 0 | R165: 0.003223406893 | S165: 0.0001653029176 | T165: 0.02124142491 | U165: 0.0001653029176 | V165: 0.02165468221 | W165: 0.0826514588 | X165: 0.001074468964 | Y165: 0 | Z165: 0.02925861641 | AA165: 8.26514588e-05 | AB165: 0.0002479543764 | AC165: 0.008017191503 | AD165: 0.03454830978 | AE165: 0.02107612199 | AF165: 0.05314488801 | AG165: 0.0002479543764 | AH165: 0.1401768741 | AI165: 0 | AJ165: 0 | AK165: 0.0005785602116 | AL165: 0 | AM165: 0.004463178775 | AN165: 0.06347632036 | AO165: 0.1242251426
B168: 1ère circonscription | D168: =DSUM(BASE,2,_VM1) -> 13172 | E168: =DSUM(BASE,3,_VM1) -> 0 | F168: =DSUM(BASE,4,_VM1) -> 7180 | G168: =DSUM(BASE,5,_VM1) -> 5992 | H168: =DSUM(BASE,6,_VM1) -> 129 | I168: =DSUM(BASE,7,_VM1) -> 90 | J168: =DSUM(BASE,8,_VM1) -> 219 | K168: =DSUM(BASE,9,_VM1) -> 6961 | L168: =DSUM(BASE,10,_VM1) -> 402 | M168: =DSUM(BASE,11,_VM1) -> 0 | N168: =DSUM(BASE,12,_VM1) -> 0 | O168: =DSUM(BASE,13,_VM1) -> 23 | P168: =DSUM(BASE,14,_VM1) -> 1918 | Q168: =DSUM(BASE,15,_VM1) -> 0 | R168: =DSUM(BASE,16,_VM1) -> 319 | S168: =DSUM(BASE,17,_VM1) -> 2 | T168: =DSUM(BASE,18,_VM1) -> 142 | U168: =DSUM(BASE,19,_VM1) -> 0 | V168: =DSUM(BASE,20,_VM1) -> 166 | W168: =DSUM(BASE,21,_VM1) -> 584 | X168: =DSUM(BASE,22,_VM1) -> 7 | Y168: =DSUM(BASE,23,_VM1) -> 0 | Z168: =DSUM(BASE,24,_VM1) -> 222 | AA168: =DSUM(BASE,25,_VM1) -> 1 | AB168: =DSUM(BASE,26,_VM1) -> 3 | AC168: =DSUM(BASE,27,_VM1) -> 26 | AD168: =DSUM(BASE,28,_VM1) -> 196 | AE168: =DSUM(BASE,29,_VM1) -> 99 | AF168: =DSUM(BASE,30,_VM1) -> 275 | AG168: =DSUM(BASE,31,_VM1) -> 4 | AH168: =DSUM(BASE,32,_VM1) -> 894 | AI168: =DSUM(BASE,33,_VM1) -> 0 | AJ168: =DSUM(BASE,34,_VM1) -> 0 | AK168: =DSUM(BASE,35,_VM1) -> 5 | AL168: =DSUM(BASE,36,_VM1) -> 0 | AM168: =DSUM(BASE,37,_VM1) -> 19 | AN168: =DSUM(BASE,38,_VM1) -> 538 | AO168: =DSUM(BASE,39,_VM1) -> 1197 | AP168: =DSUM(BASE,40,_VM1) -> 151 | AQ168: =DSUM(BASE,40,_VM1) -> 151 | AR168: =DSUM(BASE,40,_VM1) -> 151 | AS168: =DSUM(BASE,40,_VM1) -> 151
B169: du Val de Marne | E169: =E168/$D$168 -> 0 | F169: =F168/D168 -> 0.5450956575 | G169: =G168/D168 -> 0.4549043425 | J169: =J168/$F$168 -> 0.03050139276 | L169: =L168/$K$168 -> 0.05775032323 | M169: 0 | N169: 0 | O169: 0.003304122971 | P169: 0.2755351243 | Q169: 0 | R169: 0.04582674903 | S169: 0.0002873150409 | T169: 0.02039936791 | U169: 0 | V169: 0.0238471484 | W169: 0.08389599196 | X169: 0.001005602643 | Y169: 0 | Z169: 0.03189196954 | AA169: 0.0001436575205 | AB169: 0.0004309725614 | AC169: 0.003735095532 | AD169: 0.02815687401 | AE169: 0.01422209453 | AF169: 0.03950581813 | AG169: 0.0005746300819 | AH169: 0.1284298233 | AI169: 0 | AJ169: 0 | AK169: 0.0007182876024 | AL169: 0 | AM169: 0.002729492889 | AN169: 0.07728774601 | AO169: 0.171958052
B172: 2ème circonscription | D172: =DSUM(BASE,2,_VM2) -> 30592 | E172: =DSUM(BASE,3,_VM2) -> 0 | F172: =DSUM(BASE,4,_VM2) -> 12597 | G172: =DSUM(BASE,5,_VM2) -> 17995 | H172: =DSUM(BASE,6,_VM2) -> 265 | I172: =DSUM(BASE,7,_VM2) -> 233 | J172: =DSUM(BASE,8,_VM2) -> 498 | K172: =DSUM(BASE,9,_VM2) -> 12099 | L172: =DSUM(BASE,10,_VM2) -> 1349 | M172: =DSUM(BASE,11,_VM2) -> 1 | N172: =DSUM(BASE,12,_VM2) -> 3 | O172: =DSUM(BASE,13,_VM2) -> 65 | P172: =DSUM(BASE,14,_VM2) -> 2639 | Q172: =DSUM(BASE,15,_VM2) -> 0 | R172: =DSUM(BASE,16,_VM2) -> 139 | S172: =DSUM(BASE,17,_VM2) -> 2 | T172: =DSUM(BASE,18,_VM2) -> 257 | U172: =DSUM(BASE,19,_VM2) -> 2 | V172: =DSUM(BASE,20,_VM2) -> 262 | W172: =DSUM(BASE,21,_VM2) -> 1000 | X172: =DSUM(BASE,22,_VM2) -> 13 | Y172: =DSUM(BASE,23,_VM2) -> 0 | Z172: =DSUM(BASE,24,_VM2) -> 354 | AA172: =DSUM(BASE,25,_VM2) -> 1 | AB172: =DSUM(BASE,26,_VM2) -> 3 | AC172: =DSUM(BASE,27,_VM2) -> 97 | AD172: =DSUM(BASE,28,_VM2) -> 418 | AE172: =DSUM(BASE,29,_VM2) -> 255 | AF172: =DSUM(BASE,30,_VM2) -> 643 | AG172: =DSUM(BASE,31,_VM2) -> 3 | AH172: =DSUM(BASE,32,_VM2) -> 1696 | AI172: =DSUM(BASE,33,_VM2) -> 0 | AJ172: =DSUM(BASE,34,_VM2) -> 0 | AK172: =DSUM(BASE,35,_VM2) -> 7 | AL172: =DSUM(BASE,36,_VM2) -> 0 | AM172: =DSUM(BASE,37,_VM2) -> 54 | AN172: =DSUM(BASE,38,_VM2) -> 768 | AO172: =DSUM(BASE,39,_VM2) -> 1503 | AP172: =DSUM(BASE,40,_VM2) -> 261 | AQ172: =DSUM(BASE,40,_VM2) -> 261 | AR172: =DSUM(BASE,40,_VM2) -> 261 | AS172: =DSUM(BASE,40,_VM2) -> 261
B173: du Val de Marne | E173: =E172/$D$172 -> 0 | F173: =F172/D172 -> 0.4117743201 | G173: =G172/D172 -> 0.5882256799 | J173: =J172/F172 -> 0.0395332222 | L173: =L172/$K$172 -> 0.1114968179 | M173: 8.26514588e-05 | N173: 0.0002479543764 | O173: 0.005372344822 | P173: 0.2181171998 | Q173: 0 | R173: 0.01148855277 | S173: 0.0001653029176 | T173: 0.02124142491 | U173: 0.0001653029176 | V173: 0.02165468221 | W173: 0.0826514588 | X173: 0.001074468964 | Y173: 0 | Z173: 0.02925861641 | AA173: 8.26514588e-05 | AB173: 0.0002479543764 | AC173: 0.008017191503 | AD173: 0.03454830978 | AE173: 0.02107612199 | AF173: 0.05314488801 | AG173: 0.0002479543764 | AH173: 0.1401768741 | AI173: 0 | AJ173: 0 | AK173: 0.0005785602116 | AL173: 0 | AM173: 0.004463178775 | AN173: 0.06347632036 | AO173: 0.1242251426

Sheet Synthèse 1V (hidden)
A1: ='1CA'!A1 -> VILLE DE CRETEIL ELECTIONS EUROPEENNES 26 MAI 2019
A2: ='1CA'!A2 -> 0
A4: =NOW() -> 2019-05-26T23:05:47.390
B5: cantons | C5: inscrits | D5: émarge ments | E5: bulletins | F5: abstentions | G5: blancs et nuls | H5: exprimés | I5: ='Résultats 1V'!L5:AO5 -> FRANCE INSOUMISE conduite par M. AUBRY | J5: FRANCE ROYALE conduite par R. de PREVOISIN | K5: LIGNE CLAIRE conduite par R. CAMUS | L5: PARTI PIRATE conduite par F. MARIE | M5: RÉPUBLIQUE EN MARCHE conduite par N. LOISEAU | N5: DÉMOCRATIE RÉPRESENTATIVE conduite par H. TRAORE | O5: PATRIOTES ET GILETS JAUNES conduite par F. PHILIPPOT | P5: PACE conduite par A. ALEXANDRE | Q5: URGENCE ÉCOLOGIE conduite par D. BOURG | R5: LISTE DE LA RECONQUÊTE conduite par V. VAUCLIN | S5: LES EUROPÉENS conduite par J-C. LAGARDE | T5: ENVIE D’EUROPE conduite par R. GLUCKSMANN | U5: PARTI FÉDÉRALISTE EUROPÉEN conduite par Y. GERNIGON | V5: MOUVEMENT POUR L’INITIATIVE CITOYENNE conduite par G. HELGEN | W5: LE COURAGE DE DÉFENDRE LES FRANÇAIS conduite par N. DUPONT-AIGNAN | X5: ALLONS ENFANTS conduite par S. CAILLAUD | Y5: DÉCROISSANCE 2019 conduite par T. DELFEL | Z5: LUTTE OUVRIERE conduite par N. ARTHAUD | AA5: POUR L’EUROPE DES GENS conduite par I. BROSSAT | AB5: ENSEMBLE POUR LE FREXIT conduite par F. ASSELINEAU | AC5: LISTE CITOYENNE DU PRINTEMPS EUROPEEN conduite par B. HAMON | AD5: À VOIX ÉGALES conduite par N. TOMASINI | AE5: PRENEZ LE POUVOIR conduite par J. BARDELLA | AF5: NEUTRE ET ACTIF conduite par C. CORBET | AG5: PARTI RÉVOLUTIONNAIRE COMMUNISTES conduite par A. SANCHEZ | AH5: ESPÉRANTO conduite par P. DIEUMEGARD | AI5: ÉVOLUTION CITOYENNE conduite par C. CHALANCON | AJ5: ALLIANCE JAUNE conduite par F. LALANNE | AK5: UNION DE LA DROITE ET DU CENTRE conduite par F. X. BELLAMY | AL5: EUROPE ÉCOLOGIE conduite par Y. JADOT
A7: ='Résultats 1V'!B143:AO144 -> COMMUNE DE CRETEIL | B7: 0 | C7: 43764 | D7: 0 | E7: 19777 | F7: 23987 | G7: 394 | H7: 323 | I7: 717 | J7: 19060 | K7: 1751 | L7: 1 | M7: 3 | N7: 88 | O7: 4557 | P7: 0 | Q7: 58 | R7: 4 | S7: 399 | T7: 2 | U7: 428 | V7: 1584 | W7: 20 | X7: 0 | Y7: 576 | Z7: 2 | AA7: 6 | AB7: 123 | AC7: 614 | AD7: 354 | AE7: 918 | AF7: 7 | AG7: 2590 | AH7: 0 | AI7: 0 | AJ7: 12 | AK7: 0 | AL7: 73
A8: 0 | B8: 0 | C8: 0 | D8: 0 | E8: 0.4519011059 | F8: 0.5480988941 | G8: 0 | H8: 0 | I8: 0.03625423472 | J8: 0 | K8: 0.09186778594 | L8: 5.246589717e-05 | M8: 0.0001573976915 | N8: 0.004616998951 | O8: 0.2390870934 | P8: 0 | Q8: 0.003043022036 | R8: 0.0002098635887 | S8: 0.02093389297 | T8: 0.0001049317943 | U8: 0.02245540399 | V8: 0.08310598111 | W8: 0.001049317943 | X8: 0 | Y8: 0.03022035677 | Z8: 0.0001049317943 | AA8: 0.000314795383 | AB8: 0.006453305352 | AC8: 0.03221406086 | AD8: 0.0185729276 | AE8: 0.0481636936 | AF8: 0.0003672612802 | AG8: 0.1358866737 | AH8: 0 | AI8: 0 | AJ8: 0.000629590766 | AK8: 0 | AL8: 0.003830010493
A11: ='Résultats 1V'!B148:AO149 -> 0 | B11: 0 | C11: 0 | D11: 0 | E11: 0 | F11: 0 | G11: 0 | H11: 0 | I11: 0 | J11: 0 | K11: 0 | L11: 0 | M11: 0 | N11: 0 | O11: 0 | P11: 0 | Q11: 0 | R11: 0 | S11: 0 | T11: 0 | U11: 0 | V11: 0 | W11: 0 | X11: 0 | Y11: 0 | Z11: 0 | AA11: 0 | AB11: 0 | AC11: 0 | AD11: 0 | AE11: 0 | AF11: 0 | AG11: 0 | AH11: 0 | AI11: 0 | AJ11: 0 | AK11: 0 | AL11: 0
A12: 0 | B12: 0 | C12: 0 | D12: 0 | E12: 0 | F12: 0 | G12: 0 | H12: 0 | I12: 0 | J12: 0 | K12: 0 | L12: 0 | M12: 0 | N12: 0 | O12: 0 | P12: 0 | Q12: 0 | R12: 0 | S12: 0 | T12: 0 | U12: 0 | V12: 0 | W12: 0 | X12: 0 | Y12: 0 | Z12: 0 | AA12: 0 | AB12: 0 | AC12: 0 | AD12: 0 | AE12: 0 | AF12: 0 | AG12: 0 | AH12: 0 | AI12: 0 | AJ12: 0 | AK12: 0 | AL12: 0
A14: ='Résultats 1V'!B152:AO153 -> Canton n° 7 | B14: 0 | C14: 21252 | D14: 0 | E14: 9474 | F14: 11778 | G14: 192 | H14: 150 | I14: 342 | J14: 9132 | K14: 888 | L14: 1 | M14: 3 | N14: 58 | O14: 2202 | P14: 0 | Q14: 22 | R14: 2 | S14: 193 | T14: 2 | U14: 223 | V14: 719 | W14: 11 | X14: 0 | Y14: 272 | Z14: 1 | AA14: 4 | AB14: 70 | AC14: 299 | AD14: 194 | AE14: 443 | AF14: 7 | AG14: 1213 | AH14: 0 | AI14: 0 | AJ14: 5 | AK14: 0 | AL14: 46
A15: 0 | B15: 0 | C15: 0 | D15: 0 | E15: 0.4457933371 | F15: 0.5542066629 | G15: 0 | H15: 0 | I15: 0.03609879671 | J15: 0 | K15: 0.09724047306 | L15: 0.0001095050372 | M15: 0.0003285151117 | N15: 0.006351292159 | O15: 0.241130092 | P15: 0 | Q15: 0.002409110819 | R15: 0.0002190100745 | S15: 0.02113447219 | T15: 0.0002190100745 | U15: 0.0244196233 | V15: 0.07873412177 | W15: 0.00120455541 | X15: 0 | Y15: 0.02978537013 | Z15: 0.0001095050372 | AA15: 0.0004380201489 | AB15: 0.007665352606 | AC15: 0.03274200613 | AD15: 0.02124397722 | AE15: 0.04851073149 | AF15: 0.0007665352606 | AG15: 0.1328296102 | AH15: 0 | AI15: 0 | AJ15: 0.0005475251862 | AK15: 0 | AL15: 0.005037231713
A17: ='Résultats 1V'!B156:AO157 -> Canton n° 8 | B17: 0 | C17: 22512 | D17: 0 | E17: 10303 | F17: 12209 | G17: 202 | H17: 173 | I17: 375 | J17: 9928 | K17: 863 | L17: 0 | M17: 0 | N17: 30 | O17: 2355 | P17: 0 | Q17: 36 | R17: 2 | S17: 206 | T17: 0 | U17: 205 | V17: 865 | W17: 9 | X17: 0 | Y17: 304 | Z17: 1 | AA17: 2 | AB17: 53 | AC17: 315 | AD17: 160 | AE17: 475 | AF17: 0 | AG17: 1377 | AH17: 0 | AI17: 0 | AJ17: 7 | AK17: 0 | AL17: 27
A18: 0 | B18: 0 | C18: 0 | D18: 0 | E18: 0.457667022 | F18: 0.542332978 | G18: 0 | H18: 0 | I18: 0.03639716587 | J18: 0 | K18: 0.08692586624 | L18: 0 | M18: 0 | N18: 0.003021756648 | O18: 0.2372078969 | P18: 0 | Q18: 0.003626107977 | R18: 0.0002014504432 | S18: 0.02074939565 | T18: 0 | U18: 0.02064867043 | V18: 0.08712731668 | W18: 0.0009065269944 | X18: 0 | Y18: 0.03062046737 | Z18: 0.0001007252216 | AA18: 0.0002014504432 | AB18: 0.005338436745 | AC18: 0.0317284448 | AD18: 0.01611603546 | AE18: 0.04784448026 | AF18: 0 | AG18: 0.1386986301 | AH18: 0 | AI18: 0 | AJ18: 0.0007050765512 | AK18: 0 | AL18: 0.002719580983
A21: ='Résultats 1V'!B160:AO161 -> 1ère circonscription | B21: 0 | C21: 13172 | D21: 0 | E21: 7180 | F21: 5992 | G21: 129 | H21: 90 | I21: 219 | J21: 6961 | K21: 402 | L21: 0 | M21: 0 | N21: 23 | O21: 1918 | P21: 0 | Q21: 19 | R21: 2 | S21: 142 | T21: 0 | U21: 166 | V21: 584 | W21: 7 | X21: 0 | Y21: 222 | Z21: 1 | AA21: 3 | AB21: 26 | AC21: 196 | AD21: 99 | AE21: 275 | AF21: 4 | AG21: 894 | AH21: 0 | AI21: 0 | AJ21: 5 | AK21: 0 | AL21: 19
A22: de Créteil | B22: 0 | C22: 0 | D22: 0 | E22: 0.5450956575 | F22: 0.4549043425 | G22: 0 | H22: 0 | I22: 0.03050139276 | J22: 0 | K22: 0.05775032323 | L22: 0 | M22: 0 | N22: 0.003304122971 | O22: 0.2755351243 | P22: 0 | Q22: 0.002729492889 | R22: 0.0002873150409 | S22: 0.02039936791 | T22: 0 | U22: 0.0238471484 | V22: 0.08389599196 | W22: 0.001005602643 | X22: 0 | Y22: 0.03189196954 | Z22: 0.0001436575205 | AA22: 0.0004309725614 | AB22: 0.003735095532 | AC22: 0.02815687401 | AD22: 0.01422209453 | AE22: 0.03950581813 | AF22: 0.0005746300819 | AG22: 0.1284298233 | AH22: 0 | AI22: 0 | AJ22: 0.0007182876024 | AK22: 0 | AL22: 0.002729492889
A24: ='Résultats 1V'!B164:AO165 -> 2ème circonscription | B24: 0 | C24: 30592 | D24: 0 | E24: 12597 | F24: 17995 | G24: 265 | H24: 233 | I24: 498 | J24: 12099 | K24: 1349 | L24: 1 | M24: 3 | N24: 65 | O24: 2639 | P24: 0 | Q24: 39 | R24: 2 | S24: 257 | T24: 2 | U24: 262 | V24: 1000 | W24: 13 | X24: 0 | Y24: 354 | Z24: 1 | AA24: 3 | AB24: 97 | AC24: 418 | AD24: 255 | AE24: 643 | AF24: 3 | AG24: 1696 | AH24: 0 | AI24: 0 | AJ24: 7 | AK24: 0 | AL24: 54
A25: de Créteil | B25: 0 | C25: 0 | D25: 0 | E25: 0.4117743201 | F25: 0.5882256799 | G25: 0 | H25: 0 | I25: 0.0395332222 | J25: 0 | K25: 0.1114968179 | L25: 8.26514588e-05 | M25: 0.0002479543764 | N25: 0.005372344822 | O25: 0.2181171998 | P25: 0 | Q25: 0.003223406893 | R25: 0.0001653029176 | S25: 0.02124142491 | T25: 0.0001653029176 | U25: 0.02165468221 | V25: 0.0826514588 | W25: 0.001074468964 | X25: 0 | Y25: 0.02925861641 | Z25: 8.26514588e-05 | AA25: 0.0002479543764 | AB25: 0.008017191503 | AC25: 0.03454830978 | AD25: 0.02107612199 | AE25: 0.05314488801 | AF25: 0.0002479543764 | AG25: 0.1401768741 | AH25: 0 | AI25: 0 | AJ25: 0.0005785602116 | AK25: 0 | AL25: 0.004463178775
A28: ='Résultats 1V'!#REF! -> 
A61: ='Résultats 1V'!B168:AO169 -> 1ère circonscription | B61: 0 | C61: 13172 | D61: 0 | E61: 7180 | F61: 5992 | G61: 129 | H61: 90 | I61: 219 | J61: 6961 | K61: 402 | L61: 0 | M61: 0 | N61: 23 | O61: 1918 | P61: 0 | Q61: 319 | R61: 2 | S61: 142 | T61: 0 | U61: 166 | V61: 584 | W61: 7 | X61: 0 | Y61: 222 | Z61: 1 | AA61: 3 | AB61: 26 | AC61: 196 | AD61: 99 | AE61: 275 | AF61: 4 | AG61: 894 | AH61: 0 | AI61: 0 | AJ61: 5 | AK61: 0 | AL61: 19
A62: du Val de Marne | B62: 0 | C62: 0 | D62: 0 | E62: 0.5450956575 | F62: 0.4549043425 | G62: 0 | H62: 0 | I62: 0.03050139276 | J62: 0 | K62: 0.05775032323 | L62: 0 | M62: 0 | N62: 0.003304122971 | O62: 0.2755351243 | P62: 0 | Q62: 0.04582674903 | R62: 0.0002873150409 | S62: 0.02039936791 | T62: 0 | U62: 0.0238471484 | V62: 0.08389599196 | W62: 0.001005602643 | X62: 0 | Y62: 0.03189196954 | Z62: 0.0001436575205 | AA62: 0.0004309725614 | AB62: 0.003735095532 | AC62: 0.02815687401 | AD62: 0.01422209453 | AE62: 0.03950581813 | AF62: 0.0005746300819 | AG62: 0.1284298233 | AH62: 0 | AI62: 0 | AJ62: 0.0007182876024 | AK62: 0 | AL62: 0.002729492889
A64: ='Résultats 1V'!B172:AO173 -> 2ème circonscription | B64: 0 | C64: 30592 | D64: 0 | E64: 12597 | F64: 17995 | G64: 265 | H64: 233 | I64: 498 | J64: 12099 | K64: 1349 | L64: 1 | M64: 3 | N64: 65 | O64: 2639 | P64: 0 | Q64: 139 | R64: 2 | S64: 257 | T64: 2 | U64: 262 | V64: 1000 | W64: 13 | X64: 0 | Y64: 354 | Z64: 1 | AA64: 3 | AB64: 97 | AC64: 418 | AD64: 255 | AE64: 643 | AF64: 3 | AG64: 1696 | AH64: 0 | AI64: 0 | AJ64: 7 | AK64: 0 | AL64: 54
A65: du Val de Marne | B65: 0 | C65: 0 | D65: 0 | E65: 0.4117743201 | F65: 0.5882256799 | G65: 0 | H65: 0 | I65: 0.0395332222 | J65: 0 | K65: 0.1114968179 | L65: 8.26514588e-05 | M65: 0.0002479543764 | N65: 0.005372344822 | O65: 0.2181171998 | P65: 0 | Q65: 0.01148855277 | R65: 0.0001653029176 | S65: 0.02124142491 | T65: 0.0001653029176 | U65: 0.02165468221 | V65: 0.0826514588 | W65: 0.001074468964 | X65: 0 | Y65: 0.02925861641 | Z65: 8.26514588e-05 | AA65: 0.0002479543764 | AB65: 0.008017191503 | AC65: 0.03454830978 | AD65: 0.02107612199 | AE65: 0.05314488801 | AF65: 0.0002479543764 | AG65: 0.1401768741 | AH65: 0 | AI65: 0 | AJ65: 0.0005785602116 | AK65: 0 | AL65: 0.004463178775

Sheet M14-CONSEIL1 (hidden)
A3: exprimés : | B3: ='Résultats 1V'!K143 -> 19060
A4: élégibilité : | B4: =ROUND(('Résultats 1V'!K143)*0.05,0) -> 953
A5: suffrages exprimés utiles | B5: =SUM($E$13:$E$22) -> 6308
A6: quotient électoral | B6: =(($B$5)/$G$12) -> 242.6153846
C10: suffrages exprimés | D10: % des suffrages exprimés | E10: suffrages utiles | F10: sièges attribués à la majorité | G10: sièges attribuables à la proportionnelle | H10: plus forte moyenne 1ère attribution | I10: sièges attribués à la plus forte moyenne 1ère attribution | J10: plus forte moyenne 2ème attribution | K10: sièges attribués à la plus forte moyenne 2ème attribution | L10: plus forte moyenne 3ème attribution | M10: sièges attribués à la plus forte moyenne 3ème attribution | N10: plus forte moyenne 4ème attribution | O10: sièges attribués à la plus forte moyenne 4ème attribution | P10: TOTAL DES SIEGES ATTRIBUES
F11: S1 | G11: S2 | H11: M3 | I11: S3 | J11: M4 | K11: S4 | L11: M5 | M11: S5 | N11: M6 | O11: S6
A12: sièges à répartir | B12: 53 | F12: =ROUND($B$12/2,0) -> 27 | G12: =($B$12-$F$12) -> 26 | R12: TRI par tendance politique de xgauche (1) à xdroite (n)
A13: ='Résultats 1V'!L5 -> FRANCE INSOUMISE conduite par M. AUBRY | C13: ='Résultats 1V'!L143 -> 1751 | D13: ='Résultats 1V'!L144 -> 0.09186778594 | E13: =IF(((C13)<($B$4)),0,C13) -> 1751 | F13: =IF(((C13)=MAX($C$13:$C$22)),$F$12,0) -> 0 | G13: =INT(E13/$B$6) -> 7 | H13: =IF(SUM($F$12,$G$13:$G$22)=$B$12,0,((E13)/(G13+1))) -> 218.875 | I13: =IF(AND((H13>0),((H13)=MAX($H$13:$H$22))),1,0) -> 0 | J13: =IF(SUM($F$12,$G$13:$G$22,$I$13:$I$22)=$B$12,0,((E13)/((G13+I13)+1))) -> 0 | K13: =IF(AND((J13>0),((J13)=MAX($J$13:$J$22))),1,0) -> 0 | L13: =IF(SUM($F$12,$G$13:$G$22,$I$13:$I$22,$K$13:$K$22)=$B$12,0,((E13)/((G13+I13+K13)+1))) -> 0 | M13: =IF(AND((L13>0),((L13)=MAX($L$13:$L$22))),1,0) -> 0 | N13: =IF(SUM($F$12,$G$13:$G$22,$I$13:$I$22,$K$13:$K$22,$M$13:$M$22)=$B$12,0,((E13)/((G13+I13+K13+M13)+1))) -> 0 | O13: =IF(AND((N13>0),((N13)=MAX($N$13:$N$22))),1,0) -> 0 | P13: =SUM(F13+G13+I13+K13+M13+O13) -> 7 | Q13: =A13 -> FRANCE INSOUMISE conduite par M. AUBRY | R13: 3 | S13: Ecolo | T13: EELV
A14: ='Résultats 1V'!M5 -> FRANCE ROYALE conduite par R. de PREVOISIN | C14: ='Résultats 1V'!M143 -> 1 | D14: ='Résultats 1V'!M144 -> 5.246589717e-05 | E14: =IF(((C14)<($B$4)),0,C14) -> 0 | F14: =IF(((C14)=MAX($C$13:$C$22)),$F$12,0) -> 0 | G14: =INT(E14/$B$6) -> 0 | H14: =IF(SUM($F$12,$G$13:$G$22)=$B$12,0,((E14)/(G14+1))) -> 0 | I14: =IF(AND((H14>0),((H14)=MAX($H$13:$H$22))),1,0) -> 0 | J14: =IF(SUM($F$12,$G$13:$G$22,$I$13:$I$22)=$B$12,0,((E14)/((G14+I14)+1))) -> 0 | K14: =IF(AND((J14>0),((J14)=MAX($J$13:$J$22))),1,0) -> 0 | L14: =IF(SUM($F$12,$G$13:$G$22,$I$13:$I$22,$K$13:$K$22)=$B$12,0,((E14)/((G14+I14+K14)+1))) -> 0 | M14: =IF(AND((L14>0),((L14)=MAX($L$13:$L$22))),1,0) -> 0 | N14: =IF(SUM($F$12,$G$13:$G$22,$I$13:$I$22,$K$13:$K$22,$M$13:$M$22)=$B$12,0,((E14)/((G14+I14+K14+M14)+1))) -> 0 | O14: 0 | P14: =SUM(F14+G14+I14+K14+M14+O14) -> 0 | Q14: =A14 -> FRANCE ROYALE conduite par R. de PREVOISIN | R14: 8 | S14: XD | T14: FN
A15: ='Résultats 1V'!N5 -> LIGNE CLAIRE conduite par R. CAMUS | C15: ='Résultats 1V'!N143 -> 3 | D15: ='Résultats 1V'!N144 -> 0.0001573976915 | E15: 0 | F15: 0 | G15: 0 | H15: =IF(SUM($F$12,$G$13:$G$22)=$B$12,0,((E15)/(G15+1))) -> 0 | I15: =IF(AND((H15>0),((H15)=MAX($H$13:$H$22))),1,0) -> 0 | J15: 0 | K15: 0 | L15: 0 | M15: 0 | N15: =IF(SUM($F$12,$G$13:$G$22,$I$13:$I$22,$K$13:$K$22,$M$13:$M$22)=$B$12,0,((E15)/((G15+I15+K15+M15)+1))) -> 0 | O15: 0 | P15: 0 | Q15: LIGNE CLAIRE conduite par R. CAMUS | R15: 1 | S15: XG | T15: LO
A16: ='Résultats 1V'!O5 -> PARTI PIRATE conduite par F. MARIE | C16: ='Résultats 1V'!O143 -> 88 | D16: ='Résultats 1V'!O144 -> 0.004616998951 | E16: 0 | F16: 0 | G16: 0 | H16: 0 | I16: 0 | J16: 0 | K16: 0 | L16: 0 | M16: 0 | N16: 0 | O16: 0 | P16: 0 | Q16: PARTI PIRATE conduite par F. MARIE | R16: 4 | S16: Autre
A17: ='Résultats 1V'!P5 -> RÉPUBLIQUE EN MARCHE conduite par N. LOISEAU | C17: ='Résultats 1V'!P143 -> 4557 | D17: ='Résultats 1V'!P144 -> 0.2390870934 | E17: 4557 | F17: 27 | G17: 18 | H17: 239.8421053 | I17: 1 | J17: 0 | K17: 0 | L17: 0 | M17: 0 | N17: 0 | O17: 0 | P17: 46 | Q17: RÉPUBLIQUE EN MARCHE conduite par N. LOISEAU | R17: 5 | S17: D
A18: ='Résultats 1V'!Q5 -> DÉMOCRATIE RÉPRESENTATIVE conduite par H. TRAORE | C18: ='Résultats 1V'!Q143 -> 0 | D18: ='Résultats 1V'!Q144 -> 0 | E18: 0 | F18: 0 | G18: 0 | H18: 0 | I18: 0 | J18: 0 | K18: 0 | L18: 0 | M18: 0 | N18: 0 | O18: 0 | P18: 0 | Q18: DÉMOCRATIE RÉPRESENTATIVE conduite par H. TRAORE | R18: 6 | S18: D | T18: UMP
A19: ='Résultats 1V'!R5 -> PATRIOTES ET GILETS JAUNES conduite par F. PHILIPPOT | C19: ='Résultats 1V'!R143 -> 58 | D19: ='Résultats 1V'!R144 -> 0.003043022036 | E19: 0 | F19: 0 | G19: 0 | H19: 0 | I19: 0 | J19: 0 | K19: 0 | L19: 0 | M19: 0 | N19: 0 | O19: 0 | P19: 0 | Q19: PATRIOTES ET GILETS JAUNES conduite par F. PHILIPPOT | R19: 7 | S19: D | T19: Modem
A20: ='Résultats 1V'!S5 -> PACE conduite par A. ALEXANDRE | C20: ='Résultats 1V'!S143 -> 4 | D20: ='Résultats 1V'!S144 -> 0.0002098635887 | E20: =IF(((C20)<($B$4)),0,C20) -> 0 | F20: 0 | G20: 0 | H20: 0 | I20: 0 | J20: 0 | K20: 0 | L20: 0 | M20: 0 | N20: 0 | O20: 0 | P20: 0 | Q20: PACE conduite par A. ALEXANDRE | R20: 2 | S20: G | T20: PS
A21: 0 | C21: 0 | D21: 0 | E21: 0 | F21: 0 | G21: 0 | H21: 0 | I21: 0 | J21: 0 | K21: 0 | L21: 0 | M21: 0 | N21: 0 | O21: 0 | P21: 0 | Q21: 0
A22: 0 | C22: 0 | D22: 0 | E22: 0 | F22: 0 | G22: 0 | H22: 0 | I22: 0 | J22: 0 | K22: 0 | L22: =IF(SUM($F$12,$G$13:$G$22,$I$13:$I$22,$K$13:$K$22)=$B$12,0,((E22)/((G22+I22+K22)+1))) -> 0 | M22: 0 | N22: 0 | O22: 0 | P22: 0 | Q22: 0
G23: sièges attribués
G24: =SUM(G13:G22) -> 25 | P24: =SUM(P13:P22) -> 53
A25: VILLE DE CRETEIL ELECTION MUNICIPALE 1er tour - 9 MARS 2008
A28: COMPOSITION DU CONSEIL MUNICIPAL
A33: LISTES | C33: NOMBRE DE SIEGES
A35: =IF(B35>0,"liste conduite par","") -> liste conduite par | B35: =A13 -> FRANCE INSOUMISE conduite par M. AUBRY | C35: =P13 -> 7 | F35: A trier par ordre croissant sur colone nombre de sièges
A36: liste conduite par | B36: =A14 -> FRANCE ROYALE conduite par R. de PREVOISIN | C36: =P14 -> 0
A37: =IF(B37>0,"liste conduite par","") -> liste conduite par | B37: LIGNE CLAIRE conduite par R. CAMUS | C37: 0
A38: liste conduite par | B38: PARTI PIRATE conduite par F. MARIE | C38: 0
A39: liste conduite par | B39: RÉPUBLIQUE EN MARCHE conduite par N. LOISEAU | C39: 46
A40: =IF(B40>0,"liste conduite par","") -> liste conduite par | B40: DÉMOCRATIE RÉPRESENTATIVE conduite par H. TRAORE | C40: 0
A41: liste conduite par | B41: PATRIOTES ET GILETS JAUNES conduite par F. PHILIPPOT | C41: 0
A42: =IF(B42>0,"liste conduite par","") -> liste conduite par | B42: PACE conduite par A. ALEXANDRE | C42: 0
B43: 0 | C43: 0
B44: 0 | C44: 0
E49: Afficher de xgauche à xdroite pour graphique
B50: Jean-Pierre FOURQUIN | C50: 0 | G50: 1
B51: Jacky BRU | C51: 0 | G51: 2
B52: Daniel GENDRE | C52: 0 | G52: 3
B53: Laurent CATHALA | C53: 43 | G53: 4
B54: Catherine DE LUCA | C54: 2 | G54: 5
B55: Jérôme PITON | C55: 2 | G55: 6
B56: Thierry HEBBRECHT | C56: 6 | G56: 7
C60: =SUM(C50:C59) -> 53
A67: VILLE DE CRETEIL ELECTION MUNICIPALE 1er tour - 9 MARS 2008
A69: Calcul de la répartition des sièges
A71: Listes conduites par | B71: =A13 -> FRANCE INSOUMISE conduite par M. AUBRY | C71: =A14 -> FRANCE ROYALE conduite par R. de PREVOISIN | D71: =A15 -> LIGNE CLAIRE conduite par R. CAMUS | E71: =A16 -> PARTI PIRATE conduite par F. MARIE | F71: =A17 -> RÉPUBLIQUE EN MARCHE conduite par N. LOISEAU | G71: =A18 -> DÉMOCRATIE RÉPRESENTATIVE conduite par H. TRAORE | H71: =A19 -> PATRIOTES ET GILETS JAUNES conduite par F. PHILIPPOT | I71: =A20 -> PACE conduite par A. ALEXANDRE
A72: sièges attribués à la majorité | B72: =$F$13 -> 0 | C72: =$F$14 -> 0 | D72: =$F$15 -> 0 | E72: =$F$16 -> 0 | F72: =$F$17 -> 27 | G72: =$F$18 -> 0 | H72: =$F$19 -> 0 | I72: =$F$20 -> 0
A73: sièges attribués à la proportionnelle | B73: =$G$13 -> 7 | C73: =$G$14 -> 0 | D73: =$G$15 -> 0 | E73: =$G$16 -> 0 | F73: =$G$17 -> 18 | G73: =$G$18 -> 0 | H73: =$G$19 -> 0 | I73: =$G$20 -> 0
A74: sièges attribués à la proportionnelle à la plus forte moyenne | B74: =$I13+$K13+$M13+$O13 -> 0 | C74: =$I14+$K14+$M14+$O14 -> 0 | D74: =$I15+$K15+$M15+$O15 -> 0 | E74: =$I16+$K16+$M16+$O16 -> 0 | F74: =$I17+$K17+$M17+$O17 -> 1 | G74: =$I18+$K18+$M18+$O18 -> 0 | H74: =$I19+$K19+$M19+$O19 -> 0 | I74: =$I20+$K20+$M20+$O20 -> 0
A75: TOTAL des sièges attribués à chaque liste | B75: =SUM(B72:B74) -> 7 | C75: 0 | D75: 0 | E75: 0 | F75: 46 | G75: 0 | H75: 0 | I75: 0
